Workbook

Sheet main
A2: It is recommended to close all other workbooks before running for performance reasons
A4: Exponential Family Power: | B4: 1.67 | W4: x(1 | 0) | X4: Total Var | Y4: Q Pct | Z4: CV2 Factor | AA4: Q/Var
W5: -0.2926324804 | X5: -3.365795255 | Y5: -3.511361478 | Z5: 0.9403148768 | AA5: =EXP(Y5)/(1+EXP(Y5)) -> 0.02899068534
W7: x(1 | 0) | X7: Q | Y7: R | Z7: CV2 Factor | AA7: Gamma Weight
W8: =EXP(W5) -> 0.7462963688 | X8: =EXP(X5)*AA5 -> 0.001001180024 | Y8: =EXP(X5)*D9/A9*(1-AA5) -> 15.77839406 | Z8: =EXP(Z5) -> 2.560787624 | AA8: =B4/2 -> 0.835 | AI8: Total log-lik:
A9: =COUNTA(A11:A202) -> 48 | B9: =SUM(B11:B202) -> 48000 | D9: =SUM(D11:D202) -> 22585.3563 | AI9: =SUMIF(G11:G202,1,AI11:AI202) -> 9.554491079 | AL9: KF Iterations:
A10: AQ / PQ | B10: On-Level Premium | C10: LDF | D10: Used Premium | E10: Trended, On-Level LR (CL) | F10: Observed - Yearly | G10: Include | I10: KF Predicted LR | J10: Cape Cod Predicted LR | W10: x (t | t-1) | X10: n (t | t-1) | Y10: P (t | t-1) | Z10: f(t | t-1) | AA10: Include | AB10: K (t) | AC10: P (t | t) | AD10: x (t | t) | AE10: loglik normal | AF10: gamma alpha | AG10: gamma beta | AH10: loglik gamma | AI10: log-lik | AJ10: x(t | T) | AL10: 1 | AM10: 2 | AN10: 3 | AO10: 4 | AP10: 5 | AQ10: 6 | AR10: 7 | AS10: 8 | AT10: 9 | AU10: 10 | AV10: 11 | AW10: 12 | AX10: 13 | AY10: 14 | AZ10: 15 | BA10: 16 | BB10: 17 | BC10: 18 | BD10: 19 | BE10: 20 | BF10: 21 | BG10: 22 | BH10: 23 | BI10: 24 | BJ10: 25 | BK10: 26 | BL10: 27 | BM10: 28 | BN10: 29 | BO10: 30 | BP10: 31 | BQ10: 32 | BR10: 33 | BS10: 34 | BT10: 35 | BU10: 36 | BV10: 37 | BW10: 38 | BX10: 39 | BY10: 40 | BZ10: 41 | CA10: 42 | CB10: 43 | CC10: 44 | CD10: 45 | CE10: 46 | CF10: 47 | CG10: 48 | CH10: 49 | CI10: 50
A11: 2003Q1 | B11: 1000 | C11: 1 | D11: =B11/C11 -> 1000 | E11: 0.7047551073 | F11: =IF(RIGHT(A11,1)="1",SUMPRODUCT(D11:D14,E11:E14)/SUM(D11:D14),F10) -> 0.8420568209 | G11: 1 | I11: =AVERAGE(AL11:CI11) -> 0.732395516 | J11: =J12 -> 0.6463374149 | W11: =W8 -> 0.7462963688 | X11: =E11-W11 -> -0.04154126153 | Y11: 0 | Z11: =Y11+$Y$8/D11 -> 0.01577839406 | AA11: TRUE | AB11: =IF(AND(AA11,G11=1),IF(Z11=0,0,Y11/Z11),0) -> 0 | AC11: =Y11*(1-AB11) -> 0 | AD11: =W11+AB11*X11 -> 0.7462963688 | AE11: =LN(MAX(1E-20,NORMDIST(X11,0,Z11^0.5,FALSE))) -> 1.100933544 | AF11: =1/(Z11*$Z$8) -> 24.749341 | AG11: =1/(W11*Z11*$Z$8) -> 33.16288545 | AH11: =LN(MAX(1E-20,GAMMADIST(E11,AF11,1/AG11,FALSE))) -> 0.9921722954 | AI11: =$AA$8*AH11+(1-$AA$8)*AE11 -> 1.010117901 | AJ11: =IF(Y12=0,AJ12,AD11+(AC11/Y12)*(AJ12-AD11)) -> 0.7462963688 | AL11: 0.7202785082 | AM11: 0.7270332784 | AN11: 0.7313644452 | AO11: 0.732800016 | AP11: 0.6463374149 | AQ11: 0.749898273 | AR11: 0.7393841034 | AS11: 0.750919595 | AT11: 0.6582933111 | AU11: 0.7039521759 | AV11: 0.7531437201 | AW11: 0.7339595794 | AX11: 0.7380252954 | AY11: 0.7357414845 | AZ11: 0.7232011738 | BA11: 0.7185385042 | BB11: 0.7445312504 | BC11: 0.7357451707 | BD11: 0.7158768605 | BE11: 0.7441955214 | BF11: 0.7464547339 | BG11: 0.7566078055 | BH11: 0.6463374149 | BI11: 0.7518246529 | BJ11: 0.7539914582 | BK11: 0.7224752846 | BL11: 0.7541565774 | BM11: 0.7487358484 | BN11: 0.7372967396 | BO11: 0.7505528098 | BP11: 0.7458156498 | BQ11: 0.7267508088 | BR11: 0.7392436891 | BS11: 0.7355166511 | BT11: 0.7367755767 | BU11: 0.734236199 | BV11: 0.7442154062 | BW11: 0.748555855 | BX11: 0.7583348712 | BY11: 0.7234178565 | BZ11: 0.7280702308 | CA11: 0.7174930296 | CB11: 0.7518248885 | CC11: 0.729710299 | CD11: 0.7157444689 | CE11: 0.7332236089 | CF11: 0.7475445689 | CG11: 0.7363621768 | CH11: 0.7489905893 | CI11: 0.7462963688
A12: =VALUE(LEFT(A11,4))+IF(RIGHT(A11,1)="4",1,0)&"Q"&IF(RIGHT(A11,1)="4","1",VALUE(RIGHT(A11,1))+1) -> 2003Q2 | B12: 1000 | C12: 1 | D12: =B12/C12 -> 1000 | E12: 0.7373921957 | F12: =IF(RIGHT(A12,1)="1",SUMPRODUCT(D12:D15,E12:E15)/SUM(D12:D15),F11) -> 0.8420568209 | G12: 1 | I12: =AVERAGE(AL12:CI12) -> 0.7322543126 | J12: 0.6463374149 | W12: =AD11 -> 0.7462963688 | X12: -0.008904173116 | Y12: =AC11+$X$8*W12^(2-$B$4) -> 0.0009090189023 | Z12: 0.01668741297 | AA12: FALSE | AB12: =IF(AND(AA12,G12=1),IF(Z12=0,0,Y12/Z12),0) -> 0 | AC12: 0.0009090189023 | AD12: 0.7462963688 | AE12: =LN(MAX(1E-20,NORMDIST(X12,0,Z12^0.5,FALSE))) -> 1.125236174 | AF12: =1/(Z12*$Z$8) -> 23.40116205 | AG12: =1/(W12*Z12*$Z$8) -> 31.35639275 | AH12: =LN(MAX(1E-20,GAMMADIST(E12,AF12,1/AG12,FALSE))) -> 0.9568498513 | AI12: 0.9846335946 | AJ12: 0.7465115014 | AL12: 0.7265405572 | AM12: 0.7321495591 | AN12: 0.7378432784 | AO12: 0.7293341892 | AP12: 0.6463374287 | AQ12: 0.7424453655 | AR12: 0.7413529206 | AS12: 0.7435048451 | AT12: 0.6599164463 | AU12: 0.7109967276 | AV12: 0.7529596016 | AW12: 0.7311006648 | AX12: 0.734565814 | AY12: 0.7319892291 | AZ12: 0.7280941009 | BA12: 0.7242072768 | BB12: 0.747067621 | BC12: 0.7325290206 | BD12: 0.7231626562 | BE12: 0.7490660675 | BF12: 0.7398785098 | BG12: 0.7415593084 | BH12: 0.6463374183 | BI12: 0.7439317805 | BJ12: 0.7458873777 | BK12: 0.7271942332 | BL12: 0.747382147 | BM12: 0.7395902786 | BN12: 0.7399186764 | BO12: 0.7559763191 | BP12: 0.7376083832 | BQ12: 0.7285763897 | BR12: 0.7406371308 | BS12: 0.7408829014 | BT12: 0.7433938159 | BU12: 0.7352378711 | BV12: 0.7488975114 | BW12: 0.7404481647 | BX12: 0.7468991314 | BY12: 0.7279907924 | BZ12: 0.7354068917 | CA12: 0.7189176876 | CB12: 0.7389526921 | CC12: 0.7358657376 | CD12: 0.72345995 | CE12: 0.7352429907 | CF12: 0.7493390427 | CG12: 0.7417407951 | CH12: 0.743886831 | CI12: 0.7465115014
A13: =VALUE(LEFT(A12,4))+IF(RIGHT(A12,1)="4",1,0)&"Q"&IF(RIGHT(A12,1)="4","1",VALUE(RIGHT(A12,1))+1) -> 2003Q3 | B13: 1000 | C13: 1 | D13: 1000 | E13: 1.03546326 | F13: 0.8420568209 | G13: 1 | I13: 0.7321529813 | J13: 0.6463374149 | W13: =AD12 -> 0.7462963688 | X13: 0.2891668916 | Y13: =AC12+$X$8*W13^(2-$B$4) -> 0.001818037805 | Z13: 0.01759643187 | AA13: TRUE | AB13: 0.1033185488 | AC13: 0.001630200777 | AD13: 0.7761726724 | AE13: -1.27488757 | AF13: 22.192275 | AG13: 29.73654426 | AH13: -0.7389368806 | AI13: -0.8273687443 | AJ13: 0.746726634 | AL13: 0.7323891549 | AM13: 0.7370825907 | AN13: 0.7443221116 | AO13: 0.7254665731 | AP13: 0.6463374405 | AQ13: 0.7352294464 | AR13: 0.7435022053 | AS13: 0.7363732298 | AT13: 0.6615395816 | AU13: 0.717343146 | AV13: 0.7538620075 | AW13: 0.7279474791 | AX13: 0.7311063326 | AY13: 0.7280381479 | AZ13: 0.732987028 | BA13: 0.7298760493 | BB13: 0.7500833187 | BC13: 0.7291414906 | BD13: 0.7304484519 | BE13: 0.7539366135 | BF13: 0.7334158902 | BG13: 0.7267427201 | BH13: 0.6463374217 | BI13: 0.7363461843 | BJ13: 0.7377832972 | BK13: 0.7315695164 | BL13: 0.7406077165 | BM13: 0.7304447088 | BN13: 0.7426709412 | BO13: 0.7626458524 | BP13: 0.7294133409 | BQ13: 0.7300709277 | BR13: 0.7421671733 | BS13: 0.7462491516 | BT13: 0.750310186 | BU13: 0.7361673482 | BV13: 0.7542195186 | BW13: 0.7324790706 | BX13: 0.7360348065 | BY13: 0.7322717421 | BZ13: 0.7426588821 | CA13: 0.7195428472 | CB13: 0.7260804958 | CC13: 0.7419615382 | CD13: 0.7307436078 | CE13: 0.7372623725 | CF13: 0.7518102882 | CG13: 0.7471194134 | CH13: 0.7387830728 | CI13: 0.746726634
A14: 2003Q4 | B14: 1000 | C14: 1 | D14: 1000 | E14: 0.89061672 | F14: 0.8420568209 | G14: 1 | I14: 0.724405799 | J14: 0.6463374149 | W14: 0.7761726724 | X14: 0.1144440475 | Y14: 0.002551071001 | Z14: 0.01832946507 | AA14: FALSE | AB14: 0 | AC14: 0.002551071001 | AD14: 0.7761726724 | AE14: 0.7234058735 | AF14: 21.30476005 | AG14: 27.44847997 | AH14: 0.51138019 | AI14: 0.5463644278 | AJ14: 0.7300931123 | AL14: 0.7265827546 | AM14: 0.7314901408 | AN14: 0.7336521631 | AO14: 0.7215989571 | AP14: 0.6463374433 | AQ14: 0.7280135274 | AR14: 0.7322233794 | AS14: 0.7292416146 | AT14: 0.6617979914 | AU14: 0.7152251253 | AV14: 0.7348383045 | AW14: 0.7247942933 | AX14: 0.7276468512 | AY14: 0.7240870668 | AZ14: 0.72760563 | BA14: 0.7230161261 | BB14: 0.7388244181 | BC14: 0.7148418526 | BD14: 0.7256749278 | BE14: 0.7442612728 | BF14: 0.7269532706 | BG14: 0.7119261319 | BH14: 0.6463374251 | BI14: 0.7287605881 | BJ14: 0.7296792167 | BK14: 0.7256204684 | BL14: 0.7338332861 | BM14: 0.7212991389 | BN14: 0.730171334 | BO14: 0.7508282933 | BP14: 0.7212182987 | BQ14: 0.7199914815 | BR14: 0.731238216 | BS14: 0.7390890217 | BT14: 0.7429810095 | BU14: 0.7269848793 | BV14: 0.7437518577 | BW14: 0.7245099766 | BX14: 0.7251704817 | BY14: 0.7270658013 | BZ14: 0.737175151 | CA14: 0.7201680069 | CB14: 0.7132082994 | CC14: 0.7363793295 | CD14: 0.7285131187 | CE14: 0.7248059355 | CF14: 0.7380326001 | CG14: 0.739071067 | CH14: 0.7336793145 | CI14: 0.7300931123
A15: 2004Q1 | B15: 1000 | C15: 1 | D15: 1000 | E15: 0.6074125557 | F15: 0.641984065 | G15: 1 | I15: 0.7112594564 | J15: 0.6463374149 | W15: 0.7761726724 | X15: -0.1687601168 | Y15: 0.003471941225 | Z15: 0.01925033529 | AA15: TRUE | AB15: 0.1803574417 | AC15: 0.002845750788 | AD15: 0.7457355295 | AE15: 0.3164480889 | AF15: 20.28561317 | AG15: 26.13543853 | AH15: 0.5177178521 | AI15: 0.4845083412 | AJ15: 0.7134595906 | AL15: 0.7143592278 | AM15: 0.7201966802 | AN15: 0.7229822146 | AO15: 0.7092001116 | AP15: 0.6463374405 | AQ15: 0.7131200297 | AR15: 0.7135321108 | AS15: 0.7145796779 | AT15: 0.6612191985 | AU15: 0.7083762469 | AV15: 0.7158146014 | AW15: 0.7137980507 | AX15: 0.7177345155 | AY15: 0.7139425233 | AZ15: 0.7166002504 | BA15: 0.7161562028 | BB15: 0.7198368876 | BC15: 0.7005422146 | BD15: 0.7142610786 | BE15: 0.7268831707 | BF15: 0.7129838268 | BG15: 0.6971095436 | BH15: 0.6463374266 | BI15: 0.7135135215 | BJ15: 0.7136048117 | BK15: 0.7139783158 | BL15: 0.716550243 | BM15: 0.7121535691 | BN15: 0.7176717267 | BO15: 0.729339975 | BP15: 0.7044465675 | BQ15: 0.7099120354 | BR15: 0.7134263691 | BS15: 0.7252509789 | BT15: 0.7281362208 | BU15: 0.7121926391 | BV15: 0.7248784646 | BW15: 0.7089880243 | BX15: 0.7042859789 | BY15: 0.7166677768 | BZ15: 0.7248967162 | CA15: 0.7133516986 | CB15: 0.6930822216 | CC15: 0.724557083 | CD15: 0.7211469426 | CE15: 0.7123494985 | CF15: 0.7153492143 | CG15: 0.7238365594 | CH15: 0.7200428461 | CI15: 0.7134595906
A16: 2004Q2 | B16: 1000 | C16: 1 | D16: 1000 | E16: 0.5878572799 | F16: 0.641984065 | G16: 1 | I16: 0.7015717514 | J16: 0.6463374149 | W16: 0.7457355295 | X16: -0.1578782496 | Y16: 0.003754544202 | Z16: 0.01953293827 | AA16: TRUE | AB16: 0.1922160481 | AC16: 0.003032860553 | AD16: 0.7153887963 | AE16: 0.4108492993 | AF16: 19.99212047 | AG16: 26.80859324 | AH16: 0.5824654657 | AI16: 0.5541487983 | AJ16: 0.7031522366 | AL16: 0.702135701 | AM16: 0.7129758907 | AN16: 0.712312266 | AO16: 0.7019891946 | AP16: 0.6463374386 | AQ16: 0.7032814182 | AR16: 0.6998988947 | AS16: 0.7049796263 | AT16: 0.6608375003 | AU16: 0.7042650049 | AV16: 0.7046450983 | AW16: 0.7078720866 | AX16: 0.7078221798 | AY16: 0.7037979798 | AZ16: 0.7055948708 | BA16: 0.7092962796 | BB16: 0.7066687046 | BC16: 0.6896368029 | BD16: 0.7028472294 | BE16: 0.7158705472 | BF16: 0.7039129806 | BG16: 0.6872602134 | BH16: 0.6463374284 | BI16: 0.7033551288 | BJ16: 0.7028646782 | BK16: 0.7023361631 | BL16: 0.7066736808 | BM16: 0.7030079993 | BN16: 0.7051721194 | BO16: 0.7164073997 | BP16: 0.6926725018 | BQ16: 0.6998325892 | BR16: 0.7002742291 | BS16: 0.7166541347 | BT16: 0.719491406 | BU16: 0.7010449807 | BV16: 0.7128216404 | BW16: 0.6981537239 | BX16: 0.6894040674 | BY16: 0.7062697523 | BZ16: 0.7178586315 | CA16: 0.7065353902 | CB16: 0.6765671624 | CC16: 0.7127348365 | CD16: 0.7137807665 | CE16: 0.7050722253 | CF16: 0.6991083747 | CG16: 0.7141823809 | CH16: 0.7125840332 | CI16: 0.7031522366
A17: 2004Q3 | B17: 1000 | C17: 1.052631579 | D17: 950 | E17: 0.7033369845 | F17: 0.641984065 | G17: 1 | I17: 0.6957762026 | J17: 0.6463374149 | W17: 0.7153887963 | X17: -0.01205181181 | Y17: 0.003929279609 | Z17: 0.02053811547 | AA17: TRUE | AB17: 0.1913164631 | AC17: 0.003177543732 | AD17: 0.7130830863 | AE17: 1.020261866 | AF17: 19.01366538 | AG17: 26.5780866 | AH17: 0.8984484042 | AI17: 0.9185476254 | AJ17: 0.6995354909 | AL17: 0.6944438323 | AM17: 0.7057551012 | AN17: 0.7090681536 | AO17: 0.6947782776 | AP17: 0.6463374381 | AQ17: 0.6988507517 | AR17: 0.6915044168 | AS17: 0.7008003193 | AT17: 0.6604558022 | AU17: 0.700153763 | AV17: 0.7016621325 | AW17: 0.7075540647 | AX17: 0.7027010157 | AY17: 0.6980091297 | AZ17: 0.6986992905 | BA17: 0.7024363563 | BB17: 0.6995179991 | BC17: 0.6823855398 | BD17: 0.6961171824 | BE17: 0.7115201671 | BF17: 0.700121902 | BG17: 0.6827812568 | BH17: 0.6463374307 | BI17: 0.6986233727 | BJ17: 0.6977768232 | BK17: 0.6946975256 | BL17: 0.6967971186 | BM17: 0.7006104421 | BN17: 0.6988950282 | BO17: 0.7122282322 | BP17: 0.6808984362 | BQ17: 0.6940665039 | BR17: 0.6871220891 | BS17: 0.7080572906 | BT17: 0.7174571469 | BU17: 0.6937808502 | BV17: 0.7078382186 | BW17: 0.6873194235 | BX17: 0.6806575895 | BY17: 0.6996724655 | BZ17: 0.716508643 | CA17: 0.6997190819 | CB17: 0.6637379694 | CC17: 0.7060182984 | CD17: 0.7064145904 | CE17: 0.7034535455 | CF17: 0.6893494495 | CG17: 0.7104579622 | CH17: 0.7051252204 | CI17: 0.6995354909
A18: 2004Q4 | B18: 1000 | C18: 1.108033241 | D18: 902.5 | E18: 0.6756827033 | F18: 0.641984065 | G18: 1 | I18: 0.6899414847 | J18: 0.6463374149 | W18: 0.7130830863 | X18: -0.03740038302 | Y18: 0.004073008329 | Z18: 0.02155599344 | AA18: TRUE | AB18: 0.1889501562 | AC18: 0.003303412769 | AD18: 0.7060162781 | AE18: 0.967166689 | AF18: 18.11583661 | AG18: 25.40494502 | AH18: 0.8910625599 | AI18: 0.9036197412 | AJ18: 0.6957176388 | AL18: 0.686442761 | AM18: 0.6985343118 | AN18: 0.7061469137 | AO18: 0.6871810765 | AP18: 0.6463374376 | AQ18: 0.6944200852 | AR18: 0.6826163346 | AS18: 0.6965168624 | AT18: 0.6599248419 | AU18: 0.696042521 | AV18: 0.6985732806 | AW18: 0.7074212154 | AX18: 0.6975653589 | AY18: 0.6920444092 | AZ18: 0.6918037103 | BA18: 0.6955635117 | BB18: 0.6922037291 | BC18: 0.6751342768 | BD18: 0.6891280849 | BE18: 0.707574189 | BF18: 0.6963308235 | BG18: 0.677270591 | BH18: 0.6463374325 | BI18: 0.6936917703 | BJ18: 0.6926889682 | BK18: 0.6870588881 | BL18: 0.6865566687 | BM18: 0.6980667168 | BN18: 0.6924157948 | BO18: 0.708619573 | BP18: 0.6691243705 | BQ18: 0.6883004186 | BR18: 0.6733687596 | BS18: 0.6996857181 | BT18: 0.7160883024 | BU18: 0.6865167196 | BV18: 0.7031012551 | BW18: 0.6758412874 | BX18: 0.6719111116 | BY18: 0.6929779829 | BZ18: 0.7157000715 | CA18: 0.6927729653 | CB18: 0.6509087764 | CC18: 0.6994192608 | CD18: 0.6991613082 | CE18: 0.701841095 | CF18: 0.6795905243 | CG18: 0.707051063 | CH18: 0.6977834669 | CI18: 0.6957176388
A19: 2005Q1 | B19: 1000 | C19: 1.16635078 | D19: 857.375 | E19: 0.9481348373 | F19: 0.6843006906 | G19: 1 | I19: 0.6845678103 | J19: 0.6463374149 | W19: 0.7060162781 | X19: 0.2421185592 | Y19: 0.004195939088 | Z19: 0.02259908131 | AA19: TRUE | AB19: 0.185668569 | AC19: 0.003416885082 | AD19: 0.7509700845 | AE19: -0.3210017996 | AF19: 17.27967831 | AG19: 24.47490071 | AH19: -0.2765053428 | AI19: -0.2838472582 | AJ19: 0.6929351204 | AL19: 0.6788417931 | AM19: 0.6920749116 | AN19: 0.7048283283 | AO19: 0.6801292388 | AP19: 0.646337437 | AQ19: 0.6907790331 | AR19: 0.6737282525 | AS19: 0.6922334055 | AT19: 0.6593417506 | AU19: 0.6919312791 | AV19: 0.6969060749 | AW19: 0.7086083789 | AX19: 0.6932134703 | AY19: 0.6860796888 | AZ19: 0.6854281383 | BA19: 0.6886906671 | BB19: 0.6848894591 | BC19: 0.6678830137 | BD19: 0.682641416 | BE19: 0.7051013014 | BF19: 0.6933820689 | BG19: 0.671848464 | BH19: 0.6463374341 | BI19: 0.6895199661 | BJ19: 0.6876011132 | BK19: 0.6797980307 | BL19: 0.6770145636 | BM19: 0.6955229915 | BN19: 0.686734707 | BO19: 0.7050109139 | BP19: 0.6573503048 | BQ19: 0.6829817339 | BR19: 0.6595982469 | BS19: 0.692287849 | BT19: 0.714719458 | BU19: 0.6792525891 | BV19: 0.6997436549 | BW19: 0.6644233992 | BX19: 0.6630031024 | BY19: 0.6867907966 | BZ19: 0.7164464839 | CA19: 0.6865271595 | CB19: 0.6380795835 | CC19: 0.6936929477 | CD19: 0.6926031336 | CE19: 0.7013522801 | CF19: 0.6700795023 | CG19: 0.7036441637 | CH19: 0.6904417133 | CI19: 0.6929351204
A20: 2005Q2 | B20: 1000 | C20: 1.227737663 | D20: 814.50625 | E20: 0.5222176659 | F20: 0.6843006906 | G20: 1 | I20: 0.6723714257 | J20: 0.6463374149 | W20: 0.7509700845 | X20: -0.2287524186 | Y20: 0.004327778671 | Z20: 0.02369950733 | AA20: TRUE | AB20: 0.1826104911 | AC20: 0.003537480883 | AD20: 0.709197493 | AE20: -0.1517702349 | AF20: 16.47734063 | AG20: 21.94140748 | AH20: 0.1599082897 | AI20: 0.1084813331 | AJ20: 0.6774638138 | AL20: 0.6712408251 | AM20: 0.6776774754 | AN20: 0.6911617722 | AO20: 0.6730774011 | AP20: 0.6463374306 | AQ20: 0.6767843682 | AR20: 0.6648401703 | AS20: 0.6777355139 | AT20: 0.657847349 | AU20: 0.6817931032 | AV20: 0.6801550784 | AW20: 0.7001805605 | AX20: 0.6801780424 | AY20: 0.6716618408 | AZ20: 0.67122256 | BA20: 0.6723939753 | BB20: 0.6661273044 | BC20: 0.6519612169 | BD20: 0.6761547472 | BE20: 0.6918423225 | BF20: 0.6804754527 | BG20: 0.666426337 | BH20: 0.6463374338 | BI20: 0.6749402348 | BJ20: 0.6714418999 | BK20: 0.6645300971 | BL20: 0.6674724584 | BM20: 0.6802167817 | BN20: 0.6692816658 | BO20: 0.6871672506 | BP20: 0.6455762392 | BQ20: 0.6689261221 | BR20: 0.6458277341 | BS20: 0.6751956072 | BT20: 0.7032589922 | BU20: 0.6640425441 | BV20: 0.6843935119 | BW20: 0.6530055109 | BX20: 0.6540950933 | BY20: 0.6734520582 | BZ20: 0.7085233236 | CA20: 0.6802813537 | CB20: 0.6252503905 | CC20: 0.679128932 | CD20: 0.6789897488 | CE20: 0.6906326968 | CF20: 0.6605684804 | CG20: 0.6903574733 | CH20: 0.6709389921 | CI20: 0.6774638138
A21: 2005Q3 | B21: 1000 | C21: 1.292355435 | D21: 773.7809375 | E21: 0.580957633 | F21: 0.6843006906 | G21: 1 | I21: 0.6637057404 | J21: 0.6463374149 | W21: 0.709197493 | X21: -0.12823986 | Y21: 0.004431332333 | Z21: 0.02482262566 | AA21: TRUE | AB21: 0.1785198872 | AC21: 0.003640251385 | AD21: 0.6863041277 | AE21: 0.597801814 | AF21: 15.73181099 | AG21: 22.18255302 | AH21: 0.7035650848 | AI21: 0.6861141451 | AJ21: 0.6694453408 | AL21: 0.6636398572 | AM21: 0.6679619027 | AN21: 0.6774952161 | AO21: 0.6660255633 | AP21: 0.6463374241 | AQ21: 0.6688002377 | AR21: 0.6559520882 | AS21: 0.6692460618 | AT21: 0.6563529473 | AU21: 0.6716549274 | AV21: 0.672551394 | AW21: 0.6917527421 | AX21: 0.6723361702 | AY21: 0.6619335241 | AZ21: 0.6613366807 | BA21: 0.6614305938 | BB21: 0.6534916117 | BC21: 0.6399986688 | BD21: 0.6696680783 | BE21: 0.6858146139 | BF21: 0.6675688365 | BG21: 0.66100421 | BH21: 0.6463374334 | BI21: 0.6663026193 | BJ21: 0.6614601649 | BK21: 0.6534122393 | BL21: 0.6579303533 | BM21: 0.6726288146 | BN21: 0.6582691605 | BO21: 0.6786513492 | BP21: 0.6389633673 | BQ21: 0.6595682973 | BR21: 0.6364518341 | BS21: 0.6637450828 | BT21: 0.6917985265 | BU21: 0.6529399034 | BV21: 0.676590219 | BW21: 0.6464281598 | BX21: 0.6451870841 | BY21: 0.664125911 | BZ21: 0.7006001633 | CA21: 0.674035548 | CB21: 0.6159242167 | CC21: 0.6698400647 | CD21: 0.6695746361 | CE21: 0.6799131135 | CF21: 0.6574292424 | CG21: 0.6770707829 | CH21: 0.6583100409 | CI21: 0.6694453408
A22: 2005Q4 | B22: 1000 | C22: 1.360374142 | D22: 735.0918906 | E22: 0.664953073 | F22: 0.6843006906 | G22: 1 | I22: 0.6574382426 | J22: 0.6463374149 | W22: 0.6863041277 | X22: -0.02135105461 | Y22: 0.004524476115 | Z22: 0.0259889954 | AA22: FALSE | AB22: 0 | AC22: 0.004524476115 | AD22: 0.6863041277 | AE22: 0.8973321135 | AF22: 15.02577722 | AG22: 21.89375907 | AH22: 0.8310129492 | AI22: 0.8419556113 | AJ22: 0.6653503059 | AL22: 0.6585454517 | AM22: 0.6606844993 | AN22: 0.6683923957 | AO22: 0.6589737256 | AP22: 0.6463374176 | AQ22: 0.6608161073 | AR22: 0.6497801162 | AS22: 0.663911185 | AT22: 0.6548585456 | AU22: 0.6635158873 | AV22: 0.6698275232 | AW22: 0.6874060463 | AX22: 0.6672856486 | AY22: 0.654569977 | AZ22: 0.6536261543 | BA22: 0.6531158391 | BB22: 0.640855919 | BC22: 0.6297340249 | BD22: 0.6659298014 | BE22: 0.6797869053 | BF22: 0.6578390838 | BG22: 0.6588728134 | BH22: 0.646337433 | BI22: 0.6607470108 | BJ22: 0.6545535 | BK22: 0.6442751236 | BL22: 0.6523551259 | BM22: 0.6691511694 | BN22: 0.6503985228 | BO22: 0.6751928829 | BP22: 0.6345758209 | BQ22: 0.6525540095 | BR22: 0.6289186912 | BS22: 0.6551351619 | BT22: 0.6847675967 | BU22: 0.6437888474 | BV22: 0.668786926 | BW22: 0.6420968964 | BX22: 0.6392596264 | BY22: 0.6568641661 | BZ22: 0.6967737044 | CA22: 0.6677897422 | CB22: 0.6077249087 | CC22: 0.6605511975 | CD22: 0.6623745209 | CE22: 0.6729881363 | CF22: 0.657534303 | CG22: 0.6674187391 | CH22: 0.6489829942 | CI22: 0.6653503059
A23: 2006Q1 | B23: 1000 | C23: 1.431972781 | D23: 698.3372961 | E23: 0.8149218248 | F23: 0.6323008984 | G23: 1 | I23: 0.6510226186 | J23: 0.6463374149 | W23: 0.6863041277 | X23: 0.1286176972 | Y23: 0.005408700845 | Z23: 0.02800293167 | AA23: TRUE | AB23: 0.1931476643 | AC23: 0.00436402291 | AD23: 0.7111463354 | AE23: 0.5734134283 | AF23: 13.94514187 | AG23: 20.31918695 | AH23: 0.3792838293 | AI23: 0.4113152131 | AJ23: 0.661255271 | AL23: 0.6532854052 | AM23: 0.6533186627 | AN23: 0.6594808136 | AO23: 0.6519218878 | AP23: 0.6463374108 | AQ23: 0.6527258568 | AR23: 0.6431278042 | AS23: 0.6585543067 | AT23: 0.6533641439 | AU23: 0.6553812033 | AV23: 0.6671036523 | AW23: 0.6830593505 | AX23: 0.662312091 | AY23: 0.6469492371 | AZ23: 0.6456564876 | BA23: 0.6448010844 | BB23: 0.6274195535 | BC23: 0.6194693811 | BD23: 0.6621915244 | BE23: 0.6743357285 | BF23: 0.6479189342 | BG23: 0.6565104802 | BH23: 0.6463374326 | BI23: 0.6551914022 | BJ23: 0.6473018538 | BK23: 0.6351380078 | BL23: 0.646201989 | BM23: 0.6658551158 | BN23: 0.6420058716 | BO23: 0.6717344165 | BP23: 0.6291167954 | BQ23: 0.6455397218 | BR23: 0.6203099709 | BS23: 0.6465252409 | BT23: 0.6784911693 | BU23: 0.6341486797 | BV23: 0.6609836331 | BW23: 0.6370419563 | BX23: 0.6322582772 | BY23: 0.6496024211 | BZ23: 0.6929472455 | CA23: 0.6615439364 | CB23: 0.5995256008 | CC23: 0.6511752968 | CD23: 0.6551351511 | CE23: 0.6660631591 | CF23: 0.6576393636 | CG23: 0.6577666952 | CH23: 0.6390702544 | CI23: 0.661255271
A24: 2006Q2 | B24: 1000 | C24: 1.50733977 | D24: 663.4204313 | E24: 0.5703255863 | F24: 0.6323008984 | G24: 1 | I24: 0.6412083928 | J24: 0.6463374149 | W24: 0.7111463354 | X24: -0.1408207492 | Y24: 0.005258684182 | Z24: 0.02904208505 | AA24: FALSE | AB24: 0 | AC24: 0.005258684182 | AD24: 0.7111463354 | AE24: 0.5091566831 | AF24: 13.44617146 | AG24: 18.90774203 | AH24: 0.6311848144 | AI24: 0.6110501727 | AJ24: 0.6510271847 | AL24: 0.6480253587 | AM24: 0.6419561068 | AN24: 0.6505692315 | AO24: 0.6391050177 | AP24: 0.6463374014 | AQ24: 0.6393553314 | AR24: 0.6310081064 | AS24: 0.6482166348 | AT24: 0.6514515193 | AU24: 0.6442042002 | AV24: 0.6572715685 | AW24: 0.6787126547 | AX24: 0.6531773339 | AY24: 0.6349991298 | AZ24: 0.6376868209 | BA24: 0.6315585937 | BB24: 0.6139831879 | BC24: 0.6092047373 | BD24: 0.6542177979 | BE24: 0.6638450131 | BF24: 0.6379987846 | BG24: 0.6482899004 | BH24: 0.6463374323 | BI24: 0.6444666209 | BJ24: 0.6343813922 | BK24: 0.6260008921 | BL24: 0.6323544673 | BM24: 0.6565719065 | BN24: 0.6336132205 | BO24: 0.6616105195 | BP24: 0.61728036 | BQ24: 0.6340417309 | BR24: 0.6117012507 | BS24: 0.6328066923 | BT24: 0.6674407648 | BU24: 0.6202415697 | BV24: 0.6471391731 | BW24: 0.6265089137 | BX24: 0.6252569279 | BY24: 0.6387004709 | BZ24: 0.6853889904 | CA24: 0.6505494307 | CB24: 0.5913262928 | CC24: 0.6372053987 | CD24: 0.6443688099 | CE24: 0.6591381819 | CF24: 0.6516834435 | CG24: 0.6429456556 | CH24: 0.6291575147 | CI24: 0.6510271847
A25: 2006Q3 | B25: 1000 | C25: 1.586673442 | D25: 630.2494097 | E25: 0.4528772903 | F25: 0.6323008984 | G25: 1 | I25: 0.6327153825 | J25: 0.6463374149 | W25: 0.7111463354 | X25: -0.2582690452 | Y25: 0.006153345454 | Z25: 0.03118850427 | AA25: FALSE | AB25: 0 | AC25: 0.006153345454 | AD25: 0.7111463354 | AE25: -0.2544364121 | AF25: 12.52079458 | AG25: 17.60649525 | AH25: 0.02735305694 | AI25: -0.01914220545 | AJ25: 0.6407990984 | AL25: 0.6427653123 | AM25: 0.6323417601 | AN25: 0.6448120229 | AO25: 0.6262881476 | AP25: 0.6463373919 | AQ25: 0.6282191379 | AR25: 0.6208109025 | AS25: 0.6402916751 | AT25: 0.6497394709 | AU25: 0.6330271971 | AV25: 0.6474394847 | AW25: 0.6743659589 | AX25: 0.6440425769 | AY25: 0.6247048873 | AZ25: 0.6297171542 | BA25: 0.6201080469 | BB25: 0.6021160813 | BC25: 0.5999280356 | BD25: 0.6462440715 | BE25: 0.6565965145 | BF25: 0.6301688434 | BG25: 0.6400693207 | BH25: 0.6463374319 | BI25: 0.6337418396 | BJ25: 0.6236065898 | BK25: 0.6181795808 | BL25: 0.6213063001 | BM25: 0.6506256674 | BN25: 0.627401566 | BO25: 0.6555816854 | BP25: 0.6070583935 | BQ25: 0.6225437399 | BR25: 0.6042778483 | BS25: 0.620995964 | BT25: 0.6596822947 | BU25: 0.6075483389 | BV25: 0.6332947131 | BW25: 0.6176811031 | BX25: 0.6203966635 | BY25: 0.6277985207 | BZ25: 0.6778307352 | CA25: 0.6420164068 | CB25: 0.5837323541 | CC25: 0.6251224982 | CD25: 0.6352122899 | CE25: 0.6522132047 | CF25: 0.6487388416 | CG25: 0.6305365361 | CH25: 0.6213749233 | CI25: 0.6407990984
A26: 2006Q4 | B26: 1000 | C26: 1.67018257 | D26: 598.7369392 | E26: 0.6768385004 | F26: 0.6323008984 | G26: 1 | I26: 0.6276989942 | J26: 0.6463374149 | W26: 0.7111463354 | X26: -0.03430783502 | Y26: 0.007048006726 | Z26: 0.03340080548 | AA26: TRUE | AB26: 0.2110130766 | AC26: 0.005560785142 | AD26: 0.7039069336 | AE26: 0.7630293505 | AF26: 11.69148018 | AG26: 16.44032964 | AH26: 0.679628939 | AI26: 0.6933900069 | AJ26: 0.630571012 | AL26: 0.6375052658 | AM26: 0.6267302132 | AN26: 0.64593075 | AO26: 0.6191456878 | AP26: 0.6463373824 | AQ26: 0.6222193566 | AR26: 0.6154218873 | AS26: 0.637692928 | AT26: 0.6480274226 | AU26: 0.6250408483 | AV26: 0.6460461447 | AW26: 0.6700192631 | AX26: 0.639647839 | AY26: 0.618414784 | AZ26: 0.625548764 | BA26: 0.6130446795 | BB26: 0.5949335906 | BC26: 0.5939303363 | BD26: 0.638270345 | BE26: 0.6493480159 | BF26: 0.6273082928 | BG26: 0.6381088034 | BH26: 0.6463374315 | BI26: 0.6283612652 | BJ26: 0.6180243939 | BK26: 0.6138849941 | BL26: 0.6171204878 | BM26: 0.6446794283 | BN26: 0.6266924885 | BO26: 0.6495528513 | BP26: 0.6016091467 | BQ26: 0.6151911856 | BR26: 0.6007774927 | BS26: 0.6138014637 | BT26: 0.6519238247 | BU26: 0.5982076872 | BV26: 0.6259644447 | BW26: 0.6134157772 | BX26: 0.621494751 | BY26: 0.6204537353 | BZ26: 0.6702724801 | CA26: 0.6386953861 | CB26: 0.5761384154 | CC26: 0.6174240759 | CD26: 0.6260557699 | CE26: 0.6512995798 | CF26: 0.6457942396 | CG26: 0.6234033899 | CH26: 0.6191299141 | CI26: 0.630571012
A27: 2007Q1 | B27: 1000 | C27: 1.758086916 | D27: 568.8000923 | E27: 0.4390733017 | F27: 0.6459064795 | G27: 1 | I27: 0.6218312927 | J27: 0.6463374149 | W27: 0.7039069336 | X27: -0.2648336319 | Y27: 0.006452430609 | Z27: 0.03419221877 | AA27: FALSE | AB27: 0 | AC27: 0.006452430609 | AD27: 0.7039069336 | AE27: -0.2566858759 | AF27: 11.42086911 | AG27: 16.22497032 | AH27: 0.02107535972 | AI27: -0.02475524416 | AJ27: 0.6188119456 | AL27: 0.6313640716 | AM27: 0.6211186663 | AN27: 0.6460163366 | AO27: 0.612003228 | AP27: 0.6463373725 | AQ27: 0.6162195753 | AR27: 0.6084119801 | AS27: 0.635094181 | AT27: 0.6462518477 | AU27: 0.6170544994 | AV27: 0.6434179241 | AW27: 0.6656725673 | AX27: 0.6344058158 | AY27: 0.6121246807 | AZ27: 0.6203667341 | BA27: 0.604456922 | BB27: 0.585406875 | BC27: 0.5862414613 | BD27: 0.6294164688 | BE27: 0.6412879742 | BF27: 0.6231581564 | BG27: 0.6349467562 | BH27: 0.646337431 | BI27: 0.6229806908 | BJ27: 0.6107916093 | BK27: 0.6095904073 | BL27: 0.6106791463 | BM27: 0.6376488163 | BN27: 0.625983411 | BO27: 0.6435240172 | BP27: 0.5961598999 | BQ27: 0.6064838031 | BR27: 0.5954411434 | BS27: 0.605028205 | BT27: 0.6434551373 | BU27: 0.5873313 | BV27: 0.6169901073 | BW27: 0.6075188262 | BX27: 0.6207485585 | BY27: 0.6120804952 | BZ27: 0.6625826912 | CA27: 0.6353743655 | CB27: 0.5685444768 | CC27: 0.6083520047 | CD27: 0.6168992499 | CE27: 0.6496738559 | CF27: 0.6418310325 | CG27: 0.6148312125 | CH27: 0.6151167017 | CI27: 0.6188119456
A28: 2007Q2 | B28: 1000 | C28: 1.850617806 | D28: 540.3600877 | E28: 0.8976710263 | F28: 0.6459064795 | G28: 1 | I28: 0.6188725279 | J28: 0.6463374149 | W28: 0.7039069336 | X28: 0.1937640927 | Y28: 0.007344076076 | Z28: 0.03654385309 | AA28: FALSE | AB28: 0 | AC28: 0.007344076076 | AD28: 0.7039069336 | AE28: 0.2219912435 | AF28: 10.6859245 | AG28: 15.18087689 | AH28: 0.02253459553 | AI28: 0.05544494246 | AJ28: 0.6070528791 | AL28: 0.6293836574 | AM28: 0.6190702055 | AN28: 0.6461019233 | AO28: 0.6096918679 | AP28: 0.6463373653 | AQ28: 0.6147456921 | AR28: 0.601402073 | AS28: 0.6373580573 | AT28: 0.6444762728 | AU28: 0.6118304025 | AV28: 0.6407897036 | AW28: 0.6613258714 | AX28: 0.6333992947 | AY28: 0.6093738573 | AZ28: 0.6185993469 | BA28: 0.5958691644 | BB28: 0.5799195376 | BC28: 0.5814493701 | BD28: 0.6249057864 | BE28: 0.6390418714 | BF28: 0.6235319867 | BG28: 0.6374898953 | BH28: 0.6463374305 | BI28: 0.6223059131 | BJ28: 0.6081516369 | BK28: 0.6084768405 | BL28: 0.6103641204 | BM28: 0.6306182043 | BN28: 0.6252743335 | BO28: 0.6450486273 | BP28: 0.5949569032 | BQ28: 0.6013516395 | BR28: 0.593689167 | BS28: 0.6002605779 | BT28: 0.6349864499 | BU28: 0.5793047301 | BV28: 0.6080157699 | BW28: 0.6057371546 | BX28: 0.620002366 | BY28: 0.6067911903 | BZ28: 0.6604401915 | CA28: 0.6320533449 | CB28: 0.5638606369 | CC28: 0.6030698367 | CD28: 0.6109733321 | CE28: 0.6535388756 | CF28: 0.6378678254 | CG28: 0.610817165 | CH28: 0.6161860486 | CI28: 0.6070528791
A29: 2007Q3 | B29: 1000 | C29: 1.948018743 | D29: 513.3420833 | E29: 0.468240782 | F29: 0.6459064795 | G29: 1 | I29: 0.6109050902 | J29: =J30 -> 0.6463374149 | W29: 0.7039069336 | X29: -0.2356661517 | Y29: 0.008235721543 | Z29: 0.03897232892 | AA29: TRUE | AB29: 0.2113222835 | AC29: 0.00649533006 | AD29: 0.6541054243 | AE29: -0.009024890275 | AF29: 10.02005438 | AG29: 14.23491359 | AH29: 0.2536913598 | AI29: 0.2103431785 | AJ29: 0.5952938127 | AL29: 0.6219130749 | AM29: 0.6118456966 | AN29: 0.6384012979 | AO29: 0.599771397 | AP29: 0.646337355 | AQ29: 0.6063972567 | AR29: 0.5871227838 | AS29: 0.6334633339 | AT29: 0.6421904346 | AU29: 0.602458523 | AV29: 0.6286085898 | AW29: 0.650866879 | AX29: 0.6269480498 | AY29: 0.6010300353 | AZ29: 0.6118392177 | BA29: 0.5872814069 | BB29: 0.5744322002 | BC29: 0.5766572789 | BD29: 0.620395104 | BE29: 0.629761257 | BF29: 0.6174803993 | BG29: 0.6328041382 | BH29: 0.6463374289 | BI29: 0.6149312394 | BJ29: 0.5981475034 | BK29: 0.6022264538 | BL29: 0.6002511 | BM29: 0.6151495123 | BN29: 0.6171557903 | BO29: 0.6377117007 | BP29: 0.5859390107 | BQ29: 0.5902594461 | BR29: 0.5852881195 | BS29: 0.5954929508 | BT29: 0.6193407154 | BU29: 0.5712781602 | BV29: 0.5990414325 | BW29: 0.5971588716 | BX29: 0.6106452082 | BY29: 0.5966278105 | BZ29: 0.6527552633 | CA29: 0.6224846641 | CB29: 0.559176797 | CC29: 0.5977876688 | CD29: 0.6001839804 | CE29: 0.6513440967 | CF29: 0.6259909742 | CG29: 0.5997628369 | CH29: 0.609486254 | CI29: 0.5952938127
A30: 2007Q4 | B30: 1000 | C30: 2.050546046 | D30: 487.6749791 | E30: 0.7951995548 | F30: 0.6459064795 | G30: 1 | I30: 0.6051407579 | J30: =J31 -> 0.6463374149 | W30: 0.6541054243 | X30: 0.1410941305 | Y30: 0.007365643987 | Z30: 0.03971996754 | AA30: TRUE | AB30: 0.1854393254 | AC30: 0.005999763935 | AD30: 0.6802698247 | AE30: 0.4434132796 | AF30: 9.831449501 | AG30: 15.03037452 | AH30: 0.2441694574 | AI30: 0.2770446881 | AJ30: 0.5874136027 | AL30: 0.6144424924 | AM30: 0.60719604 | AN30: 0.6307006724 | AO30: 0.5898509261 | AP30: 0.6463373468 | AQ30: 0.6012962667 | AR30: 0.5757461204 | AS30: 0.6295686105 | AT30: 0.6399045964 | AU30: 0.5949967888 | AV30: 0.6221938948 | AW30: 0.6449858708 | AX30: 0.6236361017 | AY30: 0.595185003 | AZ30: 0.6075566049 | BA30: 0.5786936494 | BB30: 0.5715232686 | BC30: 0.5737498455 | BD30: 0.6158844216 | BE30: 0.6204806426 | BF30: 0.614791042 | BG30: 0.6325003129 | BH30: 0.6463374273 | BI30: 0.61099935 | BJ30: 0.5913513793 | BK30: 0.5982755087 | BL30: 0.5901380796 | BM30: 0.604244813 | BN30: 0.6129504819 | BO30: 0.6360796292 | BP30: 0.5798803398 | BQ30: 0.5815777587 | BR30: 0.5793761506 | BS30: 0.593428132 | BT30: 0.6077739937 | BU30: 0.5650160053 | BV30: 0.5938014541 | BW30: 0.5885805885 | BX30: 0.6055631187 | BY30: 0.5885722244 | BZ30: 0.6450703351 | CA30: 0.6164377693 | CB30: 0.5562801106 | CC30: 0.5925055009 | CD30: 0.5915972183 | CE30: 0.6491493177 | CF30: 0.6187767097 | CG30: 0.5918539208 | CH30: 0.6027864594 | CI30: 0.5874136027
A31: 2008Q1 | B31: 1000 | C31: 2.125509264 | D31: 470.475484 | E31: 0.3883896884 | F31: 0.4794202166 | G31: 1 | I31: 0.5969396307 | J31: 0.6463374149 | W31: 0.6802698247 | X31: -0.2918801363 | Y31: 0.006881415482 | Z31: 0.04041853824 | AA31: TRUE | AB31: 0.1702539424 | AC31: 0.005709827367 | AD31: 0.6305760808 | AE31: -0.368602929 | AF31: 9.661528398 | AG31: 14.20249443 | AH31: -0.1174093641 | AI31: -0.1588563023 | AJ31: 0.5737685939 | AL31: 0.6035723827 | AM31: 0.5993844229 | AN31: 0.623000047 | AO31: 0.5799304553 | AP31: 0.646337337 | AQ31: 0.5961952767 | AR31: 0.5643694569 | AS31: 0.6220369245 | AT31: 0.6373352454 | AU31: 0.5849219774 | AV31: 0.6099961616 | AW31: 0.6356631501 | AX31: 0.6171269956 | AY31: 0.5893399707 | AZ31: 0.6002336575 | BA31: 0.5701058919 | BB31: 0.568614337 | BC31: 0.5708424121 | BD31: 0.6079321341 | BE31: 0.6068317428 | BF31: 0.6082613228 | BG31: 0.6280937093 | BH31: 0.6463374252 | BI31: 0.6030050148 | BJ31: 0.5798489859 | BK31: 0.5911480714 | BL31: 0.5800250591 | BM31: 0.5933401137 | BN31: 0.6042586243 | BO31: 0.629401694 | BP31: 0.5738216688 | BQ31: 0.5728960714 | BR31: 0.5691633838 | BS31: 0.5873007355 | BT31: 0.5916439563 | BU31: 0.5587538503 | BV31: 0.5832186052 | BW31: 0.5800023055 | BX31: 0.5951484877 | BY31: 0.5805166383 | BZ31: 0.6341757781 | CA31: 0.6066157261 | CB31: 0.5489487491 | CC31: 0.5833716864 | CD31: 0.5799049913 | CE31: 0.6435822271 | CF31: 0.6115624451 | CG31: 0.5839450046 | CH31: 0.5911506314 | CI31: 0.5737685939
A32: 2008Q2 | B32: 1000 | C32: 2.207171869 | D32: 453.0684782 | E32: 0.6453306112 | F32: 0.4794202166 | G32: 1 | I32: 0.5915539803 | J32: 0.6463374149 | W32: 0.6305760808 | X32: 0.01475453047 | Y32: 0.006569683015 | Z32: 0.04139531054 | AA32: TRUE | AB32: 0.1587059725 | AC32: 0.005527035083 | AD32: 0.6329177129 | AE32: 0.6707258265 | AF32: 9.43355298 | AG32: 14.96021379 | AH32: 0.6298171694 | AI32: 0.6365670978 | AJ32: 0.5652138276 | AL32: 0.5966847871 | AM32: 0.595021359 | AN32: 0.6152994216 | AO32: 0.5745303078 | AP32: 0.6463373271 | AQ32: 0.5910942868 | AR32: 0.5567864996 | AS32: 0.6145052384 | AT32: 0.6352073595 | AU32: 0.5773876528 | AV32: 0.6049805469 | AW32: 0.6263404293 | AX32: 0.6147324319 | AY32: 0.5834949384 | AZ32: 0.5962432095 | BA32: 0.565038797 | BB32: 0.5695893129 | BC32: 0.5707624201 | BD32: 0.5999798465 | BE32: 0.598558018 | BF32: 0.6062484455 | BG32: 0.6236871057 | BH32: 0.6463374231 | BI32: 0.5995934945 | BJ32: 0.5726749667 | BK32: 0.5840206341 | BL32: 0.5757123966 | BM32: 0.5880108692 | BN32: 0.5955667668 | BO32: 0.6300516352 | BP32: 0.5718966538 | BQ32: 0.5674541007 | BR32: 0.5624821158 | BS32: 0.5811733389 | BT32: 0.5804500276 | BU32: 0.5550895284 | BV32: 0.5776819005 | BW32: 0.5753849009 | BX32: 0.5903798176 | BY32: 0.575272209 | BZ32: 0.6232812211 | CA32: 0.5967936828 | CB32: 0.5445381735 | CC32: 0.577862721 | CD32: 0.5711174971 | CE32: 0.6380151365 | CF32: 0.6043481806 | CG32: 0.580186777 | CH32: 0.5845992747 | CI32: 0.5652138276
A33: 2008Q3 | B33: 1000 | C33: 2.296296479 | D33: 435.4838362 | E33: 0.4055815438 | F33: 0.4794202166 | G33: 1 | I33: 0.5855099965 | J33: 0.6463374149 | W33: 0.6329177129 | X33: -0.2273361691 | Y33: 0.006387943132 | Z33: 0.04261981387 | AA33: FALSE | AB33: 0 | AC33: 0.006387943132 | AD33: 0.6329177129 | AE33: 0.05246836098 | AF33: 9.162519016 | AG33: 14.47663548 | AH33: 0.2955365962 | AI33: 0.2554303374 | AJ33: 0.5546680614 | AL33: 0.5889851533 | AM33: 0.5898904562 | AN33: 0.6068563928 | AO33: 0.5691301602 | AP33: 0.6463373172 | AQ33: 0.5849051899 | AR33: 0.5492035423 | AS33: 0.6063726586 | AT33: 0.6330794736 | AU33: 0.5698533281 | AV33: 0.5999649322 | AW33: 0.6166726136 | AX33: 0.6123378683 | AY33: 0.5766632276 | AZ33: 0.5922527615 | BA33: 0.5585465484 | BB33: 0.5705642889 | BC33: 0.5706824281 | BD33: 0.592027559 | BE33: 0.5892499031 | BF33: 0.603477279 | BG33: 0.6187783356 | BH33: 0.6463374209 | BI33: 0.5961819742 | BJ33: 0.5639804955 | BK33: 0.5768931968 | BL33: 0.5694403857 | BM33: 0.5812439948 | BN33: 0.5857665891 | BO33: 0.6302639345 | BP33: 0.5699716388 | BQ33: 0.5607437468 | BR33: 0.5558008478 | BS33: 0.5738482801 | BT33: 0.567861453 | BU33: 0.5501317214 | BV33: 0.5721451958 | BW33: 0.5694233462 | BX33: 0.5856111475 | BY33: 0.5690783772 | BZ33: 0.6120180905 | CA33: 0.5869716395 | CB33: 0.5384123306 | CC33: 0.5711944087 | CD33: 0.5613178186 | CE33: 0.6324480458 | CF33: 0.5961369524 | CG33: 0.5751325234 | CH33: 0.5766447901 | CI33: 0.5546680614
A34: 2008Q4 | B34: 1000 | C34: 2.393753123 | D34: 417.7540241 | E34: 0.4789759607 | F34: 0.4794202166 | G34: 1 | I34: 0.5816012796 | J34: 0.6463374149 | W34: 0.6329177129 | X34: -0.1539417521 | Y34: 0.007248851181 | Z34: 0.04501843126 | AA34: TRUE | AB34: 0.1610196308 | AC34: 0.00608164384 | AD34: 0.6081300688 | AE34: 0.3681991039 | AF34: 8.674332805 | AG34: 13.70530897 | AH34: 0.5801172887 | AI34: 0.5451507882 | AJ34: 0.5441222952 | AL34: 0.5843231637 | AM34: 0.5874821552 | AN34: 0.598413364 | AO34: 0.567137111 | AP34: 0.6463373098 | AQ34: 0.5822134618 | AR34: 0.5443946649 | AS34: 0.5982400787 | AT34: 0.6313227778 | AU34: 0.5623190035 | AV34: 0.6005286086 | AW34: 0.607004798 | AX34: 0.6099433047 | AY34: 0.57251726 | AZ34: 0.5909069483 | BA34: 0.5547073119 | BB34: 0.5715392648 | BC34: 0.5729036921 | BD34: 0.5873352738 | BE34: 0.5799417883 | BF34: 0.6043683037 | BG34: 0.6138695655 | BH34: 0.6463374188 | BI34: 0.5927704538 | BJ34: 0.5585302177 | BK34: 0.5722796893 | BL34: 0.5676015449 | BM34: 0.5787365846 | BN34: 0.5799914163 | BO34: 0.6304762339 | BP34: 0.5680466238 | BQ34: 0.556500414 | BR34: 0.5517683363 | BS34: 0.5695996923 | BT34: 0.5588155215 | BU34: 0.547180891 | BV34: 0.5666084911 | BW34: 0.5665098479 | BX34: 0.5852222825 | BY34: 0.5650515754 | BZ34: 0.6047719215 | CA34: 0.5806605287 | CB34: 0.5344868072 | CC34: 0.5673016269 | CD34: 0.5536645313 | CE34: 0.6268809552 | CF34: 0.5925346749 | CG34: 0.5733234883 | CH34: 0.572540705 | CI34: 0.5441222952
A35: 2009Q1 | B35: 1000 | C35: 2.500537235 | D35: 399.9140609 | E35: 0.4684831595 | F35: 0.5495267003 | G35: 1 | I35: 0.5788339261 | J35: 0.6463374149 | W35: 0.6081300688 | X35: -0.1396469092 | Y35: 0.006931276138 | Z35: 0.046385738 | AA35: TRUE | AB35: 0.1494268807 | AC35: 0.005895557165 | AD35: 0.5872630667 | AE35: 0.4062355941 | AF35: 8.418640554 | AG35: 13.84348676 | AH35: 0.6315192565 | AI35: 0.5943474522 | AJ35: 0.5351801287 | AL35: 0.5812959762 | AM35: 0.5850738542 | AN35: 0.5899703352 | AO35: 0.5668513284 | AP35: 0.6463373039 | AQ35: 0.5814002491 | AR35: 0.5407719546 | AS35: 0.5924079815 | AT35: 0.6298033212 | AU35: 0.5557489825 | AV35: 0.601092285 | AW35: 0.5999286093 | AX35: 0.609589798 | AY35: 0.5697478877 | AZ35: 0.5910493811 | BA35: 0.5520990369 | BB35: 0.5725142407 | BC35: 0.5763621371 | BD35: 0.584396579 | BE35: 0.5728068061 | BF35: 0.6052593284 | BG35: 0.6118973631 | BH35: 0.6463374172 | BI35: 0.5914614786 | BJ35: 0.5546135242 | BK35: 0.5676661818 | BL35: 0.5657627041 | BM35: 0.5784850715 | BN35: 0.5763192075 | BO35: 0.6306885332 | BP35: 0.5678374082 | BQ35: 0.5534182239 | BR35: 0.5489432033 | BS35: 0.5669036315 | BT35: 0.5514146495 | BU35: 0.5442300607 | BV35: 0.563038591 | BW35: 0.5635963497 | BX35: 0.5848334175 | BY35: 0.5621004866 | BZ35: 0.5975257525 | CA35: 0.5761777574 | CB35: 0.5305612838 | CC35: 0.5647991374 | CD35: 0.5469920845 | CE35: 0.6213138645 | CF35: 0.59147655 | CG35: 0.5732077274 | CH35: 0.5704071403 | CI35: 0.5351801287
A36: 2009Q2 | B36: 1000 | C36: 2.617791132 | D36: 382.0014468 | E36: 0.9284388683 | F36: 0.5495267003 | G36: 1 | I36: 0.5773848077 | J36: 0.6463374149 | W36: 0.5872630667 | X36: 0.3411758016 | Y36: 0.00673545597 | Z36: 0.04803999603 | AA36: FALSE | AB36: 0 | AC36: 0.00673545597 | AD36: 0.5872630667 | AE36: -0.61257803 | AF36: 8.128744532 | AG36: 13.84174315 | AH36: -0.8064765051 | AI36: -0.7744832567 | AJ36: 0.5277602368 | AL36: 0.579912831 | AM36: 0.5842158731 | AN36: 0.5844168492 | AO36: 0.5683558265 | AP36: 0.646337298 | AQ36: 0.5825175421 | AR36: 0.5371492444 | AS36: 0.5887925992 | AT36: 0.6285230713 | AU36: 0.5501229347 | AV36: 0.6016559614 | AW36: 0.5953031823 | AX36: 0.6112983464 | AY36: 0.5683789986 | AZ36: 0.5927288029 | BA36: 0.5494907619 | BB36: 0.5734892166 | BC36: 0.5811688892 | BD36: 0.5832069486 | BE36: 0.5677589163 | BF36: 0.6061503532 | BG36: 0.6128327976 | BH36: 0.6463374162 | BI36: 0.5901525033 | BJ36: 0.5506968307 | BK36: 0.5643613311 | BL36: 0.5662724129 | BM36: 0.5805712165 | BN36: 0.5747473372 | BO36: 0.6349465913 | BP36: 0.5694260956 | BQ36: 0.5515346569 | BR36: 0.5473751459 | BS36: 0.5642075707 | BT36: 0.5440137776 | BU36: 0.5422303026 | BV36: 0.5614430196 | BW36: 0.5622713891 | BX36: 0.5869679272 | BY36: 0.5602524155 | BZ36: 0.5925233875 | CA36: 0.5734994945 | CB36: 0.5275676543 | CC36: 0.5637239141 | CD36: 0.5403196377 | CE36: 0.6186746551 | CF36: 0.5904184251 | CG36: 0.5748642197 | CH36: 0.5682735757 | CI36: 0.5277602368
A37: 2009Q3 | B37: 1000 | C37: 2.746829746 | D37: 364.0560546 | E37: 0.2552742205 | F37: 0.5495267003 | G37: 1 | I37: 0.5721983256 | J37: 0.6463374149 | W37: 0.5872630667 | X37: -0.3319888463 | Y37: 0.007575354774 | Z37: 0.05091591693 | AA37: TRUE | AB37: 0.1487816626 | AC37: 0.006448280896 | AD37: 0.5378692142 | AE37: -0.512487969 | AF37: 7.669602721 | AG37: 13.05990987 | AH37: -0.5998149298 | AI37: -0.5854059812 | AJ37: 0.5203403448 | AL37: 0.573632517 | AM37: 0.5789425394 | AN37: 0.5711971946 | AO37: 0.5634714069 | AP37: 0.6463372922 | AQ37: 0.5778965901 | AR37: 0.5335265341 | AS37: 0.5793775479 | AT37: 0.6268189015 | AU37: 0.5444968869 | AV37: 0.5939030547 | AW37: 0.5847909029 | AX37: 0.6085302367 | AY37: 0.5622029019 | AZ37: 0.590337093 | BA37: 0.5468824868 | BB37: 0.5681496611 | BC37: 0.5817910849 | BD37: 0.5769937451 | BE37: 0.5627110265 | BF37: 0.6017636648 | BG37: 0.6075872597 | BH37: 0.6463374143 | BI37: 0.5830624342 | BJ37: 0.5467801373 | BK37: 0.5564743922 | BL37: 0.5667821217 | BM37: 0.5754678323 | BN37: 0.5731754668 | BO37: 0.6321295108 | BP37: 0.571014783 | BQ37: 0.5445139411 | BR37: 0.5458070886 | BS37: 0.5557481384 | BT37: 0.5366129056 | BU37: 0.5402305445 | BV37: 0.5524253039 | BW37: 0.5550277015 | BX37: 0.5818933642 | BY37: 0.5542247903 | BZ37: 0.5819996297 | CA37: 0.5651098345 | CB37: 0.5245740248 | CC37: 0.5626486908 | CD37: 0.5336471909 | CE37: 0.6103951393 | CF37: 0.5823393066 | CG37: 0.5707091797 | CH37: 0.559104539 | CI37: 0.5203403448
A38: 2009Q4 | B38: 1000 | C38: 2.889171545 | D38: 346.1199809 | E38: 0.534473689 | F38: 0.5495267003 | G38: 1 | I38: 0.5702333906 | J38: 0.6463374149 | W38: 0.5378692142 | X38: -0.003395525261 | Y38: 0.007264178171 | Z38: 0.05285066532 | AA38: TRUE | AB38: 0.1374472417 | AC38: 0.006265736918 | AD38: 0.5374025086 | AE38: 0.5510948786 | AF38: 7.388835177 | AG38: 13.73723385 | AH38: 0.6961000095 | AI38: 0.6721741629 | AJ38: 0.518122427 | AL38: 0.5716340531 | AM38: 0.5776380292 | AN38: 0.5647881653 | AO38: 0.5585869873 | AP38: 0.6463372896 | AQ38: 0.5783885211 | AR38: 0.5341321933 | AS38: 0.5752759534 | AT38: 0.6256161208 | AU38: 0.541601256 | AV38: 0.5943649076 | AW38: 0.5798771235 | AX38: 0.605762127 | AY38: 0.5599561311 | AZ38: 0.5879453831 | BA38: 0.5482615284 | BB38: 0.5681448975 | BC38: 0.5824132807 | BD38: 0.5707805416 | BE38: 0.5630251921 | BF38: 0.6027795963 | BG38: 0.6023417217 | BH38: 0.6463374124 | BI38: 0.5813296532 | BJ38: 0.5475992044 | BK38: 0.552242749 | BL38: 0.5672918306 | BM38: 0.5766894474 | BN38: 0.5716035965 | BO38: 0.6293124303 | BP38: 0.5726034705 | BQ38: 0.5412859573 | BR38: 0.5442390312 | BS38: 0.5518660877 | BT38: 0.5340569377 | BU38: 0.5413926106 | BV38: 0.5491906867 | BW38: 0.5524385568 | BX38: 0.5768188013 | BY38: 0.5514556628 | BZ38: 0.5766482042 | CA38: 0.5615108761 | CB38: 0.5251323087 | CC38: 0.5615734676 | CD38: 0.5300444544 | CE38: 0.6082814632 | CF38: 0.5807561388 | CG38: 0.5665541397 | CH38: 0.555640923 | CI38: 0.518122427
A39: 2010Q1 | B39: 1000 | C39: 3.046575851 | D39: 328.2373553 | E39: 0.7243912821 | F39: 0.6818286597 | G39: 1 | I39: 0.5686072883 | J39: 0.6463374149 | W39: 0.5374025086 | X39: 0.1869887735 | Y39: 0.007081400502 | Z39: 0.05515147483 | AA39: TRUE | AB39: 0.128399114 | AC39: 0.006172154952 | AD39: 0.5614117015 | AE39: 0.2129085466 | AF39: 7.080587713 | AG39: 13.17557622 | AH39: 0.02086970526 | AI39: 0.05255611409 | AJ39: 0.5156125769 | AL39: 0.5701009761 | AM39: 0.5768255578 | AN39: 0.5589986853 | AO39: 0.5537025677 | AP39: 0.6463372879 | AQ39: 0.5788804521 | AR39: 0.5347378525 | AS39: 0.5711743588 | AT39: 0.62452978 | AU39: 0.538705625 | AV39: 0.5961538632 | AW39: 0.5756836205 | AX39: 0.6029940173 | AY39: 0.5580146154 | AZ39: 0.5861539151 | BA39: 0.5498169937 | BB39: 0.5686672709 | BC39: 0.5830354765 | BD39: 0.5650812109 | BE39: 0.5637991186 | BF39: 0.6037955278 | BG39: 0.598337148 | BH39: 0.6463374109 | BI39: 0.5803029234 | BJ39: 0.5484182716 | BK39: 0.5482207233 | BL39: 0.5678015394 | BM39: 0.5786832062 | BN39: 0.5706507005 | BO39: 0.6286088562 | BP39: 0.5741921579 | BQ39: 0.5380579734 | BR39: 0.5428036828 | BS39: 0.5482370431 | BT39: 0.5314991048 | BU39: 0.5426272073 | BV39: 0.5462258698 | BW39: 0.5498494121 | BX39: 0.5725906609 | BY39: 0.5488624665 | BZ39: 0.5719246872 | CA39: 0.5583045998 | CB39: 0.5256905927 | CC39: 0.5604982443 | CD39: 0.5264050823 | CE39: 0.6073411678 | CF39: 0.5800182173 | CG39: 0.56289681 | CH39: 0.5521773071 | CI39: 0.5156125769
A40: 2010Q2 | B40: 1000 | C40: 3.221088039 | D40: 310.4541037 | E40: 0.8632030924 | F40: 0.6818286597 | G40: 1 | I40: 0.565586332 | J40: 0.6463374149 | W40: 0.5614117015 | X40: 0.3017913909 | Y40: 0.006999668395 | Z40: 0.05782326478 | AA40: FALSE | AB40: 0 | AC40: 0.006999668395 | AD40: 0.5614117015 | AE40: -0.2813118483 | AF40: 6.753421076 | AG40: 12.02935574 | AH40: -0.5542038291 | AI40: -0.5091766522 | AJ40: 0.5094721946 | AL40: 0.566734529 | AM40: 0.5744131952 | AN40: 0.5501524569 | AO40: 0.5488181481 | AP40: 0.6463372856 | AQ40: 0.5773210849 | AR40: 0.5353435117 | AS40: 0.5670727643 | AT40: 0.6233232035 | AU40: 0.5358099941 | AV40: 0.5952331828 | AW40: 0.5714901174 | AX40: 0.5987177098 | AY40: 0.5560730996 | AZ40: 0.5828958735 | BA40: 0.5513724589 | BB40: 0.566856158 | BC40: 0.5821421348 | BD40: 0.5593818802 | BE40: 0.5620974592 | BF40: 0.6031454754 | BG40: 0.5921840915 | BH40: 0.6463374091 | BI40: 0.5792761935 | BJ40: 0.5466895555 | BK40: 0.5423278336 | BL40: 0.5651918407 | BM40: 0.5781342787 | BN40: 0.5672576645 | BO40: 0.6279052822 | BP40: 0.573542578 | BQ40: 0.5326594546 | BR40: 0.5413683344 | BS40: 0.5446079984 | BT40: 0.5289412718 | BU40: 0.542059757 | BV40: 0.540213773 | BW40: 0.5472602674 | BX40: 0.5683625205 | BY40: 0.5445747685 | BZ40: 0.5651084967 | CA40: 0.5528448761 | CB40: 0.5239042136 | CC40: 0.5574237138 | CD40: 0.5227657102 | CE40: 0.6046382405 | CF40: 0.5767695205 | CG40: 0.5569059171 | CH40: 0.5458571222 | CI40: 0.5094721946
A41: 2010Q3 | B41: 1000 | C41: 3.415094494 | D41: 292.8176664 | E41: 0.5956380985 | F41: 0.6818286597 | G41: 1 | I41: 0.5598097429 | J41: 0.6463374149 | W41: 0.5614117015 | X41: 0.03422639704 | Y41: 0.007827181838 | Z41: 0.06171188852 | AA41: FALSE | AB41: 0 | AC41: 0.007827181838 | AD41: 0.5614117015 | AE41: 0.4642095561 | AF41: 6.327870762 | AG41: 11.27135531 | AH41: 0.4972046689 | AI41: 0.4917604753 | AJ41: 0.5033318122 | AL41: 0.5599674487 | AM41: 0.5689806738 | AN41: 0.5413062286 | AO41: 0.5391826669 | AP41: 0.6463372817 | AQ41: 0.57185214 | AR41: 0.5316985535 | AS41: 0.5588822285 | AT41: 0.622116627 | AU41: 0.5329143631 | AV41: 0.5887979611 | AW41: 0.5631786377 | AX41: 0.5912752609 | AY41: 0.550812672 | AZ41: 0.5767736866 | BA41: 0.5493045328 | BB41: 0.5607216567 | BC41: 0.5783298797 | BD41: 0.5499969681 | BE41: 0.5558773557 | BF41: 0.5990160467 | BG41: 0.581572267 | BH41: 0.6463374068 | BI41: 0.574365121 | BJ41: 0.540480946 | BK41: 0.536434944 | BL41: 0.5567606794 | BM41: 0.5727461707 | BN41: 0.5593043652 | BO41: 0.6272017081 | BP41: 0.568663875 | BQ41: 0.5272609357 | BR41: 0.5359884198 | BS41: 0.536904922 | BT41: 0.5215260434 | BU41: 0.5383940784 | BV41: 0.5342016763 | BW41: 0.5405103476 | BX41: 0.5588873688 | BY41: 0.5373196136 | BZ41: 0.5582923062 | CA41: 0.5473851525 | CB41: 0.5221178344 | CC41: 0.5507300279 | CD41: 0.5191263381 | CE41: 0.5981772237 | CF41: 0.5686907307 | CG41: 0.5509150241 | CH41: 0.5395369373 | CI41: 0.5033318122
A42: 2010Q4 | B42: 1000 | C42: 3.631389731 | D42: 275.3766668 | E42: 0.5182673781 | F42: 0.6818286597 | G42: 1 | I42: 0.553698447 | J42: 0.6463374149 | W42: 0.5614117015 | X42: -0.04314432338 | Y42: 0.00865469528 | Z42: 0.06595219345 | AA42: TRUE | AB42: 0.1312267997 | AC42: 0.007518967316 | AD42: 0.55575001 | AE42: 0.426362053 | AF42: 5.921029076 | AG42: 10.54667913 | AH42: 0.5950844998 | AI42: 0.5672452961 | AJ42: 0.4971914299 | AL42: 0.5528286834 | AM42: 0.5632947485 | AN42: 0.5315977977 | AO42: 0.5287912065 | AP42: 0.6463372782 | AQ42: 0.566383195 | AR42: 0.5272617118 | AS42: 0.55024585 | AT42: 0.6209100505 | AU42: 0.5295585628 | AV42: 0.5822485032 | AW42: 0.5544656415 | AX42: 0.58381274 | AY42: 0.5451024135 | AZ42: 0.5704847413 | BA42: 0.5472366067 | BB42: 0.5541192799 | BC42: 0.5743539655 | BD42: 0.5406120561 | BE42: 0.5491040013 | BF42: 0.5949389261 | BG42: 0.5707922334 | BH42: 0.6463374046 | BI42: 0.5691893941 | BJ42: 0.5335436676 | BK42: 0.5299926281 | BL42: 0.547646247 | BM42: 0.5669985365 | BN42: 0.5508476146 | BO42: 0.6270858985 | BP42: 0.5634232567 | BQ42: 0.5218624168 | BR42: 0.529923571 | BS42: 0.5292018456 | BT42: 0.5131061781 | BU42: 0.5347283998 | BV42: 0.5272589696 | BW42: 0.5330910777 | BX42: 0.5488386535 | BY42: 0.529566554 | BZ42: 0.5510386487 | CA42: 0.5413504611 | CB42: 0.5203314553 | CC42: 0.5435530832 | CD42: 0.5148335927 | CE42: 0.5917162068 | CF42: 0.5602076363 | CG42: 0.544360578 | CH42: 0.5332167524 | CI42: 0.4971914299
A43: 2011Q1 | B43: 1000 | C43: 3.873258692 | D43: 258.1805347 | E43: 0.2926426277 | F43: 0.3789442724 | G43: 1 | I43: 0.5478391889 | J43: 0.6463374149 | W43: 0.55575001 | X43: -0.2631073823 | Y43: 0.008343717468 | Z43: 0.06945751942 | AA43: TRUE | AB43: 0.1201269141 | AC43: 0.007341412436 | AD43: 0.5241437321 | AE43: -0.08374829673 | AF43: 5.622211365 | AG43: 10.11643952 | AH43: 0.2142328638 | AI43: 0.1650659723 | AJ43: 0.4907681811 | AL43: 0.5456899182 | AM43: 0.5580453622 | AN43: 0.5221560102 | AO43: 0.5186126485 | AP43: 0.6463372755 | AQ43: 0.5609142501 | AR43: 0.5228248702 | AS43: 0.5420491093 | AT43: 0.6198079873 | AU43: 0.5262027624 | AV43: 0.5768991438 | AW43: 0.5462513434 | AX43: 0.5770797285 | AY43: 0.5393921551 | AZ43: 0.5641957959 | BA43: 0.5454764317 | BB43: 0.5480107696 | BC43: 0.5703780513 | BD43: 0.531532049 | BE43: 0.5423306469 | BF43: 0.5908618056 | BG43: 0.5600121999 | BH43: 0.6463374027 | BI43: 0.5640136672 | BJ43: 0.5268285955 | BK43: 0.5236796126 | BL43: 0.5385318146 | BM43: 0.5620093021 | BN43: 0.5428791348 | BO43: 0.6288534036 | BP43: 0.5587929953 | BQ43: 0.5165198585 | BR43: 0.5240102271 | BS43: 0.5216631039 | BT43: 0.5046598419 | BU43: 0.5310627213 | BV43: 0.5204753779 | BW43: 0.5256718078 | BX43: 0.5393367178 | BY43: 0.5219342322 | BZ43: 0.5441957287 | CA43: 0.5353157697 | CB43: 0.5185687109 | CC43: 0.5366745406 | CD43: 0.5105408472 | CE43: 0.5862367552 | CF43: 0.5523936067 | CG43: 0.5378061318 | CH43: 0.5271390431 | CI43: 0.4907681811
A44: 2011Q2 | B44: 1000 | C44: 4.144578114 | D44: 241.2790814 | E44: 0.2120110014 | F44: 0.3789442724 | G44: 1 | I44: 0.5438578651 | J44: 0.6463374149 | W44: 0.5241437321 | X44: -0.3121327306 | Y44: 0.008150379438 | Z44: 0.07354516616 | AA44: FALSE | AB44: 0 | AC44: 0.008150379438 | AD44: 0.5241437321 | AE44: -0.2763713605 | AF44: 5.309728368 | AG44: 10.13029069 | AH44: -0.1927145149 | AI44: -0.2065178944 | AJ44: 0.4870904529 | AL44: 0.5410048985 | AM44: 0.5551085134 | AN44: 0.5160928456 | AO44: 0.5113331317 | AP44: 0.6463372728 | AQ44: 0.5585248927 | AR44: 0.5209209202 | AS44: 0.5367388433 | AT44: 0.619015794 | AU44: 0.5243758982 | AV44: 0.576362024 | AW44: 0.5410333054 | AX44: 0.5703467171 | AY44: 0.5336818966 | AZ44: 0.5602408703 | BA44: 0.5437162568 | BB44: 0.5450083811 | BC44: 0.5664021371 | BD44: 0.5249153888 | BE44: 0.5387182556 | BF44: 0.586784685 | BG44: 0.5529612171 | BH44: 0.6463374015 | BI44: 0.5619462684 | BJ44: 0.5229018778 | BK44: 0.5173665971 | BL44: 0.5334863043 | BM44: 0.5570200677 | BN44: 0.5381364104 | BO44: 0.6306209087 | BP44: 0.554162734 | BQ44: 0.5111773002 | BR44: 0.5180968832 | BS44: 0.5165981823 | BT44: 0.4988360457 | BU44: 0.5293305799 | BV44: 0.5136917862 | BW44: 0.5208637419 | BX44: 0.5335111027 | BY44: 0.5161122766 | BZ44: 0.5400798029 | CA44: 0.5319017356 | CB44: 0.5168059664 | CC44: 0.5322205377 | CD44: 0.5079140144 | CE44: 0.5842808344 | CF44: 0.5445795771 | CG44: 0.5340726787 | CH44: 0.5241270417 | CI44: 0.4870904529
A45: 2011Q3 | B45: 1000 | C45: 4.449941952 | D45: 224.7220325 | E45: 0.5439227096 | F45: 0.3789442724 | G45: 1 | I45: 0.5422754877 | J45: 0.6463374149 | W45: 0.5241437321 | X45: 0.01977897748 | Y45: 0.008959346439 | Z45: 0.07917228412 | AA45: TRUE | AB45: 0.1131626621 | AC45: 0.007945482945 | AD45: 0.5263819738 | AE45: 0.3466553497 | AF45: 4.93234292 | AG45: 9.410286946 | AH45: 0.4676183617 | AI45: 0.4476594648 | AJ45: 0.4834127247 | AL45: 0.5391977864 | AM45: 0.5521716646 | AN45: 0.5140278778 | AO45: 0.5074817669 | AP45: 0.6463372701 | AQ45: 0.5561355353 | AR45: 0.5220612483 | AS45: 0.5348006712 | AT45: 0.6185806839 | AU45: 0.5243958806 | AV45: 0.5758249042 | AW45: 0.5393074789 | AX45: 0.56693115 | AY45: 0.5307082025 | AZ45: 0.5562859446 | BA45: 0.5449438232 | BB45: 0.5456484922 | BC45: 0.5652931354 | BD45: 0.5211854235 | BE45: 0.5388136186 | BF45: 0.5865887289 | BG45: 0.5501486489 | BH45: 0.6463374003 | BI45: 0.5598788695 | BJ45: 0.5189751602 | BK45: 0.5134632561 | BL45: 0.5331480334 | BM45: 0.5520308333 | BN45: 0.5371685642 | BO45: 0.6323884138 | BP45: 0.5533914719 | BQ45: 0.508410339 | BR45: 0.5151285611 | BS45: 0.5144875468 | BT45: 0.4961978347 | BU45: 0.5299233954 | BV45: 0.5107185288 | BW45: 0.5191529879 | BX45: 0.5319633863 | BY45: 0.5124696429 | BZ45: 0.5391649717 | CA45: 0.5315899228 | CB45: 0.5176727259 | CC45: 0.5306331892 | CD45: 0.5073290887 | CE45: 0.5823249137 | CF45: 0.5411226513 | CG45: 0.5336597827 | CH45: 0.5247602526 | CI45: 0.4834127247
A46: 2011Q4 | B46: 1000 | C46: 4.794817294 | D46: 208.5585203 | E46: 0.5011383753 | F46: 0.3789442724 | G46: 1 | I46: 0.5406422943 | J46: 0.6463374149 | W46: 0.5263819738 | X46: -0.02524359855 | Y46: 0.00875558831 | Z46: 0.08441010505 | AA46: TRUE | AB46: 0.103726779 | AC46: 0.007847399336 | AD46: 0.5237635367 | AE46: 0.3133208828 | AF46: 4.62628088 | AG46: 8.788828475 | AH46: 0.5143294539 | AI46: 0.4811630397 | AJ46: 0.479031667 | AL46: 0.5373546144 | AM46: 0.5493006585 | AN46: 0.5119629099 | AO46: 0.503630402 | AP46: 0.646337268 | AQ46: 0.5537461779 | AR46: 0.5230057523 | AS46: 0.532778323 | AT46: 0.6182062792 | AU46: 0.5243100996 | AV46: 0.5757473521 | AW46: 0.5375385851 | AX46: 0.5635155829 | AY46: 0.5276379008 | AZ46: 0.5524303461 | BA46: 0.5461713897 | BB46: 0.5463060578 | BC46: 0.5643421793 | BD46: 0.5172736688 | BE46: 0.5388561189 | BF46: 0.5863927727 | BG46: 0.5474105859 | BH46: 0.6463373991 | BI46: 0.5579699055 | BJ46: 0.5148044763 | BK46: 0.509559915 | BL46: 0.5328097625 | BM46: 0.54715751 | BN46: 0.5361299391 | BO46: 0.6341559189 | BP46: 0.5526202097 | BQ46: 0.5053708188 | BR46: 0.511914134 | BS46: 0.5121193002 | BT46: 0.4935596237 | BU46: 0.5305162109 | BV46: 0.5073706139 | BW46: 0.517442234 | BX46: 0.5302723626 | BY46: 0.5088270093 | BZ46: 0.5382501406 | CA46: 0.5311690026 | CB46: 0.5183331809 | CC46: 0.5290458407 | CD46: 0.506744163 | CE46: 0.580368993 | CF46: 0.5376391526 | CG46: 0.5331505254 | CH46: 0.5251896802 | CI46: 0.479031667
A47: 2012Q1 | B47: 1000 | C47: 5.185739137 | D47: 192.8365414 | E47: 0.4298335604 | F47: 0.3879525764 | G47: 1 | I47: 0.5391609948 | J47: 0.6463374149 | W47: 0.5237635367 | X47: -0.09392997625 | Y47: 0.008656172648 | Z47: 0.09047880826 | AA47: TRUE | AB47: 0.09567071908 | AC47: 0.007828030386 | AD47: 0.5147771883 | AE47: 0.2336248843 | AF47: 4.315981417 | AG47: 8.240324334 | AH47: 0.558300192 | AI47: 0.5047287663 | AJ47: 0.4744214846 | AL47: 0.5357809818 | AM47: 0.5467659543 | AN47: 0.5100207313 | AO47: 0.4998129473 | AP47: 0.6463372665 | AQ47: 0.5518369534 | AR47: 0.5239502562 | AS47: 0.531035258 | AT47: 0.6179200049 | AU47: 0.5243407842 | AV47: 0.5756698001 | AW47: 0.5360972464 | AX47: 0.5601000158 | AY47: 0.5247626769 | AZ47: 0.5489297047 | BA47: 0.5477424002 | BB47: 0.5473815485 | BC47: 0.5633912231 | BD47: 0.513495693 | BE47: 0.5388986192 | BF47: 0.5861968166 | BG47: 0.5446725229 | BH47: 0.6463373982 | BI47: 0.5565746094 | BJ47: 0.510772295 | BK47: 0.5057223233 | BL47: 0.5324714915 | BM47: 0.5422841867 | BN47: 0.5354339107 | BO47: 0.635923424 | BP47: 0.552337344 | BQ47: 0.5023678736 | BR47: 0.5087931409 | BS47: 0.509844284 | BT47: 0.4909214127 | BU47: 0.5312918105 | BV47: 0.504095566 | BW47: 0.5157314801 | BX47: 0.5289093703 | BY47: 0.505237742 | BZ47: 0.5376420348 | CA47: 0.5309946203 | CB47: 0.5191199163 | CC47: 0.5276714431 | CD47: 0.5061923154 | CE47: 0.579165003 | CF47: 0.5341556539 | CG47: 0.5326412681 | CH47: 0.5258569329 | CI47: 0.4744214846
A48: 2012Q2 | B48: 1000 | C48: 5.630554929 | D48: 177.6023878 | E48: 0.4412678817 | F48: 0.3879525764 | G48: 1 | I48: 0.5382723566 | J48: 0.6463374149 | W48: 0.5147771883 | X48: -0.07350930657 | Y48: 0.008632197933 | Z48: 0.0974733124 | AA48: TRUE | AB48: 0.08855960386 | AC48: 0.007867733904 | AD48: 0.5082672332 | AE48: 0.2174313461 | AF48: 4.006274594 | AG48: 7.782541039 | AH48: 0.5271315339 | AI48: 0.4760310029 | AJ48: 0.4702757742 | AL48: 0.5342073491 | AM48: 0.5449749185 | AN48: 0.5080785528 | AO48: 0.4966242836 | AP48: 0.646337265 | AQ48: 0.5509389918 | AR48: 0.5248947601 | AS48: 0.5301076275 | AT48: 0.6177642273 | AU48: 0.5248084806 | AV48: 0.5773740104 | AW48: 0.5355304611 | AX48: 0.5576278715 | AY48: 0.5218874529 | AZ48: 0.5461744228 | BA48: 0.5501370866 | BB48: 0.5494548785 | BC48: 0.5632780851 | BD48: 0.5097177172 | BE48: 0.5389411195 | BF48: 0.5872528387 | BG48: 0.5430417468 | BH48: 0.6463373972 | BI48: 0.5551793134 | BJ48: 0.5074487277 | BK48: 0.502357757 | BL48: 0.5332934762 | BM48: 0.5386177624 | BN48: 0.535685615 | BO48: 0.6376909291 | BP48: 0.5531172811 | BQ48: 0.4998546676 | BR48: 0.5062660522 | BS48: 0.5081758422 | BT48: 0.4888171378 | BU48: 0.53206741 | BV48: 0.5008205182 | BW48: 0.5146929774 | BX48: 0.528566243 | BY48: 0.5016484746 | BZ48: 0.5378505021 | CA48: 0.5308202381 | CB48: 0.5205086751 | CC48: 0.5269789678 | CD48: 0.5060523156 | CE48: 0.5792509262 | CF48: 0.5317351607 | CG48: 0.5329573069 | CH48: 0.5273962348 | CI48: 0.4702757742
A49: 2012Q3 | B49: 1000 | C49: 6.138733213 | D49: 162.9000586 | E49: 0.4103281402 | F49: 0.3879525764 | G49: 1 | I49: 0.5378257641 | J49: 0.6463374149 | W49: 0.5082672332 | X49: -0.09793909304 | Y49: 0.008668531153 | Z49: 0.1055278829 | AA49: TRUE | AB49: 0.08214446191 | AC49: 0.007956459326 | AD49: 0.5002220791 | AE49: 0.1600034845 | AF49: 3.700489809 | AG49: 7.280598802 | AH49: 0.5245910929 | AI49: 0.4644341375 | AJ49: 0.4664089103 | AL49: 0.5332173518 | AM49: 0.5437849858 | AN49: 0.5067664682 | AO49: 0.4938894757 | AP49: 0.6463372636 | AQ49: 0.5500410302 | AR49: 0.5264326434 | AS49: 0.529832488 | AT49: 0.6176084497 | AU49: 0.5256296065 | AV49: 0.580586085 | AW49: 0.5356707974 | AX49: 0.5559195534 | AY49: 0.5195061385 | AZ49: 0.5434191408 | BA49: 0.553227142 | BB49: 0.5523668544 | BC49: 0.5638613107 | BD49: 0.5059397413 | BE49: 0.5389836198 | BF49: 0.5883088609 | BG49: 0.5423017764 | BH49: 0.6463373962 | BI49: 0.5537840174 | BJ49: 0.5046535792 | BK49: 0.4993412871 | BL49: 0.5350615224 | BM49: 0.5358969786 | BN49: 0.5359373193 | BO49: 0.6394584342 | BP49: 0.5547802374 | BQ49: 0.4977028512 | BR49: 0.5041851552 | BS49: 0.5065074003 | BT49: 0.4870922004 | BU49: 0.5328430095 | BV49: 0.4980892201 | BW49: 0.5141776794 | BX49: 0.5282231157 | BY49: 0.4983779978 | BZ49: 0.5387260512 | CA49: 0.5312679888 | CB49: 0.5218974338 | CC49: 0.5268313479 | CD49: 0.5059123158 | CE49: 0.580417824 | CF49: 0.5301514762 | CG49: 0.5339443706 | CH49: 0.5296503008 | CI49: 0.4664089103
A50: 2012Q4 | B50: 1000 | C50: 6.721755288 | D50: 148.7706644 | E50: 0.2455179748 | F50: 0.3879525764 | G50: 1 | I50: 0.5378668853 | J50: 0.6463374149 | W50: 0.5002220791 | X50: -0.2547041043 | Y50: 0.008753051286 | Z50: 0.114811555 | AA50: TRUE | AB50: 0.07623841767 | AC50: 0.008085732506 | AD50: 0.4808038412 | AE50: -0.1192315748 | AF50: 3.401267886 | AG50: 6.799515711 | AH50: 0.3843324443 | AI50: 0.3012443811 | AJ50: 0.463023573 | AL50: 0.5329276667 | AM50: 0.5432971738 | AN50: 0.5062779562 | AO50: 0.4917740717 | AP50: 0.646337263 | AQ50: 0.5501059725 | AR50: 0.5287193789 | AS50: 0.5303544848 | AT50: 0.6175737211 | AU50: 0.5268951607 | AV50: 0.5837981596 | AW50: 0.5358111338 | AX50: 0.5550747066 | AY50: 0.5177300393 | AZ50: 0.541359278 | BA50: 0.557146662 | BB50: 0.5562792829 | BC50: 0.5644445362 | BD50: 0.5021617655 | BE50: 0.5399845544 | BF50: 0.590548162 | BG50: 0.5415618061 | BH50: 0.6463373956 | BI50: 0.5533887153 | BJ50: 0.5025400293 | BK50: 0.4967831844 | BL50: 0.5379921659 | BM50: 0.5331761948 | BN50: 0.5361890237 | BO50: 0.643508926 | BP50: 0.5564431938 | BQ50: 0.4955510348 | BR50: 0.5026884943 | BS50: 0.5048389585 | BT50: 0.4859223711 | BU50: 0.5336186091 | BV50: 0.4953579221 | BW50: 0.514333974 | BX50: 0.5288924843 | BY50: 0.4955276569 | BZ50: 0.5396016003 | CA50: 0.5324789623 | CB50: 0.5232861926 | CC50: 0.526683728 | CD50: 0.5062042801 | CE50: 0.5815847218 | CF50: 0.5295702741 | CG50: 0.5357532987 | CH50: 0.5319043668 | CI50: 0.463023573
A51: 2013Q1 | B51: 1000 | C51: 7.393615002 | D51: 135.2518355 | E51: 0.2062538416 | F51: 0.6017386375 | G51: 1 | I51: 0.5389653278 | J51: 0.6463374149 | W51: 0.4808038412 | X51: -0.2745499996 | Y51: 0.008871984196 | Z51: 0.1255313553 | AA51: TRUE | AB51: 0.07067544342 | AC51: 0.008244952779 | AD51: 0.4613998983 | AE51: -0.1815732383 | AF51: 3.110815256 | AG51: 6.470029956 | AH51: 0.3439558587 | AI51: 0.2572435577 | AJ51: 0.4612946306 | AL51: 0.5341090094 | AM51: 0.5442174832 | AN51: 0.5057894443 | AO51: 0.4896586678 | AP51: 0.6463372637 | AQ51: 0.5520457048 | AR51: 0.5326416807 | AS51: 0.5325825006 | AT51: 0.6177364603 | AU51: 0.5291377645 | AV51: 0.5900642035 | AW51: 0.5377445289 | AX51: 0.5558724735 | AY51: 0.5159539401 | AZ51: 0.5392994152 | BA51: 0.5610661821 | BB51: 0.5601917113 | BC51: 0.5665250606 | BD51: 0.499801873 | BE51: 0.5429457799 | BF51: 0.5927874631 | BG51: 0.5429470011 | BH51: 0.6463373954 | BI51: 0.5549083899 | BJ51: 0.5020886532 | BK51: 0.4953821457 | BL51: 0.5409228093 | BM51: 0.5327357895 | BN51: 0.5384135808 | BO51: 0.6475594179 | BP51: 0.5581061501 | BQ51: 0.4933992185 | BR51: 0.5011918333 | BS51: 0.5031705167 | BT51: 0.4863105463 | BU51: 0.5356520814 | BV51: 0.4926266241 | BW51: 0.5160495289 | BX51: 0.5317394913 | BY51: 0.4937439663 | BZ51: 0.5421489645 | CA51: 0.5353150476 | CB51: 0.5246749513 | CC51: 0.528009457 | CD51: 0.5075566268 | CE51: 0.5849079377 | CF51: 0.5311141478 | CG51: 0.5392924431 | CH51: 0.5341584327 | CI51: 0.4612946306
A52: 2013Q2 | B52: 1000 | C52: 8.17146028 | D52: 122.3771475 | E52: 0.3682327466 | F52: 0.6017386375 | G52: 1 | I52: 0.5411408573 | J52: 0.6463374149 | W52: 0.4613998983 | X52: -0.09316715166 | Y52: 0.009020588406 | Z52: 0.1379531088 | AA52: TRUE | AB52: 0.0653888012 | AC52: 0.008430742944 | AD52: 0.4553078099 | AE52: 0.04002179487 | AF52: 2.830707177 | AG52: 6.135040747 | AH52: 0.5041627107 | AI52: 0.4275794596 | AJ52: 0.4612847276 | AL52: 0.5367815349 | AM52: 0.5465599011 | AN52: 0.5053009323 | AO52: 0.4892503231 | AP52: 0.6463372645 | AQ52: 0.5558652168 | AR52: 0.5365639824 | AS52: 0.5365456147 | AT52: 0.6178991994 | AU52: 0.5313803684 | AV52: 0.5963302473 | AW52: 0.5414924579 | AX52: 0.5583137246 | AY52: 0.5155755219 | AZ52: 0.5386557897 | BA52: 0.5649857022 | BB52: 0.5641041397 | BC52: 0.5686055849 | BD52: 0.4988749925 | BE52: 0.5478863052 | BF52: 0.5950267643 | BG52: 0.5464645889 | BH52: 0.6463373956 | BI52: 0.5583424741 | BJ52: 0.5016372771 | BK52: 0.4951655216 | BL52: 0.546372748 | BM52: 0.5322953843 | BN52: 0.5426308185 | BO52: 0.6516099097 | BP52: 0.5618342736 | BQ52: 0.4925695357 | BR52: 0.5011918333 | BS52: 0.5030527392 | BT52: 0.4866987214 | BU52: 0.5389615082 | BV52: 0.4918357383 | BW52: 0.5193578942 | BX52: 0.5367968986 | BY52: 0.4930529253 | BZ52: 0.5463891035 | CA52: 0.5381511329 | CB52: 0.5275374029 | CC52: 0.5308315829 | CD52: 0.5100000738 | CE52: 0.5882311536 | CF52: 0.5348058887 | CG52: 0.5428315875 | CH52: 0.5384364589 | CI52: 0.4612847276
A53: 2013Q3 | B53: 1000 | C53: 9.076421538 | D53: 110.1755792 | E53: 1.532788189 | F53: 0.6017386375 | G53: 1 | I53: 0.5437345731 | J53: 0.6463374149 | W53: 0.4553078099 | X53: 1.077480379 | Y53: 0.009202983949 | Z53: 0.1524143397 | AA53: FALSE | AB53: 0 | AC53: 0.009202983949 | AD53: 0.4553078099 | AE53: -3.7869408 | AF53: 2.562126739 | AG53: 5.627240919 | AH53: -3.861127406 | AI53: -3.848886616 | AJ53: 0.4618322026 | AL53: 0.5401383565 | AM53: 0.5495719738 | AN53: 0.5056802546 | AO53: 0.4888419784 | AP53: 0.6463372661 | AQ53: 0.5596847288 | AR53: 0.5404862841 | AS53: 0.5405087289 | AT53: 0.6181704092 | AU53: 0.5340837855 | AV53: 0.6025962911 | AW53: 0.5460870629 | AX53: 0.5615501981 | AY53: 0.5157878168 | AZ53: 0.5386557897 | BA53: 0.5689052223 | BB53: 0.5680165681 | BC53: 0.5714462697 | BD53: 0.4985140727 | BE53: 0.5528268306 | BF53: 0.5983783192 | BG53: 0.5509862411 | BH53: 0.6463373962 | BI53: 0.5627055859 | BJ53: 0.501185901 | BK53: 0.4954122128 | BL53: 0.5518226867 | BM53: 0.5318549791 | BN53: 0.5468480561 | BO53: 0.6556604015 | BP53: 0.5665729644 | BQ53: 0.4922486627 | BR53: 0.5011918333 | BS53: 0.5029349617 | BT53: 0.4870868966 | BU53: 0.542270935 | BV53: 0.4917851392 | BW53: 0.523360999 | BX53: 0.541854306 | BY53: 0.4927850551 | BZ53: 0.5506292425 | CA53: 0.5417665175 | CB53: 0.5310580994 | CC53: 0.5343289064 | CD53: 0.5129034992 | CE53: 0.5926914792 | CF53: 0.5394785757 | CG53: 0.5472142446 | CH53: 0.5436524668 | CI53: 0.4618322026
A54: 2013Q4 | B54: 1000 | C54: 10.13468817 | D54: 98.67101811 | E54: 0.3938448246 | F54: 0.6017386375 | G54: 1 | I54: 0.5435046837 | J54: 0.6463374149 | W54: 0.4553078099 | X54: -0.06146298528 | Y54: 0.009975224954 | Z54: 0.1698843286 | AA54: FALSE | AB54: 0 | AC54: 0.009975224954 | AD54: 0.4553078099 | AE54: -0.04373822983 | AF54: 2.298651431 | AG54: 5.048565785 | AH54: 0.3699427396 | AI54: 0.3016853797 | AJ54: 0.4623796776 | AL54: 0.5397901178 | AM54: 0.5491953096 | AN54: 0.5060595768 | AO54: 0.4884336337 | AP54: 0.6463372654 | AQ54: 0.5591080154 | AR54: 0.5400721966 | AS54: 0.540092909 | AT54: 0.6180824121 | AU54: 0.5342026769 | AV54: 0.6025264556 | AW54: 0.5462500491 | AX54: 0.5610492564 | AY54: 0.5160001116 | AZ54: 0.5386557897 | BA54: 0.5689753714 | BB54: 0.5672362839 | BC54: 0.570932549 | BD54: 0.4981531528 | BE54: 0.5529781091 | BF54: 0.5975002735 | BG54: 0.5504007509 | BH54: 0.6463373959 | BI54: 0.5627055859 | BJ54: 0.5007345249 | BK54: 0.4956589041 | BL54: 0.5510992884 | BM54: 0.5314145738 | BN54: 0.5461420534 | BO54: 0.6536276128 | BP54: 0.5666667016 | BQ54: 0.4919277897 | BR54: 0.5011918333 | BS54: 0.5028171842 | BT54: 0.4874750718 | BU54: 0.5423979241 | BV54: 0.4917345401 | BW54: 0.5230867438 | BX54: 0.5413050741 | BY54: 0.492517185 | BZ54: 0.5507654739 | CA54: 0.5411903236 | CB54: 0.5307600947 | CC54: 0.5340098785 | CD54: 0.5127653232 | CE54: 0.5926817914 | CF54: 0.5387471659 | CG54: 0.5472142446 | CH54: 0.5438479588 | CI54: 0.4623796776
A55: 2014Q1 | B55: 1000 | C55: 11.37891649 | D55: 87.8818296 | E55: 0.5902115406 | F55: 1.066509426 | G55: 1 | I55: 0.5436168168 | J55: 0.6463374149 | W55: 0.4553078099 | X55: 0.1349037307 | Y55: 0.01074746596 | Z55: 0.1902884944 | AA55: TRUE | AB55: 0.05647985179 | AC55: 0.01014045068 | AD55: 0.4629271526 | AE55: -0.1371510897 | AF55: 2.052172709 | AG55: 4.507220533 | AH55: -0.1480065181 | AI55: -0.1462153724 | AJ55: 0.4629271526 | AL55: 0.5399435839 | AM55: 0.5493102268 | AN55: 0.506438899 | AO55: 0.4884336337 | AP55: 0.6463372653 | AQ55: 0.5592229715 | AR55: 0.5402523486 | AS55: 0.5402737889 | AT55: 0.6180736558 | AU55: 0.5343215683 | AV55: 0.60245662 | AW55: 0.5464130353 | AX55: 0.5611405937 | AY55: 0.5162124065 | AZ55: 0.5386557897 | BA55: 0.5690455205 | BB55: 0.5672362839 | BC55: 0.5709872528 | BD55: 0.4981531528 | BE55: 0.5531293877 | BF55: 0.59747344 | BG55: 0.5505702957 | BH55: 0.6463373959 | BI55: 0.5627055859 | BJ55: 0.5007345249 | BK55: 0.4959055953 | BL55: 0.5513023582 | BM55: 0.5316815494 | BN55: 0.5461420534 | BO55: 0.6532710014 | BP55: 0.5667604388 | BQ55: 0.4919277897 | BR55: 0.5011918333 | BS55: 0.5031070093 | BT55: 0.487863247 | BU55: 0.5425249131 | BV55: 0.4921515391 | BW55: 0.5233202887 | BX55: 0.5415325248 | BY55: 0.492517185 | BZ55: 0.5509017054 | CA55: 0.5411903236 | CB55: 0.530946212 | CC55: 0.5341854993 | CD55: 0.5129544309 | CE55: 0.5926721035 | CF55: 0.5387471659 | CG55: 0.5472142446 | CH55: 0.5440434508 | CI55: 0.4629271526
A56: 2014Q2 | B56: 1000 | C56: 12.85008368 | D56: 77.82050493 | E56: 0.2729446438 | F56: 1.066509426 | G56: 0 | I56: 0.5436168168 | J56: 0.6463374149 | W56: 0.4629271526 | X56: -0.1899825088 | Y56: 0.0109169326 | Z56: 0.2136706166 | AA56: FALSE | AB56: 0 | AC56: 0.0109169326 | AD56: 0.4629271526 | AE56: -0.2317389856 | AF56: 1.827602041 | AG56: 3.947925783 | AH56: 0.4203889552 | AI56: 0.312787845 | AJ56: 0.4629271526 | AL56: 0.5399435839 | AM56: 0.5493102268 | AN56: 0.506438899 | AO56: 0.4884336337 | AP56: 0.6463372653 | AQ56: 0.5592229715 | AR56: 0.5402523486 | AS56: 0.5402737889 | AT56: 0.6180736558 | AU56: 0.5343215683 | AV56: 0.60245662 | AW56: 0.5464130353 | AX56: 0.5611405937 | AY56: 0.5162124065 | AZ56: 0.5386557897 | BA56: 0.5690455205 | BB56: 0.5672362839 | BC56: 0.5709872528 | BD56: 0.4981531528 | BE56: 0.5531293877 | BF56: 0.59747344 | BG56: 0.5505702957 | BH56: 0.6463373959 | BI56: 0.5627055859 | BJ56: 0.5007345249 | BK56: 0.4959055953 | BL56: 0.5513023582 | BM56: 0.5316815494 | BN56: 0.5461420534 | BO56: 0.6532710014 | BP56: 0.5667604388 | BQ56: 0.4919277897 | BR56: 0.5011918333 | BS56: 0.5031070093 | BT56: 0.487863247 | BU56: 0.5425249131 | BV56: 0.4921515391 | BW56: 0.5233202887 | BX56: 0.5415325248 | BY56: 0.492517185 | BZ56: 0.5509017054 | CA56: 0.5411903236 | CB56: 0.530946212 | CC56: 0.5341854993 | CD56: 0.5129544309 | CE56: 0.5926721035 | CF56: 0.5387471659 | CG56: 0.5472142446 | CH56: 0.5440434508 | CI56: 0.4629271526
A57: 2014Q3 | B57: 1000 | C57: 14.59994613 | D57: 68.4934034 | E57: 0.7360843041 | F57: 1.066509426 | G57: 0 | I57: 0.5436168168 | J57: 0.6463374149 | W57: 0.4629271526 | X57: 0.2731571515 | Y57: 0.01169341453 | Z57: 0.2420571179 | AA57: FALSE | AB57: 0 | AC57: 0.01169341453 | AD57: 0.4629271526 | AE57: -0.3637742482 | AF57: 1.613275653 | AG57: 3.484944973 | AH57: -0.628186814 | AI57: -0.5845587406 | AJ57: 0.4629271526 | AL57: 0.5399435839 | AM57: 0.5493102268 | AN57: 0.506438899 | AO57: 0.4884336337 | AP57: 0.6463372653 | AQ57: 0.5592229715 | AR57: 0.5402523486 | AS57: 0.5402737889 | AT57: 0.6180736558 | AU57: 0.5343215683 | AV57: 0.60245662 | AW57: 0.5464130353 | AX57: 0.5611405937 | AY57: 0.5162124065 | AZ57: 0.5386557897 | BA57: 0.5690455205 | BB57: 0.5672362839 | BC57: 0.5709872528 | BD57: 0.4981531528 | BE57: 0.5531293877 | BF57: 0.59747344 | BG57: 0.5505702957 | BH57: 0.6463373959 | BI57: 0.5627055859 | BJ57: 0.5007345249 | BK57: 0.4959055953 | BL57: 0.5513023582 | BM57: 0.5316815494 | BN57: 0.5461420534 | BO57: 0.6532710014 | BP57: 0.5667604388 | BQ57: 0.4919277897 | BR57: 0.5011918333 | BS57: 0.5031070093 | BT57: 0.487863247 | BU57: 0.5425249131 | BV57: 0.4921515391 | BW57: 0.5233202887 | BX57: 0.5415325248 | BY57: 0.492517185 | BZ57: 0.5509017054 | CA57: 0.5411903236 | CB57: 0.530946212 | CC57: 0.5341854993 | CD57: 0.5129544309 | CE57: 0.5926721035 | CF57: 0.5387471659 | CG57: 0.5472142446 | CH57: 0.5440434508 | CI57: 0.4629271526
A58: 2014Q4 | B58: 1000 | C58: 16.69432316 | D58: 59.90060156 | E58: 3.174092312 | F58: 1.066509426 | G58: 0 | I58: 0.5436168168 | J58: =SUMPRODUCT(D$11:D58,E$11:E58,G11:G58)/SUMPRODUCT(D$11:D58,G11:G58) -> 0.6463374149 | W58: 0.4629271526 | X58: 2.71116516 | Y58: 0.01246989646 | Z58: 0.2758795059 | AA58: FALSE | AB58: 0 | AC58: 0.01246989646 | AD58: 0.4629271526 | AE58: -13.59683088 | AF58: 1.415490628 | AG58: 3.05769627 | AH58: -7.52302837 | AI58: -8.525205785 | AJ58: =AD58 -> 0.4629271526 | AL58: 0.5399435839 | AM58: 0.5493102268 | AN58: 0.506438899 | AO58: 0.4884336337 | AP58: 0.6463372653 | AQ58: 0.5592229715 | AR58: 0.5402523486 | AS58: 0.5402737889 | AT58: 0.6180736558 | AU58: 0.5343215683 | AV58: 0.60245662 | AW58: 0.5464130353 | AX58: 0.5611405937 | AY58: 0.5162124065 | AZ58: 0.5386557897 | BA58: 0.5690455205 | BB58: 0.5672362839 | BC58: 0.5709872528 | BD58: 0.4981531528 | BE58: 0.5531293877 | BF58: 0.59747344 | BG58: 0.5505702957 | BH58: 0.6463373959 | BI58: 0.5627055859 | BJ58: 0.5007345249 | BK58: 0.4959055953 | BL58: 0.5513023582 | BM58: 0.5316815494 | BN58: 0.5461420534 | BO58: 0.6532710014 | BP58: 0.5667604388 | BQ58: 0.4919277897 | BR58: 0.5011918333 | BS58: 0.5031070093 | BT58: 0.487863247 | BU58: 0.5425249131 | BV58: 0.4921515391 | BW58: 0.5233202887 | BX58: 0.5415325248 | BY58: 0.492517185 | BZ58: 0.5509017054 | CA58: 0.5411903236 | CB58: 0.530946212 | CC58: 0.5341854993 | CD58: 0.5129544309 | CE58: 0.5926721035 | CF58: 0.5387471659 | CG58: 0.5472142446 | CH58: 0.5440434508 | CI58: 0.4629271526

Sheet include
B2: Percent of Periods to Include: | C2: =2/3 -> 0.6666666667
B5: Sim | D5: 1 | E5: 2 | F5: 3 | G5: 4 | H5: 5 | I5: 6 | J5: 7 | K5: 8 | L5: 9 | M5: 10 | N5: 11 | O5: 12 | P5: 13 | Q5: 14 | R5: 15 | S5: 16 | T5: 17 | U5: 18 | V5: 19 | W5: 20 | X5: 21 | Y5: 22 | Z5: 23 | AA5: 24 | AB5: 25 | AC5: 26 | AD5: 27 | AE5: 28 | AF5: 29 | AG5: 30 | AH5: 31 | AI5: 32 | AJ5: 33 | AK5: 34 | AL5: 35 | AM5: 36 | AN5: 37 | AO5: 38 | AP5: 39 | AQ5: 40 | AR5: 41 | AS5: 42 | AT5: 43 | AU5: 44 | AV5: 45 | AW5: 46 | AX5: 47 | AY5: 48 | AZ5: 49 | BA5: 50
A6: 1 | B6: =RAND()<$C$2 -> TRUE | D6: TRUE | E6: TRUE | F6: FALSE | G6: FALSE | H6: TRUE | I6: TRUE | J6: TRUE | K6: TRUE | L6: TRUE | M6: TRUE | N6: TRUE | O6: TRUE | P6: TRUE | Q6: FALSE | R6: TRUE | S6: TRUE | T6: TRUE | U6: TRUE | V6: FALSE | W6: TRUE | X6: TRUE | Y6: TRUE | Z6: TRUE | AA6: TRUE | AB6: TRUE | AC6: FALSE | AD6: FALSE | AE6: TRUE | AF6: TRUE | AG6: FALSE | AH6: TRUE | AI6: FALSE | AJ6: TRUE | AK6: TRUE | AL6: TRUE | AM6: TRUE | AN6: TRUE | AO6: FALSE | AP6: FALSE | AQ6: TRUE | AR6: FALSE | AS6: TRUE | AT6: TRUE | AU6: FALSE | AV6: TRUE | AW6: FALSE | AX6: TRUE | AY6: TRUE | AZ6: FALSE | BA6: TRUE
A7: 2 | B7: =RAND()<$C$2 -> FALSE | D7: TRUE | E7: TRUE | F7: FALSE | G7: TRUE | H7: TRUE | I7: TRUE | J7: TRUE | K7: TRUE | L7: FALSE | M7: TRUE | N7: TRUE | O7: TRUE | P7: FALSE | Q7: TRUE | R7: FALSE | S7: FALSE | T7: TRUE | U7: TRUE | V7: FALSE | W7: FALSE | X7: TRUE | Y7: TRUE | Z7: FALSE | AA7: TRUE | AB7: FALSE | AC7: TRUE | AD7: FALSE | AE7: FALSE | AF7: TRUE | AG7: TRUE | AH7: TRUE | AI7: TRUE | AJ7: TRUE | AK7: FALSE | AL7: TRUE | AM7: TRUE | AN7: TRUE | AO7: TRUE | AP7: TRUE | AQ7: TRUE | AR7: TRUE | AS7: TRUE | AT7: FALSE | AU7: TRUE | AV7: TRUE | AW7: FALSE | AX7: TRUE | AY7: FALSE | AZ7: FALSE | BA7: FALSE
A8: 3 | B8: TRUE | D8: TRUE | E8: TRUE | F8: TRUE | G8: FALSE | H8: TRUE | I8: FALSE | J8: TRUE | K8: FALSE | L8: TRUE | M8: TRUE | N8: TRUE | O8: FALSE | P8: FALSE | Q8: FALSE | R8: TRUE | S8: TRUE | T8: TRUE | U8: TRUE | V8: TRUE | W8: TRUE | X8: FALSE | Y8: FALSE | Z8: FALSE | AA8: FALSE | AB8: FALSE | AC8: TRUE | AD8: FALSE | AE8: FALSE | AF8: TRUE | AG8: TRUE | AH8: FALSE | AI8: TRUE | AJ8: TRUE | AK8: TRUE | AL8: TRUE | AM8: TRUE | AN8: TRUE | AO8: FALSE | AP8: FALSE | AQ8: TRUE | AR8: TRUE | AS8: FALSE | AT8: FALSE | AU8: TRUE | AV8: TRUE | AW8: TRUE | AX8: TRUE | AY8: TRUE | AZ8: FALSE | BA8: TRUE
A9: 4 | B9: TRUE | D9: TRUE | E9: TRUE | F9: FALSE | G9: TRUE | H9: TRUE | I9: TRUE | J9: TRUE | K9: TRUE | L9: TRUE | M9: TRUE | N9: FALSE | O9: TRUE | P9: TRUE | Q9: TRUE | R9: TRUE | S9: FALSE | T9: TRUE | U9: FALSE | V9: TRUE | W9: TRUE | X9: TRUE | Y9: FALSE | Z9: TRUE | AA9: TRUE | AB9: TRUE | AC9: TRUE | AD9: TRUE | AE9: FALSE | AF9: FALSE | AG9: TRUE | AH9: TRUE | AI9: FALSE | AJ9: TRUE | AK9: TRUE | AL9: TRUE | AM9: TRUE | AN9: TRUE | AO9: TRUE | AP9: TRUE | AQ9: TRUE | AR9: TRUE | AS9: TRUE | AT9: TRUE | AU9: TRUE | AV9: TRUE | AW9: FALSE | AX9: TRUE | AY9: TRUE | AZ9: TRUE | BA9: FALSE
A10: 5 | B10: TRUE | D10: FALSE | E10: TRUE | F10: FALSE | G10: TRUE | H10: TRUE | I10: TRUE | J10: TRUE | K10: TRUE | L10: TRUE | M10: TRUE | N10: TRUE | O10: TRUE | P10: FALSE | Q10: FALSE | R10: FALSE | S10: FALSE | T10: TRUE | U10: TRUE | V10: FALSE | W10: TRUE | X10: TRUE | Y10: TRUE | Z10: TRUE | AA10: TRUE | AB10: TRUE | AC10: FALSE | AD10: TRUE | AE10: FALSE | AF10: FALSE | AG10: TRUE | AH10: TRUE | AI10: FALSE | AJ10: TRUE | AK10: TRUE | AL10: TRUE | AM10: TRUE | AN10: TRUE | AO10: TRUE | AP10: TRUE | AQ10: FALSE | AR10: TRUE | AS10: FALSE | AT10: TRUE | AU10: FALSE | AV10: FALSE | AW10: TRUE | AX10: TRUE | AY10: TRUE | AZ10: TRUE | BA10: TRUE
A11: 6 | B11: TRUE | D11: TRUE | E11: FALSE | F11: TRUE | G11: FALSE | H11: TRUE | I11: TRUE | J11: TRUE | K11: TRUE | L11: FALSE | M11: FALSE | N11: TRUE | O11: TRUE | P11: TRUE | Q11: TRUE | R11: TRUE | S11: FALSE | T11: TRUE | U11: TRUE | V11: TRUE | W11: TRUE | X11: TRUE | Y11: TRUE | Z11: TRUE | AA11: TRUE | AB11: TRUE | AC11: TRUE | AD11: FALSE | AE11: TRUE | AF11: TRUE | AG11: TRUE | AH11: FALSE | AI11: TRUE | AJ11: FALSE | AK11: FALSE | AL11: TRUE | AM11: TRUE | AN11: TRUE | AO11: FALSE | AP11: TRUE | AQ11: TRUE | AR11: TRUE | AS11: FALSE | AT11: TRUE | AU11: TRUE | AV11: FALSE | AW11: TRUE | AX11: TRUE | AY11: TRUE | AZ11: FALSE | BA11: TRUE
A12: 7 | B12: FALSE | D12: TRUE | E12: FALSE | F12: TRUE | G12: TRUE | H12: FALSE | I12: FALSE | J12: TRUE | K12: TRUE | L12: TRUE | M12: FALSE | N12: TRUE | O12: TRUE | P12: TRUE | Q12: TRUE | R12: FALSE | S12: TRUE | T12: TRUE | U12: FALSE | V12: TRUE | W12: TRUE | X12: FALSE | Y12: TRUE | Z12: TRUE | AA12: TRUE | AB12: FALSE | AC12: FALSE | AD12: TRUE | AE12: TRUE | AF12: TRUE | AG12: TRUE | AH12: FALSE | AI12: FALSE | AJ12: TRUE | AK12: TRUE | AL12: TRUE | AM12: FALSE | AN12: TRUE | AO12: TRUE | AP12: FALSE | AQ12: TRUE | AR12: TRUE | AS12: TRUE | AT12: FALSE | AU12: TRUE | AV12: TRUE | AW12: TRUE | AX12: FALSE | AY12: TRUE | AZ12: TRUE | BA12: TRUE
A13: 8 | B13: TRUE | D13: TRUE | E13: TRUE | F13: TRUE | G13: TRUE | H13: FALSE | I13: TRUE | J13: FALSE | K13: FALSE | L13: TRUE | M13: FALSE | N13: TRUE | O13: TRUE | P13: TRUE | Q13: FALSE | R13: TRUE | S13: FALSE | T13: FALSE | U13: FALSE | V13: TRUE | W13: TRUE | X13: TRUE | Y13: TRUE | Z13: TRUE | AA13: TRUE | AB13: FALSE | AC13: TRUE | AD13: TRUE | AE13: FALSE | AF13: TRUE | AG13: FALSE | AH13: FALSE | AI13: TRUE | AJ13: TRUE | AK13: TRUE | AL13: FALSE | AM13: FALSE | AN13: TRUE | AO13: TRUE | AP13: TRUE | AQ13: TRUE | AR13: TRUE | AS13: TRUE | AT13: FALSE | AU13: TRUE | AV13: TRUE | AW13: TRUE | AX13: TRUE | AY13: FALSE | AZ13: FALSE | BA13: TRUE
A14: 9 | B14: TRUE | D14: FALSE | E14: TRUE | F14: TRUE | G14: FALSE | H14: TRUE | I14: TRUE | J14: FALSE | K14: TRUE | L14: TRUE | M14: TRUE | N14: TRUE | O14: TRUE | P14: TRUE | Q14: TRUE | R14: TRUE | S14: TRUE | T14: TRUE | U14: TRUE | V14: FALSE | W14: TRUE | X14: TRUE | Y14: FALSE | Z14: TRUE | AA14: TRUE | AB14: TRUE | AC14: TRUE | AD14: FALSE | AE14: TRUE | AF14: TRUE | AG14: TRUE | AH14: FALSE | AI14: TRUE | AJ14: FALSE | AK14: TRUE | AL14: TRUE | AM14: TRUE | AN14: TRUE | AO14: FALSE | AP14: FALSE | AQ14: TRUE | AR14: TRUE | AS14: FALSE | AT14: FALSE | AU14: TRUE | AV14: TRUE | AW14: TRUE | AX14: FALSE | AY14: TRUE | AZ14: TRUE | BA14: TRUE
A15: 10 | B15: TRUE | D15: FALSE | E15: TRUE | F15: FALSE | G15: FALSE | H15: FALSE | I15: TRUE | J15: FALSE | K15: TRUE | L15: FALSE | M15: FALSE | N15: TRUE | O15: FALSE | P15: TRUE | Q15: TRUE | R15: TRUE | S15: TRUE | T15: TRUE | U15: TRUE | V15: FALSE | W15: TRUE | X15: FALSE | Y15: FALSE | Z15: FALSE | AA15: TRUE | AB15: TRUE | AC15: TRUE | AD15: FALSE | AE15: TRUE | AF15: TRUE | AG15: TRUE | AH15: TRUE | AI15: TRUE | AJ15: TRUE | AK15: TRUE | AL15: FALSE | AM15: TRUE | AN15: TRUE | AO15: TRUE | AP15: FALSE | AQ15: TRUE | AR15: FALSE | AS15: FALSE | AT15: TRUE | AU15: TRUE | AV15: TRUE | AW15: FALSE | AX15: TRUE | AY15: FALSE | AZ15: TRUE | BA15: TRUE
A16: 11 | B16: TRUE | D16: TRUE | E16: TRUE | F16: TRUE | G16: FALSE | H16: FALSE | I16: FALSE | J16: TRUE | K16: TRUE | L16: FALSE | M16: TRUE | N16: TRUE | O16: TRUE | P16: TRUE | Q16: TRUE | R16: TRUE | S16: TRUE | T16: FALSE | U16: TRUE | V16: TRUE | W16: FALSE | X16: TRUE | Y16: TRUE | Z16: FALSE | AA16: TRUE | AB16: TRUE | AC16: TRUE | AD16: TRUE | AE16: TRUE | AF16: TRUE | AG16: TRUE | AH16: TRUE | AI16: TRUE | AJ16: TRUE | AK16: TRUE | AL16: TRUE | AM16: TRUE | AN16: FALSE | AO16: TRUE | AP16: TRUE | AQ16: TRUE | AR16: TRUE | AS16: FALSE | AT16: TRUE | AU16: FALSE | AV16: TRUE | AW16: TRUE | AX16: TRUE | AY16: TRUE | AZ16: TRUE | BA16: TRUE
A17: 12 | B17: TRUE | D17: TRUE | E17: TRUE | F17: TRUE | G17: FALSE | H17: TRUE | I17: TRUE | J17: TRUE | K17: TRUE | L17: FALSE | M17: TRUE | N17: FALSE | O17: FALSE | P17: TRUE | Q17: TRUE | R17: TRUE | S17: FALSE | T17: TRUE | U17: FALSE | V17: FALSE | W17: TRUE | X17: TRUE | Y17: TRUE | Z17: FALSE | AA17: FALSE | AB17: TRUE | AC17: FALSE | AD17: TRUE | AE17: TRUE | AF17: TRUE | AG17: FALSE | AH17: TRUE | AI17: FALSE | AJ17: TRUE | AK17: FALSE | AL17: TRUE | AM17: TRUE | AN17: FALSE | AO17: TRUE | AP17: TRUE | AQ17: FALSE | AR17: FALSE | AS17: FALSE | AT17: FALSE | AU17: TRUE | AV17: TRUE | AW17: FALSE | AX17: FALSE | AY17: FALSE | AZ17: TRUE | BA17: FALSE
A18: 13 | B18: FALSE | D18: FALSE | E18: TRUE | F18: FALSE | G18: TRUE | H18: TRUE | I18: TRUE | J18: TRUE | K18: TRUE | L18: TRUE | M18: TRUE | N18: TRUE | O18: FALSE | P18: TRUE | Q18: TRUE | R18: FALSE | S18: TRUE | T18: FALSE | U18: FALSE | V18: TRUE | W18: TRUE | X18: FALSE | Y18: TRUE | Z18: FALSE | AA18: TRUE | AB18: TRUE | AC18: FALSE | AD18: TRUE | AE18: TRUE | AF18: FALSE | AG18: TRUE | AH18: TRUE | AI18: TRUE | AJ18: FALSE | AK18: TRUE | AL18: TRUE | AM18: TRUE | AN18: TRUE | AO18: TRUE | AP18: FALSE | AQ18: TRUE | AR18: TRUE | AS18: TRUE | AT18: FALSE | AU18: TRUE | AV18: TRUE | AW18: FALSE | AX18: TRUE | AY18: TRUE | AZ18: FALSE | BA18: TRUE
A19: 14 | B19: FALSE | D19: FALSE | E19: TRUE | F19: TRUE | G19: FALSE | H19: FALSE | I19: TRUE | J19: TRUE | K19: TRUE | L19: TRUE | M19: FALSE | N19: FALSE | O19: FALSE | P19: FALSE | Q19: TRUE | R19: FALSE | S19: TRUE | T19: TRUE | U19: TRUE | V19: FALSE | W19: TRUE | X19: TRUE | Y19: FALSE | Z19: FALSE | AA19: FALSE | AB19: TRUE | AC19: TRUE | AD19: TRUE | AE19: TRUE | AF19: TRUE | AG19: TRUE | AH19: TRUE | AI19: FALSE | AJ19: TRUE | AK19: TRUE | AL19: TRUE | AM19: TRUE | AN19: FALSE | AO19: TRUE | AP19: TRUE | AQ19: FALSE | AR19: FALSE | AS19: TRUE | AT19: TRUE | AU19: TRUE | AV19: TRUE | AW19: FALSE | AX19: TRUE | AY19: TRUE | AZ19: TRUE | BA19: FALSE
A20: 15 | B20: TRUE | D20: FALSE | E20: TRUE | F20: TRUE | G20: TRUE | H20: FALSE | I20: TRUE | J20: TRUE | K20: TRUE | L20: FALSE | M20: TRUE | N20: TRUE | O20: FALSE | P20: TRUE | Q20: TRUE | R20: TRUE | S20: TRUE | T20: TRUE | U20: TRUE | V20: FALSE | W20: FALSE | X20: TRUE | Y20: TRUE | Z20: FALSE | AA20: TRUE | AB20: TRUE | AC20: TRUE | AD20: TRUE | AE20: FALSE | AF20: TRUE | AG20: FALSE | AH20: TRUE | AI20: TRUE | AJ20: TRUE | AK20: TRUE | AL20: FALSE | AM20: TRUE | AN20: TRUE | AO20: TRUE | AP20: TRUE | AQ20: TRUE | AR20: FALSE | AS20: TRUE | AT20: FALSE | AU20: TRUE | AV20: FALSE | AW20: TRUE | AX20: FALSE | AY20: TRUE | AZ20: TRUE | BA20: FALSE
A21: 16 | B21: TRUE | D21: TRUE | E21: FALSE | F21: TRUE | G21: FALSE | H21: TRUE | I21: FALSE | J21: TRUE | K21: FALSE | L21: TRUE | M21: FALSE | N21: TRUE | O21: FALSE | P21: TRUE | Q21: FALSE | R21: TRUE | S21: TRUE | T21: TRUE | U21: TRUE | V21: TRUE | W21: TRUE | X21: TRUE | Y21: TRUE | Z21: TRUE | AA21: FALSE | AB21: TRUE | AC21: FALSE | AD21: TRUE | AE21: TRUE | AF21: FALSE | AG21: FALSE | AH21: FALSE | AI21: TRUE | AJ21: TRUE | AK21: TRUE | AL21: TRUE | AM21: TRUE | AN21: TRUE | AO21: TRUE | AP21: TRUE | AQ21: TRUE | AR21: TRUE | AS21: FALSE | AT21: FALSE | AU21: TRUE | AV21: FALSE | AW21: TRUE | AX21: TRUE | AY21: TRUE | AZ21: TRUE | BA21: TRUE
A22: 17 | B22: FALSE | D22: TRUE | E22: TRUE | F22: FALSE | G22: TRUE | H22: TRUE | I22: TRUE | J22: FALSE | K22: TRUE | L22: FALSE | M22: TRUE | N22: FALSE | O22: FALSE | P22: TRUE | Q22: TRUE | R22: TRUE | S22: FALSE | T22: TRUE | U22: TRUE | V22: TRUE | W22: TRUE | X22: TRUE | Y22: TRUE | Z22: FALSE | AA22: TRUE | AB22: TRUE | AC22: TRUE | AD22: TRUE | AE22: FALSE | AF22: FALSE | AG22: TRUE | AH22: TRUE | AI22: TRUE | AJ22: TRUE | AK22: TRUE | AL22: FALSE | AM22: TRUE | AN22: FALSE | AO22: TRUE | AP22: FALSE | AQ22: TRUE | AR22: TRUE | AS22: FALSE | AT22: TRUE | AU22: TRUE | AV22: TRUE | AW22: TRUE | AX22: FALSE | AY22: TRUE | AZ22: TRUE | BA22: FALSE
A23: 18 | B23: TRUE | D23: TRUE | E23: TRUE | F23: TRUE | G23: TRUE | H23: TRUE | I23: TRUE | J23: TRUE | K23: TRUE | L23: TRUE | M23: TRUE | N23: TRUE | O23: TRUE | P23: TRUE | Q23: TRUE | R23: TRUE | S23: FALSE | T23: FALSE | U23: FALSE | V23: FALSE | W23: TRUE | X23: TRUE | Y23: TRUE | Z23: TRUE | AA23: TRUE | AB23: TRUE | AC23: TRUE | AD23: TRUE | AE23: TRUE | AF23: TRUE | AG23: TRUE | AH23: TRUE | AI23: TRUE | AJ23: TRUE | AK23: FALSE | AL23: TRUE | AM23: FALSE | AN23: FALSE | AO23: TRUE | AP23: TRUE | AQ23: TRUE | AR23: TRUE | AS23: TRUE | AT23: FALSE | AU23: FALSE | AV23: TRUE | AW23: TRUE | AX23: TRUE | AY23: TRUE | AZ23: TRUE | BA23: FALSE
A24: 19 | B24: TRUE | D24: FALSE | E24: TRUE | F24: FALSE | G24: FALSE | H24: TRUE | I24: TRUE | J24: TRUE | K24: FALSE | L24: FALSE | M24: TRUE | N24: TRUE | O24: TRUE | P24: TRUE | Q24: TRUE | R24: TRUE | S24: FALSE | T24: TRUE | U24: TRUE | V24: FALSE | W24: FALSE | X24: TRUE | Y24: TRUE | Z24: FALSE | AA24: TRUE | AB24: TRUE | AC24: TRUE | AD24: FALSE | AE24: TRUE | AF24: TRUE | AG24: TRUE | AH24: TRUE | AI24: TRUE | AJ24: TRUE | AK24: TRUE | AL24: TRUE | AM24: TRUE | AN24: TRUE | AO24: FALSE | AP24: TRUE | AQ24: TRUE | AR24: FALSE | AS24: TRUE | AT24: TRUE | AU24: FALSE | AV24: TRUE | AW24: FALSE | AX24: TRUE | AY24: TRUE | AZ24: FALSE | BA24: TRUE
A25: 20 | B25: TRUE | D25: TRUE | E25: TRUE | F25: FALSE | G25: FALSE | H25: TRUE | I25: FALSE | J25: FALSE | K25: TRUE | L25: TRUE | M25: TRUE | N25: TRUE | O25: TRUE | P25: TRUE | Q25: FALSE | R25: TRUE | S25: FALSE | T25: FALSE | U25: FALSE | V25: TRUE | W25: TRUE | X25: TRUE | Y25: TRUE | Z25: TRUE | AA25: TRUE | AB25: TRUE | AC25: TRUE | AD25: FALSE | AE25: FALSE | AF25: TRUE | AG25: TRUE | AH25: FALSE | AI25: FALSE | AJ25: TRUE | AK25: TRUE | AL25: TRUE | AM25: FALSE | AN25: TRUE | AO25: FALSE | AP25: TRUE | AQ25: FALSE | AR25: TRUE | AS25: TRUE | AT25: TRUE | AU25: TRUE | AV25: TRUE | AW25: TRUE | AX25: FALSE | AY25: FALSE | AZ25: TRUE | BA25: TRUE
A26: 21 | B26: FALSE | D26: TRUE | E26: TRUE | F26: FALSE | G26: TRUE | H26: FALSE | I26: FALSE | J26: TRUE | K26: FALSE | L26: TRUE | M26: TRUE | N26: TRUE | O26: FALSE | P26: TRUE | Q26: FALSE | R26: TRUE | S26: TRUE | T26: TRUE | U26: TRUE | V26: FALSE | W26: TRUE | X26: TRUE | Y26: FALSE | Z26: FALSE | AA26: TRUE | AB26: TRUE | AC26: FALSE | AD26: TRUE | AE26: TRUE | AF26: FALSE | AG26: TRUE | AH26: TRUE | AI26: TRUE | AJ26: TRUE | AK26: FALSE | AL26: TRUE | AM26: TRUE | AN26: TRUE | AO26: TRUE | AP26: TRUE | AQ26: TRUE | AR26: FALSE | AS26: FALSE | AT26: TRUE | AU26: TRUE | AV26: TRUE | AW26: FALSE | AX26: FALSE | AY26: TRUE | AZ26: TRUE | BA26: TRUE
A27: 22 | B27: TRUE | D27: TRUE | E27: TRUE | F27: TRUE | G27: FALSE | H27: TRUE | I27: TRUE | J27: FALSE | K27: TRUE | L27: FALSE | M27: FALSE | N27: FALSE | O27: TRUE | P27: FALSE | Q27: TRUE | R27: FALSE | S27: TRUE | T27: FALSE | U27: FALSE | V27: FALSE | W27: TRUE | X27: TRUE | Y27: TRUE | Z27: TRUE | AA27: FALSE | AB27: TRUE | AC27: FALSE | AD27: TRUE | AE27: TRUE | AF27: TRUE | AG27: TRUE | AH27: FALSE | AI27: TRUE | AJ27: FALSE | AK27: TRUE | AL27: TRUE | AM27: TRUE | AN27: FALSE | AO27: TRUE | AP27: FALSE | AQ27: TRUE | AR27: TRUE | AS27: FALSE | AT27: TRUE | AU27: TRUE | AV27: TRUE | AW27: FALSE | AX27: TRUE | AY27: TRUE | AZ27: TRUE | BA27: TRUE
A28: 23 | B28: FALSE | D28: TRUE | E28: TRUE | F28: FALSE | G28: TRUE | H28: TRUE | I28: TRUE | J28: TRUE | K28: FALSE | L28: TRUE | M28: FALSE | N28: TRUE | O28: FALSE | P28: FALSE | Q28: TRUE | R28: TRUE | S28: TRUE | T28: FALSE | U28: TRUE | V28: TRUE | W28: FALSE | X28: TRUE | Y28: FALSE | Z28: FALSE | AA28: FALSE | AB28: TRUE | AC28: TRUE | AD28: TRUE | AE28: TRUE | AF28: TRUE | AG28: FALSE | AH28: FALSE | AI28: TRUE | AJ28: TRUE | AK28: TRUE | AL28: TRUE | AM28: TRUE | AN28: FALSE | AO28: TRUE | AP28: TRUE | AQ28: TRUE | AR28: TRUE | AS28: TRUE | AT28: TRUE | AU28: TRUE | AV28: TRUE | AW28: FALSE | AX28: TRUE | AY28: TRUE | AZ28: TRUE | BA28: FALSE
A29: 24 | B29: TRUE | D29: TRUE | E29: FALSE | F29: FALSE | G29: TRUE | H29: TRUE | I29: TRUE | J29: TRUE | K29: TRUE | L29: TRUE | M29: TRUE | N29: FALSE | O29: TRUE | P29: TRUE | Q29: TRUE | R29: TRUE | S29: TRUE | T29: FALSE | U29: TRUE | V29: TRUE | W29: TRUE | X29: FALSE | Y29: TRUE | Z29: TRUE | AA29: TRUE | AB29: TRUE | AC29: FALSE | AD29: FALSE | AE29: TRUE | AF29: TRUE | AG29: FALSE | AH29: TRUE | AI29: TRUE | AJ29: TRUE | AK29: TRUE | AL29: TRUE | AM29: FALSE | AN29: TRUE | AO29: FALSE | AP29: FALSE | AQ29: TRUE | AR29: FALSE | AS29: TRUE | AT29: FALSE | AU29: TRUE | AV29: TRUE | AW29: FALSE | AX29: TRUE | AY29: TRUE | AZ29: TRUE | BA29: TRUE
A30: 25 | B30: TRUE | D30: TRUE | E30: TRUE | F30: TRUE | G30: TRUE | H30: FALSE | I30: TRUE | J30: FALSE | K30: TRUE | L30: TRUE | M30: TRUE | N30: FALSE | O30: TRUE | P30: TRUE | Q30: TRUE | R30: TRUE | S30: FALSE | T30: FALSE | U30: TRUE | V30: TRUE | W30: TRUE | X30: FALSE | Y30: TRUE | Z30: TRUE | AA30: FALSE | AB30: FALSE | AC30: TRUE | AD30: TRUE | AE30: TRUE | AF30: TRUE | AG30: TRUE | AH30: TRUE | AI30: TRUE | AJ30: TRUE | AK30: FALSE | AL30: FALSE | AM30: TRUE | AN30: TRUE | AO30: TRUE | AP30: TRUE | AQ30: TRUE | AR30: TRUE | AS30: TRUE | AT30: TRUE | AU30: TRUE | AV30: FALSE | AW30: TRUE | AX30: FALSE | AY30: TRUE | AZ30: FALSE | BA30: TRUE
A31: 26 | B31: FALSE | D31: TRUE | E31: TRUE | F31: TRUE | G31: TRUE | H31: FALSE | I31: TRUE | J31: FALSE | K31: TRUE | L31: TRUE | M31: FALSE | N31: TRUE | O31: TRUE | P31: TRUE | Q31: TRUE | R31: TRUE | S31: FALSE | T31: TRUE | U31: TRUE | V31: TRUE | W31: FALSE | X31: TRUE | Y31: TRUE | Z31: TRUE | AA31: TRUE | AB31: FALSE | AC31: TRUE | AD31: FALSE | AE31: TRUE | AF31: FALSE | AG31: TRUE | AH31: FALSE | AI31: TRUE | AJ31: FALSE | AK31: TRUE | AL31: FALSE | AM31: FALSE | AN31: TRUE | AO31: TRUE | AP31: TRUE | AQ31: TRUE | AR31: TRUE | AS31: TRUE | AT31: FALSE | AU31: FALSE | AV31: FALSE | AW31: TRUE | AX31: TRUE | AY31: TRUE | AZ31: TRUE | BA31: FALSE
A32: 27 | B32: TRUE | D32: TRUE | E32: TRUE | F32: TRUE | G32: FALSE | H32: TRUE | I32: TRUE | J32: TRUE | K32: TRUE | L32: TRUE | M32: TRUE | N32: TRUE | O32: TRUE | P32: FALSE | Q32: TRUE | R32: FALSE | S32: TRUE | T32: TRUE | U32: FALSE | V32: FALSE | W32: TRUE | X32: TRUE | Y32: FALSE | Z32: FALSE | AA32: TRUE | AB32: TRUE | AC32: TRUE | AD32: FALSE | AE32: TRUE | AF32: FALSE | AG32: FALSE | AH32: FALSE | AI32: TRUE | AJ32: FALSE | AK32: TRUE | AL32: TRUE | AM32: TRUE | AN32: TRUE | AO32: TRUE | AP32: FALSE | AQ32: TRUE | AR32: TRUE | AS32: TRUE | AT32: TRUE | AU32: FALSE | AV32: TRUE | AW32: TRUE | AX32: TRUE | AY32: FALSE | AZ32: TRUE | BA32: TRUE
A33: 28 | B33: TRUE | D33: TRUE | E33: TRUE | F33: TRUE | G33: FALSE | H33: TRUE | I33: FALSE | J33: FALSE | K33: FALSE | L33: TRUE | M33: FALSE | N33: TRUE | O33: TRUE | P33: FALSE | Q33: TRUE | R33: TRUE | S33: TRUE | T33: TRUE | U33: FALSE | V33: TRUE | W33: TRUE | X33: FALSE | Y33: TRUE | Z33: TRUE | AA33: TRUE | AB33: FALSE | AC33: TRUE | AD33: FALSE | AE33: TRUE | AF33: TRUE | AG33: TRUE | AH33: FALSE | AI33: FALSE | AJ33: TRUE | AK33: TRUE | AL33: TRUE | AM33: TRUE | AN33: TRUE | AO33: FALSE | AP33: TRUE | AQ33: TRUE | AR33: TRUE | AS33: TRUE | AT33: FALSE | AU33: FALSE | AV33: TRUE | AW33: TRUE | AX33: TRUE | AY33: TRUE | AZ33: FALSE | BA33: TRUE
A34: 29 | B34: TRUE | D34: TRUE | E34: TRUE | F34: TRUE | G34: FALSE | H34: TRUE | I34: TRUE | J34: FALSE | K34: FALSE | L34: TRUE | M34: FALSE | N34: TRUE | O34: FALSE | P34: TRUE | Q34: FALSE | R34: TRUE | S34: FALSE | T34: TRUE | U34: TRUE | V34: FALSE | W34: TRUE | X34: TRUE | Y34: TRUE | Z34: TRUE | AA34: FALSE | AB34: TRUE | AC34: TRUE | AD34: TRUE | AE34: TRUE | AF34: TRUE | AG34: FALSE | AH34: TRUE | AI34: TRUE | AJ34: FALSE | AK34: FALSE | AL34: FALSE | AM34: TRUE | AN34: TRUE | AO34: FALSE | AP34: FALSE | AQ34: TRUE | AR34: TRUE | AS34: TRUE | AT34: TRUE | AU34: TRUE | AV34: FALSE | AW34: TRUE | AX34: TRUE | AY34: TRUE | AZ34: TRUE | BA34: TRUE
A35: 30 | B35: TRUE | D35: TRUE | E35: TRUE | F35: FALSE | G35: TRUE | H35: TRUE | I35: TRUE | J35: TRUE | K35: TRUE | L35: FALSE | M35: FALSE | N35: TRUE | O35: TRUE | P35: TRUE | Q35: TRUE | R35: TRUE | S35: TRUE | T35: TRUE | U35: TRUE | V35: TRUE | W35: TRUE | X35: TRUE | Y35: TRUE | Z35: TRUE | AA35: TRUE | AB35: TRUE | AC35: FALSE | AD35: TRUE | AE35: TRUE | AF35: TRUE | AG35: FALSE | AH35: TRUE | AI35: FALSE | AJ35: TRUE | AK35: TRUE | AL35: TRUE | AM35: TRUE | AN35: FALSE | AO35: TRUE | AP35: TRUE | AQ35: TRUE | AR35: FALSE | AS35: FALSE | AT35: FALSE | AU35: TRUE | AV35: FALSE | AW35: TRUE | AX35: TRUE | AY35: FALSE | AZ35: FALSE | BA35: FALSE
A36: 31 | B36: TRUE | D36: TRUE | E36: TRUE | F36: TRUE | G36: TRUE | H36: TRUE | I36: FALSE | J36: TRUE | K36: TRUE | L36: FALSE | M36: TRUE | N36: TRUE | O36: TRUE | P36: TRUE | Q36: TRUE | R36: TRUE | S36: FALSE | T36: TRUE | U36: TRUE | V36: FALSE | W36: TRUE | X36: TRUE | Y36: TRUE | Z36: TRUE | AA36: TRUE | AB36: TRUE | AC36: TRUE | AD36: TRUE | AE36: TRUE | AF36: TRUE | AG36: TRUE | AH36: TRUE | AI36: FALSE | AJ36: TRUE | AK36: FALSE | AL36: TRUE | AM36: FALSE | AN36: TRUE | AO36: TRUE | AP36: TRUE | AQ36: TRUE | AR36: TRUE | AS36: TRUE | AT36: FALSE | AU36: TRUE | AV36: TRUE | AW36: FALSE | AX36: TRUE | AY36: TRUE | AZ36: FALSE | BA36: FALSE
A37: 32 | B37: FALSE | D37: FALSE | E37: TRUE | F37: TRUE | G37: TRUE | H37: TRUE | I37: FALSE | J37: FALSE | K37: TRUE | L37: TRUE | M37: FALSE | N37: TRUE | O37: TRUE | P37: TRUE | Q37: FALSE | R37: FALSE | S37: TRUE | T37: TRUE | U37: FALSE | V37: TRUE | W37: FALSE | X37: FALSE | Y37: FALSE | Z37: TRUE | AA37: FALSE | AB37: TRUE | AC37: TRUE | AD37: FALSE | AE37: TRUE | AF37: TRUE | AG37: TRUE | AH37: TRUE | AI37: TRUE | AJ37: TRUE | AK37: TRUE | AL37: TRUE | AM37: FALSE | AN37: TRUE | AO37: FALSE | AP37: TRUE | AQ37: TRUE | AR37: TRUE | AS37: FALSE | AT37: TRUE | AU37: TRUE | AV37: FALSE | AW37: TRUE | AX37: TRUE | AY37: FALSE | AZ37: TRUE | BA37: TRUE
A38: 33 | B38: TRUE | D38: TRUE | E38: TRUE | F38: TRUE | G38: TRUE | H38: FALSE | I38: TRUE | J38: TRUE | K38: TRUE | L38: TRUE | M38: TRUE | N38: TRUE | O38: TRUE | P38: FALSE | Q38: FALSE | R38: TRUE | S38: FALSE | T38: TRUE | U38: FALSE | V38: TRUE | W38: TRUE | X38: FALSE | Y38: TRUE | Z38: TRUE | AA38: TRUE | AB38: TRUE | AC38: FALSE | AD38: TRUE | AE38: FALSE | AF38: TRUE | AG38: FALSE | AH38: FALSE | AI38: FALSE | AJ38: FALSE | AK38: TRUE | AL38: TRUE | AM38: TRUE | AN38: FALSE | AO38: TRUE | AP38: TRUE | AQ38: TRUE | AR38: TRUE | AS38: TRUE | AT38: FALSE | AU38: TRUE | AV38: TRUE | AW38: TRUE | AX38: FALSE | AY38: TRUE | AZ38: TRUE | BA38: TRUE
A39: 34 | B39: FALSE | D39: TRUE | E39: FALSE | F39: TRUE | G39: TRUE | H39: FALSE | I39: FALSE | J39: TRUE | K39: TRUE | L39: TRUE | M39: TRUE | N39: FALSE | O39: TRUE | P39: TRUE | Q39: TRUE | R39: FALSE | S39: TRUE | T39: TRUE | U39: TRUE | V39: TRUE | W39: TRUE | X39: TRUE | Y39: TRUE | Z39: FALSE | AA39: FALSE | AB39: FALSE | AC39: TRUE | AD39: TRUE | AE39: FALSE | AF39: TRUE | AG39: FALSE | AH39: TRUE | AI39: TRUE | AJ39: TRUE | AK39: TRUE | AL39: TRUE | AM39: TRUE | AN39: TRUE | AO39: TRUE | AP39: TRUE | AQ39: TRUE | AR39: TRUE | AS39: TRUE | AT39: TRUE | AU39: TRUE | AV39: TRUE | AW39: FALSE | AX39: TRUE | AY39: TRUE | AZ39: TRUE | BA39: FALSE
A40: 35 | B40: TRUE | D40: TRUE | E40: TRUE | F40: FALSE | G40: FALSE | H40: TRUE | I40: FALSE | J40: TRUE | K40: TRUE | L40: TRUE | M40: TRUE | N40: TRUE | O40: TRUE | P40: FALSE | Q40: TRUE | R40: TRUE | S40: FALSE | T40: TRUE | U40: TRUE | V40: TRUE | W40: TRUE | X40: FALSE | Y40: TRUE | Z40: FALSE | AA40: TRUE | AB40: TRUE | AC40: FALSE | AD40: FALSE | AE40: TRUE | AF40: TRUE | AG40: FALSE | AH40: FALSE | AI40: TRUE | AJ40: TRUE | AK40: TRUE | AL40: FALSE | AM40: FALSE | AN40: TRUE | AO40: FALSE | AP40: TRUE | AQ40: FALSE | AR40: FALSE | AS40: TRUE | AT40: TRUE | AU40: FALSE | AV40: FALSE | AW40: FALSE | AX40: TRUE | AY40: TRUE | AZ40: TRUE | BA40: TRUE
A41: 36 | B41: FALSE | D41: TRUE | E41: TRUE | F41: TRUE | G41: TRUE | H41: TRUE | I41: TRUE | J41: FALSE | K41: TRUE | L41: TRUE | M41: TRUE | N41: FALSE | O41: TRUE | P41: FALSE | Q41: TRUE | R41: TRUE | S41: TRUE | T41: TRUE | U41: FALSE | V41: TRUE | W41: FALSE | X41: FALSE | Y41: FALSE | Z41: TRUE | AA41: TRUE | AB41: TRUE | AC41: TRUE | AD41: FALSE | AE41: FALSE | AF41: TRUE | AG41: FALSE | AH41: TRUE | AI41: TRUE | AJ41: TRUE | AK41: TRUE | AL41: FALSE | AM41: TRUE | AN41: TRUE | AO41: FALSE | AP41: TRUE | AQ41: TRUE | AR41: TRUE | AS41: TRUE | AT41: TRUE | AU41: TRUE | AV41: TRUE | AW41: TRUE | AX41: FALSE | AY41: FALSE | AZ41: TRUE | BA41: TRUE
A42: 37 | B42: TRUE | D42: FALSE | E42: TRUE | F42: FALSE | G42: TRUE | H42: FALSE | I42: TRUE | J42: FALSE | K42: TRUE | L42: TRUE | M42: TRUE | N42: TRUE | O42: TRUE | P42: TRUE | Q42: FALSE | R42: TRUE | S42: TRUE | T42: TRUE | U42: TRUE | V42: FALSE | W42: FALSE | X42: TRUE | Y42: TRUE | Z42: FALSE | AA42: FALSE | AB42: TRUE | AC42: TRUE | AD42: TRUE | AE42: TRUE | AF42: TRUE | AG42: FALSE | AH42: TRUE | AI42: TRUE | AJ42: TRUE | AK42: TRUE | AL42: TRUE | AM42: FALSE | AN42: FALSE | AO42: TRUE | AP42: TRUE | AQ42: FALSE | AR42: TRUE | AS42: FALSE | AT42: TRUE | AU42: TRUE | AV42: TRUE | AW42: TRUE | AX42: TRUE | AY42: TRUE | AZ42: TRUE | BA42: TRUE
A43: 38 | B43: TRUE | D43: TRUE | E43: TRUE | F43: TRUE | G43: TRUE | H43: FALSE | I43: FALSE | J43: TRUE | K43: TRUE | L43: FALSE | M43: TRUE | N43: TRUE | O43: TRUE | P43: TRUE | Q43: TRUE | R43: FALSE | S43: TRUE | T43: TRUE | U43: TRUE | V43: FALSE | W43: FALSE | X43: FALSE | Y43: TRUE | Z43: FALSE | AA43: FALSE | AB43: TRUE | AC43: TRUE | AD43: TRUE | AE43: TRUE | AF43: FALSE | AG43: FALSE | AH43: TRUE | AI43: TRUE | AJ43: TRUE | AK43: FALSE | AL43: TRUE | AM43: FALSE | AN43: TRUE | AO43: TRUE | AP43: FALSE | AQ43: TRUE | AR43: TRUE | AS43: TRUE | AT43: FALSE | AU43: TRUE | AV43: FALSE | AW43: TRUE | AX43: TRUE | AY43: TRUE | AZ43: TRUE | BA43: TRUE
A44: 39 | B44: TRUE | D44: TRUE | E44: TRUE | F44: TRUE | G44: TRUE | H44: TRUE | I44: TRUE | J44: TRUE | K44: TRUE | L44: TRUE | M44: TRUE | N44: FALSE | O44: FALSE | P44: TRUE | Q44: TRUE | R44: TRUE | S44: TRUE | T44: TRUE | U44: FALSE | V44: FALSE | W44: TRUE | X44: TRUE | Y44: FALSE | Z44: TRUE | AA44: TRUE | AB44: TRUE | AC44: TRUE | AD44: TRUE | AE44: FALSE | AF44: FALSE | AG44: TRUE | AH44: FALSE | AI44: FALSE | AJ44: TRUE | AK44: FALSE | AL44: TRUE | AM44: FALSE | AN44: FALSE | AO44: TRUE | AP44: TRUE | AQ44: TRUE | AR44: FALSE | AS44: TRUE | AT44: FALSE | AU44: FALSE | AV44: TRUE | AW44: FALSE | AX44: TRUE | AY44: TRUE | AZ44: FALSE | BA44: TRUE
A45: 40 | B45: TRUE | D45: TRUE | E45: TRUE | F45: FALSE | G45: FALSE | H45: TRUE | I45: TRUE | J45: TRUE | K45: TRUE | L45: TRUE | M45: TRUE | N45: TRUE | O45: TRUE | P45: TRUE | Q45: FALSE | R45: FALSE | S45: FALSE | T45: FALSE | U45: TRUE | V45: TRUE | W45: TRUE | X45: FALSE | Y45: TRUE | Z45: TRUE | AA45: TRUE | AB45: TRUE | AC45: TRUE | AD45: FALSE | AE45: TRUE | AF45: TRUE | AG45: FALSE | AH45: FALSE | AI45: FALSE | AJ45: FALSE | AK45: FALSE | AL45: TRUE | AM45: TRUE | AN45: FALSE | AO45: TRUE | AP45: TRUE | AQ45: TRUE | AR45: TRUE | AS45: TRUE | AT45: FALSE | AU45: TRUE | AV45: TRUE | AW45: TRUE | AX45: TRUE | AY45: TRUE | AZ45: FALSE | BA45: TRUE
A46: 41 | B46: TRUE | D46: TRUE | E46: TRUE | F46: FALSE | G46: TRUE | H46: FALSE | I46: TRUE | J46: FALSE | K46: TRUE | L46: FALSE | M46: FALSE | N46: FALSE | O46: TRUE | P46: TRUE | Q46: TRUE | R46: TRUE | S46: FALSE | T46: FALSE | U46: FALSE | V46: TRUE | W46: TRUE | X46: FALSE | Y46: TRUE | Z46: TRUE | AA46: TRUE | AB46: FALSE | AC46: TRUE | AD46: TRUE | AE46: FALSE | AF46: TRUE | AG46: FALSE | AH46: TRUE | AI46: TRUE | AJ46: TRUE | AK46: TRUE | AL46: FALSE | AM46: TRUE | AN46: TRUE | AO46: TRUE | AP46: TRUE | AQ46: TRUE | AR46: TRUE | AS46: FALSE | AT46: TRUE | AU46: TRUE | AV46: TRUE | AW46: FALSE | AX46: TRUE | AY46: FALSE | AZ46: TRUE | BA46: TRUE
A47: 42 | B47: TRUE | D47: TRUE | E47: TRUE | F47: TRUE | G47: FALSE | H47: TRUE | I47: FALSE | J47: FALSE | K47: FALSE | L47: TRUE | M47: TRUE | N47: FALSE | O47: TRUE | P47: TRUE | Q47: TRUE | R47: TRUE | S47: FALSE | T47: FALSE | U47: TRUE | V47: TRUE | W47: FALSE | X47: TRUE | Y47: TRUE | Z47: TRUE | AA47: TRUE | AB47: FALSE | AC47: TRUE | AD47: FALSE | AE47: FALSE | AF47: FALSE | AG47: FALSE | AH47: TRUE | AI47: TRUE | AJ47: FALSE | AK47: FALSE | AL47: FALSE | AM47: FALSE | AN47: TRUE | AO47: TRUE | AP47: FALSE | AQ47: TRUE | AR47: FALSE | AS47: TRUE | AT47: TRUE | AU47: TRUE | AV47: TRUE | AW47: TRUE | AX47: TRUE | AY47: TRUE | AZ47: TRUE | BA47: TRUE
A48: 43 | B48: TRUE | D48: TRUE | E48: TRUE | F48: FALSE | G48: FALSE | H48: TRUE | I48: TRUE | J48: TRUE | K48: TRUE | L48: TRUE | M48: TRUE | N48: TRUE | O48: TRUE | P48: TRUE | Q48: FALSE | R48: FALSE | S48: TRUE | T48: TRUE | U48: TRUE | V48: FALSE | W48: TRUE | X48: TRUE | Y48: TRUE | Z48: TRUE | AA48: TRUE | AB48: FALSE | AC48: FALSE | AD48: TRUE | AE48: FALSE | AF48: TRUE | AG48: TRUE | AH48: TRUE | AI48: FALSE | AJ48: FALSE | AK48: FALSE | AL48: FALSE | AM48: TRUE | AN48: FALSE | AO48: TRUE | AP48: TRUE | AQ48: FALSE | AR48: TRUE | AS48: TRUE | AT48: TRUE | AU48: TRUE | AV48: TRUE | AW48: TRUE | AX48: TRUE | AY48: TRUE | AZ48: TRUE | BA48: FALSE
A49: 44 | B49: FALSE | D49: TRUE | E49: TRUE | F49: FALSE | G49: TRUE | H49: TRUE | I49: TRUE | J49: TRUE | K49: TRUE | L49: TRUE | M49: FALSE | N49: FALSE | O49: FALSE | P49: TRUE | Q49: FALSE | R49: FALSE | S49: FALSE | T49: TRUE | U49: TRUE | V49: TRUE | W49: FALSE | X49: TRUE | Y49: TRUE | Z49: TRUE | AA49: FALSE | AB49: TRUE | AC49: FALSE | AD49: TRUE | AE49: TRUE | AF49: TRUE | AG49: TRUE | AH49: FALSE | AI49: TRUE | AJ49: FALSE | AK49: TRUE | AL49: FALSE | AM49: FALSE | AN49: TRUE | AO49: TRUE | AP49: TRUE | AQ49: TRUE | AR49: FALSE | AS49: TRUE | AT49: TRUE | AU49: TRUE | AV49: TRUE | AW49: FALSE | AX49: TRUE | AY49: FALSE | AZ49: FALSE | BA49: FALSE
A50: 45 | B50: FALSE | D50: TRUE | E50: TRUE | F50: TRUE | G50: FALSE | H50: TRUE | I50: TRUE | J50: TRUE | K50: TRUE | L50: TRUE | M50: TRUE | N50: TRUE | O50: TRUE | P50: TRUE | Q50: TRUE | R50: FALSE | S50: TRUE | T50: FALSE | U50: TRUE | V50: FALSE | W50: TRUE | X50: TRUE | Y50: TRUE | Z50: TRUE | AA50: FALSE | AB50: FALSE | AC50: TRUE | AD50: TRUE | AE50: TRUE | AF50: FALSE | AG50: TRUE | AH50: TRUE | AI50: FALSE | AJ50: FALSE | AK50: TRUE | AL50: TRUE | AM50: TRUE | AN50: TRUE | AO50: TRUE | AP50: TRUE | AQ50: FALSE | AR50: TRUE | AS50: FALSE | AT50: TRUE | AU50: TRUE | AV50: TRUE | AW50: TRUE | AX50: FALSE | AY50: FALSE | AZ50: TRUE | BA50: TRUE
A51: 46 | B51: TRUE | D51: TRUE | E51: FALSE | F51: TRUE | G51: TRUE | H51: TRUE | I51: FALSE | J51: TRUE | K51: FALSE | L51: TRUE | M51: TRUE | N51: FALSE | O51: TRUE | P51: TRUE | Q51: TRUE | R51: TRUE | S51: TRUE | T51: TRUE | U51: TRUE | V51: TRUE | W51: TRUE | X51: TRUE | Y51: TRUE | Z51: FALSE | AA51: FALSE | AB51: FALSE | AC51: FALSE | AD51: TRUE | AE51: TRUE | AF51: TRUE | AG51: FALSE | AH51: TRUE | AI51: TRUE | AJ51: FALSE | AK51: TRUE | AL51: FALSE | AM51: FALSE | AN51: TRUE | AO51: TRUE | AP51: TRUE | AQ51: FALSE | AR51: TRUE | AS51: TRUE | AT51: FALSE | AU51: FALSE | AV51: TRUE | AW51: TRUE | AX51: TRUE | AY51: FALSE | AZ51: FALSE | BA51: FALSE
A52: 47 | B52: TRUE | D52: FALSE | E52: TRUE | F52: TRUE | G52: TRUE | H52: TRUE | I52: TRUE | J52: FALSE | K52: TRUE | L52: TRUE | M52: TRUE | N52: FALSE | O52: TRUE | P52: FALSE | Q52: FALSE | R52: TRUE | S52: TRUE | T52: FALSE | U52: TRUE | V52: TRUE | W52: TRUE | X52: TRUE | Y52: FALSE | Z52: TRUE | AA52: TRUE | AB52: TRUE | AC52: TRUE | AD52: TRUE | AE52: TRUE | AF52: TRUE | AG52: TRUE | AH52: TRUE | AI52: TRUE | AJ52: FALSE | AK52: TRUE | AL52: TRUE | AM52: FALSE | AN52: TRUE | AO52: TRUE | AP52: TRUE | AQ52: TRUE | AR52: TRUE | AS52: TRUE | AT52: TRUE | AU52: TRUE | AV52: TRUE | AW52: FALSE | AX52: FALSE | AY52: FALSE | AZ52: TRUE | BA52: FALSE
A53: 48 | B53: TRUE | D53: TRUE | E53: TRUE | F53: TRUE | G53: TRUE | H53: TRUE | I53: TRUE | J53: TRUE | K53: TRUE | L53: TRUE | M53: TRUE | N53: TRUE | O53: TRUE | P53: TRUE | Q53: FALSE | R53: TRUE | S53: TRUE | T53: TRUE | U53: FALSE | V53: FALSE | W53: FALSE | X53: FALSE | Y53: TRUE | Z53: FALSE | AA53: TRUE | AB53: TRUE | AC53: FALSE | AD53: TRUE | AE53: TRUE | AF53: TRUE | AG53: FALSE | AH53: TRUE | AI53: TRUE | AJ53: FALSE | AK53: TRUE | AL53: TRUE | AM53: TRUE | AN53: FALSE | AO53: FALSE | AP53: TRUE | AQ53: TRUE | AR53: FALSE | AS53: FALSE | AT53: TRUE | AU53: TRUE | AV53: TRUE | AW53: TRUE | AX53: TRUE | AY53: TRUE | AZ53: TRUE | BA53: FALSE
A54: 49 | B54: FALSE | D54: TRUE | E54: TRUE | F54: TRUE | G54: TRUE | H54: FALSE | I54: FALSE | J54: TRUE | K54: TRUE | L54: FALSE | M54: TRUE | N54: FALSE | O54: TRUE | P54: TRUE | Q54: FALSE | R54: TRUE | S54: TRUE | T54: FALSE | U54: TRUE | V54: FALSE | W54: FALSE | X54: TRUE | Y54: TRUE | Z54: TRUE | AA54: FALSE | AB54: FALSE | AC54: TRUE | AD54: TRUE | AE54: FALSE | AF54: FALSE | AG54: FALSE | AH54: FALSE | AI54: TRUE | AJ54: TRUE | AK54: TRUE | AL54: FALSE | AM54: TRUE | AN54: TRUE | AO54: FALSE | AP54: TRUE | AQ54: TRUE | AR54: FALSE | AS54: TRUE | AT54: TRUE | AU54: TRUE | AV54: TRUE | AW54: FALSE | AX54: FALSE | AY54: TRUE | AZ54: TRUE | BA54: TRUE
A55: 50 | B55: FALSE | D55: FALSE | E55: TRUE | F55: TRUE | G55: FALSE | H55: TRUE | I55: TRUE | J55: TRUE | K55: TRUE | L55: TRUE | M55: TRUE | N55: TRUE | O55: TRUE | P55: TRUE | Q55: FALSE | R55: FALSE | S55: FALSE | T55: TRUE | U55: TRUE | V55: TRUE | W55: FALSE | X55: FALSE | Y55: FALSE | Z55: FALSE | AA55: TRUE | AB55: TRUE | AC55: TRUE | AD55: TRUE | AE55: TRUE | AF55: FALSE | AG55: TRUE | AH55: TRUE | AI55: TRUE | AJ55: TRUE | AK55: TRUE | AL55: FALSE | AM55: TRUE | AN55: FALSE | AO55: TRUE | AP55: TRUE | AQ55: TRUE | AR55: TRUE | AS55: FALSE | AT55: TRUE | AU55: TRUE | AV55: TRUE | AW55: TRUE | AX55: TRUE | AY55: TRUE | AZ55: TRUE | BA55: TRUE
A56: 51 | B56: TRUE | D56: TRUE | E56: FALSE | F56: TRUE | G56: TRUE | H56: TRUE | I56: TRUE | J56: TRUE | K56: TRUE | L56: FALSE | M56: FALSE | N56: FALSE | O56: FALSE | P56: FALSE | Q56: TRUE | R56: TRUE | S56: FALSE | T56: FALSE | U56: TRUE | V56: TRUE | W56: TRUE | X56: FALSE | Y56: TRUE | Z56: FALSE | AA56: TRUE | AB56: FALSE | AC56: TRUE | AD56: TRUE | AE56: FALSE | AF56: TRUE | AG56: FALSE | AH56: FALSE | AI56: FALSE | AJ56: TRUE | AK56: TRUE | AL56: TRUE | AM56: TRUE | AN56: TRUE | AO56: TRUE | AP56: TRUE | AQ56: FALSE | AR56: FALSE | AS56: TRUE | AT56: TRUE | AU56: FALSE | AV56: TRUE | AW56: TRUE | AX56: TRUE | AY56: TRUE | AZ56: TRUE | BA56: FALSE
A57: 52 | B57: FALSE | D57: FALSE | E57: TRUE | F57: TRUE | G57: TRUE | H57: FALSE | I57: TRUE | J57: TRUE | K57: TRUE | L57: FALSE | M57: TRUE | N57: TRUE | O57: TRUE | P57: FALSE | Q57: TRUE | R57: FALSE | S57: TRUE | T57: TRUE | U57: TRUE | V57: TRUE | W57: TRUE | X57: TRUE | Y57: TRUE | Z57: TRUE | AA57: FALSE | AB57: FALSE | AC57: TRUE | AD57: FALSE | AE57: TRUE | AF57: TRUE | AG57: TRUE | AH57: TRUE | AI57: FALSE | AJ57: TRUE | AK57: TRUE | AL57: TRUE | AM57: TRUE | AN57: FALSE | AO57: TRUE | AP57: FALSE | AQ57: FALSE | AR57: FALSE | AS57: TRUE | AT57: TRUE | AU57: TRUE | AV57: TRUE | AW57: TRUE | AX57: TRUE | AY57: TRUE | AZ57: TRUE | BA57: FALSE
A58: 53 | B58: TRUE | D58: FALSE | E58: TRUE | F58: FALSE | G58: TRUE | H58: FALSE | I58: TRUE | J58: TRUE | K58: TRUE | L58: TRUE | M58: FALSE | N58: TRUE | O58: TRUE | P58: TRUE | Q58: TRUE | R58: FALSE | S58: FALSE | T58: FALSE | U58: FALSE | V58: TRUE | W58: FALSE | X58: TRUE | Y58: TRUE | Z58: TRUE | AA58: FALSE | AB58: TRUE | AC58: TRUE | AD58: FALSE | AE58: TRUE | AF58: TRUE | AG58: FALSE | AH58: TRUE | AI58: TRUE | AJ58: FALSE | AK58: FALSE | AL58: TRUE | AM58: FALSE | AN58: TRUE | AO58: TRUE | AP58: TRUE | AQ58: TRUE | AR58: TRUE | AS58: TRUE | AT58: TRUE | AU58: TRUE | AV58: FALSE | AW58: FALSE | AX58: FALSE | AY58: TRUE | AZ58: FALSE | BA58: TRUE
A59: 54 | B59: FALSE | D59: TRUE | E59: TRUE | F59: TRUE | G59: TRUE | H59: TRUE | I59: TRUE | J59: FALSE | K59: TRUE | L59: TRUE | M59: TRUE | N59: TRUE | O59: TRUE | P59: TRUE | Q59: TRUE | R59: TRUE | S59: TRUE | T59: FALSE | U59: FALSE | V59: TRUE | W59: FALSE | X59: FALSE | Y59: TRUE | Z59: FALSE | AA59: FALSE | AB59: FALSE | AC59: FALSE | AD59: TRUE | AE59: TRUE | AF59: FALSE | AG59: FALSE | AH59: TRUE | AI59: TRUE | AJ59: TRUE | AK59: FALSE | AL59: TRUE | AM59: FALSE | AN59: TRUE | AO59: TRUE | AP59: FALSE | AQ59: TRUE | AR59: TRUE | AS59: TRUE | AT59: TRUE | AU59: FALSE | AV59: TRUE | AW59: TRUE | AX59: TRUE | AY59: TRUE | AZ59: TRUE | BA59: FALSE
A60: 55 | B60: TRUE | D60: TRUE | E60: FALSE | F60: TRUE | G60: FALSE | H60: FALSE | I60: TRUE | J60: TRUE | K60: TRUE | L60: TRUE | M60: TRUE | N60: FALSE | O60: TRUE | P60: TRUE | Q60: TRUE | R60: TRUE | S60: TRUE | T60: FALSE | U60: FALSE | V60: TRUE | W60: TRUE | X60: TRUE | Y60: FALSE | Z60: TRUE | AA60: TRUE | AB60: TRUE | AC60: TRUE | AD60: TRUE | AE60: TRUE | AF60: FALSE | AG60: FALSE | AH60: FALSE | AI60: FALSE | AJ60: FALSE | AK60: FALSE | AL60: TRUE | AM60: TRUE | AN60: FALSE | AO60: TRUE | AP60: FALSE | AQ60: FALSE | AR60: TRUE | AS60: FALSE | AT60: TRUE | AU60: FALSE | AV60: TRUE | AW60: TRUE | AX60: FALSE | AY60: FALSE | AZ60: TRUE | BA60: TRUE
A61: 56 | B61: TRUE | D61: TRUE | E61: TRUE | F61: TRUE | G61: FALSE | H61: FALSE | I61: TRUE | J61: TRUE | K61: TRUE | L61: TRUE | M61: TRUE | N61: TRUE | O61: TRUE | P61: TRUE | Q61: FALSE | R61: FALSE | S61: TRUE | T61: TRUE | U61: FALSE | V61: TRUE | W61: TRUE | X61: FALSE | Y61: TRUE | Z61: TRUE | AA61: FALSE | AB61: TRUE | AC61: FALSE | AD61: FALSE | AE61: TRUE | AF61: TRUE | AG61: FALSE | AH61: FALSE | AI61: TRUE | AJ61: TRUE | AK61: FALSE | AL61: TRUE | AM61: FALSE | AN61: FALSE | AO61: TRUE | AP61: TRUE | AQ61: FALSE | AR61: TRUE | AS61: TRUE | AT61: FALSE | AU61: TRUE | AV61: FALSE | AW61: TRUE | AX61: TRUE | AY61: TRUE | AZ61: TRUE | BA61: TRUE
A62: 57 | B62: TRUE | D62: FALSE | E62: TRUE | F62: TRUE | G62: TRUE | H62: TRUE | I62: TRUE | J62: FALSE | K62: TRUE | L62: TRUE | M62: TRUE | N62: TRUE | O62: TRUE | P62: TRUE | Q62: TRUE | R62: FALSE | S62: TRUE | T62: TRUE | U62: FALSE | V62: TRUE | W62: FALSE | X62: TRUE | Y62: TRUE | Z62: TRUE | AA62: TRUE | AB62: FALSE | AC62: TRUE | AD62: FALSE | AE62: TRUE | AF62: TRUE | AG62: TRUE | AH62: FALSE | AI62: TRUE | AJ62: TRUE | AK62: TRUE | AL62: FALSE | AM62: TRUE | AN62: TRUE | AO62: FALSE | AP62: TRUE | AQ62: TRUE | AR62: TRUE | AS62: TRUE | AT62: TRUE | AU62: TRUE | AV62: FALSE | AW62: TRUE | AX62: FALSE | AY62: TRUE | AZ62: TRUE | BA62: TRUE
A63: 58 | B63: TRUE | D63: TRUE | E63: TRUE | F63: TRUE | G63: TRUE | H63: TRUE | I63: TRUE | J63: TRUE | K63: TRUE | L63: TRUE | M63: FALSE | N63: FALSE | O63: TRUE | P63: TRUE | Q63: TRUE | R63: TRUE | S63: TRUE | T63: TRUE | U63: TRUE | V63: FALSE | W63: FALSE | X63: TRUE | Y63: TRUE | Z63: FALSE | AA63: FALSE | AB63: FALSE | AC63: TRUE | AD63: TRUE | AE63: TRUE | AF63: TRUE | AG63: TRUE | AH63: TRUE | AI63: TRUE | AJ63: TRUE | AK63: TRUE | AL63: TRUE | AM63: TRUE | AN63: TRUE | AO63: TRUE | AP63: TRUE | AQ63: TRUE | AR63: TRUE | AS63: TRUE | AT63: FALSE | AU63: TRUE | AV63: TRUE | AW63: FALSE | AX63: TRUE | AY63: TRUE | AZ63: FALSE | BA63: FALSE
A64: 59 | B64: FALSE | D64: TRUE | E64: TRUE | F64: TRUE | G64: TRUE | H64: TRUE | I64: TRUE | J64: TRUE | K64: TRUE | L64: FALSE | M64: FALSE | N64: TRUE | O64: TRUE | P64: FALSE | Q64: FALSE | R64: FALSE | S64: TRUE | T64: FALSE | U64: TRUE | V64: TRUE | W64: TRUE | X64: TRUE | Y64: FALSE | Z64: FALSE | AA64: FALSE | AB64: TRUE | AC64: TRUE | AD64: TRUE | AE64: FALSE | AF64: TRUE | AG64: TRUE | AH64: TRUE | AI64: TRUE | AJ64: TRUE | AK64: TRUE | AL64: TRUE | AM64: FALSE | AN64: TRUE | AO64: FALSE | AP64: FALSE | AQ64: TRUE | AR64: FALSE | AS64: TRUE | AT64: TRUE | AU64: FALSE | AV64: TRUE | AW64: TRUE | AX64: TRUE | AY64: TRUE | AZ64: TRUE | BA64: TRUE
A65: 60 | B65: TRUE | D65: FALSE | E65: FALSE | F65: TRUE | G65: TRUE | H65: TRUE | I65: TRUE | J65: FALSE | K65: FALSE | L65: TRUE | M65: TRUE | N65: TRUE | O65: TRUE | P65: TRUE | Q65: TRUE | R65: TRUE | S65: TRUE | T65: FALSE | U65: TRUE | V65: TRUE | W65: FALSE | X65: FALSE | Y65: TRUE | Z65: FALSE | AA65: TRUE | AB65: TRUE | AC65: FALSE | AD65: TRUE | AE65: FALSE | AF65: FALSE | AG65: TRUE | AH65: TRUE | AI65: TRUE | AJ65: TRUE | AK65: FALSE | AL65: FALSE | AM65: TRUE | AN65: TRUE | AO65: FALSE | AP65: TRUE | AQ65: FALSE | AR65: FALSE | AS65: FALSE | AT65: FALSE | AU65: FALSE | AV65: TRUE | AW65: FALSE | AX65: FALSE | AY65: FALSE | AZ65: TRUE | BA65: TRUE
A66: 61 | B66: FALSE | D66: TRUE | E66: FALSE | F66: TRUE | G66: FALSE | H66: TRUE | I66: TRUE | J66: FALSE | K66: FALSE | L66: TRUE | M66: TRUE | N66: TRUE | O66: TRUE | P66: TRUE | Q66: TRUE | R66: TRUE | S66: FALSE | T66: TRUE | U66: TRUE | V66: TRUE | W66: FALSE | X66: TRUE | Y66: FALSE | Z66: FALSE | AA66: FALSE | AB66: FALSE | AC66: TRUE | AD66: TRUE | AE66: TRUE | AF66: TRUE | AG66: TRUE | AH66: FALSE | AI66: TRUE | AJ66: TRUE | AK66: TRUE | AL66: FALSE | AM66: TRUE | AN66: TRUE | AO66: FALSE | AP66: TRUE | AQ66: FALSE | AR66: TRUE | AS66: TRUE | AT66: TRUE | AU66: TRUE | AV66: FALSE | AW66: TRUE | AX66: FALSE | AY66: FALSE | AZ66: FALSE | BA66: TRUE
A67: 62 | B67: TRUE | D67: TRUE | E67: FALSE | F67: TRUE | G67: TRUE | H67: TRUE | I67: TRUE | J67: TRUE | K67: TRUE | L67: FALSE | M67: TRUE | N67: TRUE | O67: TRUE | P67: TRUE | Q67: TRUE | R67: TRUE | S67: TRUE | T67: TRUE | U67: TRUE | V67: TRUE | W67: TRUE | X67: FALSE | Y67: TRUE | Z67: TRUE | AA67: FALSE | AB67: TRUE | AC67: TRUE | AD67: FALSE | AE67: TRUE | AF67: TRUE | AG67: TRUE | AH67: TRUE | AI67: TRUE | AJ67: TRUE | AK67: TRUE | AL67: TRUE | AM67: FALSE | AN67: TRUE | AO67: TRUE | AP67: FALSE | AQ67: TRUE | AR67: FALSE | AS67: FALSE | AT67: FALSE | AU67: FALSE | AV67: FALSE | AW67: TRUE | AX67: FALSE | AY67: TRUE | AZ67: TRUE | BA67: FALSE
A68: 63 | B68: TRUE | D68: FALSE | E68: TRUE | F68: TRUE | G68: TRUE | H68: TRUE | I68: TRUE | J68: TRUE | K68: TRUE | L68: TRUE | M68: TRUE | N68: TRUE | O68: TRUE | P68: TRUE | Q68: TRUE | R68: TRUE | S68: FALSE | T68: TRUE | U68: FALSE | V68: TRUE | W68: TRUE | X68: TRUE | Y68: TRUE | Z68: FALSE | AA68: FALSE | AB68: TRUE | AC68: TRUE | AD68: TRUE | AE68: FALSE | AF68: TRUE | AG68: FALSE | AH68: TRUE | AI68: TRUE | AJ68: TRUE | AK68: FALSE | AL68: TRUE | AM68: FALSE | AN68: TRUE | AO68: FALSE | AP68: FALSE | AQ68: FALSE | AR68: FALSE | AS68: TRUE | AT68: TRUE | AU68: TRUE | AV68: TRUE | AW68: TRUE | AX68: TRUE | AY68: TRUE | AZ68: FALSE | BA68: FALSE
A69: 64 | B69: TRUE | D69: TRUE | E69: FALSE | F69: FALSE | G69: TRUE | H69: TRUE | I69: TRUE | J69: TRUE | K69: TRUE | L69: TRUE | M69: TRUE | N69: TRUE | O69: TRUE | P69: FALSE | Q69: FALSE | R69: TRUE | S69: TRUE | T69: TRUE | U69: TRUE | V69: TRUE | W69: TRUE | X69: TRUE | Y69: TRUE | Z69: FALSE | AA69: FALSE | AB69: FALSE | AC69: TRUE | AD69: FALSE | AE69: TRUE | AF69: TRUE | AG69: TRUE | AH69: TRUE | AI69: FALSE | AJ69: TRUE | AK69: TRUE | AL69: TRUE | AM69: FALSE | AN69: TRUE | AO69: TRUE | AP69: FALSE | AQ69: FALSE | AR69: FALSE | AS69: TRUE | AT69: TRUE | AU69: TRUE | AV69: TRUE | AW69: FALSE | AX69: TRUE | AY69: TRUE | AZ69: TRUE | BA69: TRUE
A70: 65 | B70: TRUE | D70: TRUE | E70: TRUE | F70: FALSE | G70: TRUE | H70: FALSE | I70: FALSE | J70: TRUE | K70: TRUE | L70: FALSE | M70: TRUE | N70: TRUE | O70: FALSE | P70: TRUE | Q70: FALSE | R70: TRUE | S70: TRUE | T70: FALSE | U70: TRUE | V70: TRUE | W70: FALSE | X70: TRUE | Y70: TRUE | Z70: TRUE | AA70: FALSE | AB70: FALSE | AC70: TRUE | AD70: TRUE | AE70: TRUE | AF70: TRUE | AG70: TRUE | AH70: FALSE | AI70: FALSE | AJ70: FALSE | AK70: TRUE | AL70: FALSE | AM70: FALSE | AN70: FALSE | AO70: TRUE | AP70: TRUE | AQ70: TRUE | AR70: FALSE | AS70: TRUE | AT70: FALSE | AU70: TRUE | AV70: FALSE | AW70: FALSE | AX70: TRUE | AY70: TRUE | AZ70: TRUE | BA70: TRUE
A71: 66 | B71: =RAND()<$C$2 -> FALSE | D71: FALSE | E71: FALSE | F71: FALSE | G71: TRUE | H71: TRUE | I71: TRUE | J71: TRUE | K71: TRUE | L71: FALSE | M71: TRUE | N71: TRUE | O71: FALSE | P71: TRUE | Q71: TRUE | R71: FALSE | S71: FALSE | T71: TRUE | U71: TRUE | V71: TRUE | W71: FALSE | X71: FALSE | Y71: TRUE | Z71: TRUE | AA71: TRUE | AB71: TRUE | AC71: TRUE | AD71: TRUE | AE71: FALSE | AF71: TRUE | AG71: TRUE | AH71: TRUE | AI71: TRUE | AJ71: FALSE | AK71: TRUE | AL71: FALSE | AM71: TRUE | AN71: TRUE | AO71: TRUE | AP71: TRUE | AQ71: FALSE | AR71: TRUE | AS71: TRUE | AT71: TRUE | AU71: TRUE | AV71: TRUE | AW71: TRUE | AX71: TRUE | AY71: FALSE | AZ71: TRUE | BA71: FALSE
A72: 67 | B72: TRUE | D72: TRUE | E72: TRUE | F72: TRUE | G72: FALSE | H72: TRUE | I72: FALSE | J72: TRUE | K72: TRUE | L72: FALSE | M72: FALSE | N72: TRUE | O72: TRUE | P72: TRUE | Q72: FALSE | R72: TRUE | S72: TRUE | T72: TRUE | U72: TRUE | V72: FALSE | W72: FALSE | X72: TRUE | Y72: FALSE | Z72: FALSE | AA72: FALSE | AB72: TRUE | AC72: TRUE | AD72: FALSE | AE72: FALSE | AF72: FALSE | AG72: TRUE | AH72: TRUE | AI72: FALSE | AJ72: FALSE | AK72: TRUE | AL72: TRUE | AM72: TRUE | AN72: TRUE | AO72: TRUE | AP72: TRUE | AQ72: FALSE | AR72: TRUE | AS72: TRUE | AT72: TRUE | AU72: TRUE | AV72: FALSE | AW72: FALSE | AX72: TRUE | AY72: TRUE | AZ72: TRUE | BA72: FALSE
A73: 68 | B73: FALSE | D73: FALSE | E73: FALSE | F73: TRUE | G73: TRUE | H73: TRUE | I73: TRUE | J73: TRUE | K73: TRUE | L73: TRUE | M73: TRUE | N73: TRUE | O73: TRUE | P73: TRUE | Q73: TRUE | R73: TRUE | S73: TRUE | T73: TRUE | U73: FALSE | V73: TRUE | W73: TRUE | X73: TRUE | Y73: TRUE | Z73: TRUE | AA73: TRUE | AB73: FALSE | AC73: TRUE | AD73: TRUE | AE73: FALSE | AF73: FALSE | AG73: FALSE | AH73: TRUE | AI73: FALSE | AJ73: TRUE | AK73: TRUE | AL73: TRUE | AM73: TRUE | AN73: TRUE | AO73: TRUE | AP73: TRUE | AQ73: FALSE | AR73: TRUE | AS73: TRUE | AT73: FALSE | AU73: TRUE | AV73: FALSE | AW73: FALSE | AX73: TRUE | AY73: TRUE | AZ73: TRUE | BA73: TRUE
A74: 69 | B74: TRUE | D74: TRUE | E74: TRUE | F74: FALSE | G74: TRUE | H74: TRUE | I74: TRUE | J74: FALSE | K74: TRUE | L74: TRUE | M74: TRUE | N74: FALSE | O74: TRUE | P74: FALSE | Q74: TRUE | R74: TRUE | S74: TRUE | T74: TRUE | U74: FALSE | V74: TRUE | W74: TRUE | X74: TRUE | Y74: FALSE | Z74: FALSE | AA74: FALSE | AB74: TRUE | AC74: TRUE | AD74: TRUE | AE74: FALSE | AF74: TRUE | AG74: TRUE | AH74: FALSE | AI74: TRUE | AJ74: TRUE | AK74: FALSE | AL74: TRUE | AM74: TRUE | AN74: FALSE | AO74: TRUE | AP74: TRUE | AQ74: TRUE | AR74: TRUE | AS74: FALSE | AT74: FALSE | AU74: TRUE | AV74: TRUE | AW74: TRUE | AX74: FALSE | AY74: TRUE | AZ74: FALSE | BA74: FALSE
A75: 70 | B75: TRUE | D75: TRUE | E75: FALSE | F75: FALSE | G75: FALSE | H75: FALSE | I75: TRUE | J75: FALSE | K75: TRUE | L75: TRUE | M75: FALSE | N75: FALSE | O75: TRUE | P75: TRUE | Q75: FALSE | R75: TRUE | S75: TRUE | T75: FALSE | U75: TRUE | V75: TRUE | W75: TRUE | X75: TRUE | Y75: TRUE | Z75: TRUE | AA75: TRUE | AB75: TRUE | AC75: FALSE | AD75: TRUE | AE75: TRUE | AF75: TRUE | AG75: FALSE | AH75: TRUE | AI75: TRUE | AJ75: FALSE | AK75: FALSE | AL75: TRUE | AM75: TRUE | AN75: TRUE | AO75: TRUE | AP75: TRUE | AQ75: TRUE | AR75: TRUE | AS75: FALSE | AT75: TRUE | AU75: TRUE | AV75: TRUE | AW75: FALSE | AX75: FALSE | AY75: TRUE | AZ75: TRUE | BA75: TRUE
A76: 71 | B76: FALSE | D76: TRUE | E76: FALSE | F76: FALSE | G76: TRUE | H76: TRUE | I76: TRUE | J76: TRUE | K76: FALSE | L76: TRUE | M76: FALSE | N76: TRUE | O76: TRUE | P76: FALSE | Q76: TRUE | R76: TRUE | S76: FALSE | T76: TRUE | U76: TRUE | V76: TRUE | W76: TRUE | X76: TRUE | Y76: TRUE | Z76: TRUE | AA76: TRUE | AB76: FALSE | AC76: TRUE | AD76: TRUE | AE76: FALSE | AF76: TRUE | AG76: TRUE | AH76: TRUE | AI76: TRUE | AJ76: FALSE | AK76: TRUE | AL76: FALSE | AM76: FALSE | AN76: FALSE | AO76: TRUE | AP76: FALSE | AQ76: TRUE | AR76: TRUE | AS76: TRUE | AT76: TRUE | AU76: TRUE | AV76: TRUE | AW76: TRUE | AX76: TRUE | AY76: TRUE | AZ76: TRUE | BA76: TRUE
A77: 72 | B77: TRUE | D77: TRUE | E77: TRUE | F77: TRUE | G77: TRUE | H77: TRUE | I77: TRUE | J77: FALSE | K77: TRUE | L77: TRUE | M77: FALSE | N77: FALSE | O77: TRUE | P77: FALSE | Q77: TRUE | R77: TRUE | S77: TRUE | T77: FALSE | U77: TRUE | V77: TRUE | W77: TRUE | X77: FALSE | Y77: TRUE | Z77: TRUE | AA77: TRUE | AB77: FALSE | AC77: FALSE | AD77: TRUE | AE77: TRUE | AF77: TRUE | AG77: TRUE | AH77: FALSE | AI77: FALSE | AJ77: TRUE | AK77: TRUE | AL77: FALSE | AM77: TRUE | AN77: TRUE | AO77: TRUE | AP77: TRUE | AQ77: TRUE | AR77: FALSE | AS77: TRUE | AT77: TRUE | AU77: TRUE | AV77: TRUE | AW77: FALSE | AX77: FALSE | AY77: FALSE | AZ77: TRUE | BA77: TRUE
A78: 73 | B78: TRUE | D78: TRUE | E78: TRUE | F78: FALSE | G78: TRUE | H78: TRUE | I78: TRUE | J78: TRUE | K78: TRUE | L78: TRUE | M78: TRUE | N78: TRUE | O78: FALSE | P78: TRUE | Q78: TRUE | R78: FALSE | S78: TRUE | T78: TRUE | U78: TRUE | V78: TRUE | W78: TRUE | X78: TRUE | Y78: TRUE | Z78: TRUE | AA78: TRUE | AB78: FALSE | AC78: FALSE | AD78: FALSE | AE78: FALSE | AF78: FALSE | AG78: FALSE | AH78: TRUE | AI78: TRUE | AJ78: FALSE | AK78: TRUE | AL78: TRUE | AM78: TRUE | AN78: FALSE | AO78: TRUE | AP78: TRUE | AQ78: TRUE | AR78: TRUE | AS78: TRUE | AT78: FALSE | AU78: TRUE | AV78: TRUE | AW78: TRUE | AX78: FALSE | AY78: TRUE | AZ78: FALSE | BA78: TRUE
A79: 74 | B79: FALSE | D79: FALSE | E79: TRUE | F79: TRUE | G79: FALSE | H79: TRUE | I79: TRUE | J79: FALSE | K79: FALSE | L79: TRUE | M79: FALSE | N79: TRUE | O79: TRUE | P79: TRUE | Q79: TRUE | R79: FALSE | S79: FALSE | T79: FALSE | U79: TRUE | V79: FALSE | W79: TRUE | X79: TRUE | Y79: FALSE | Z79: FALSE | AA79: TRUE | AB79: FALSE | AC79: TRUE | AD79: FALSE | AE79: TRUE | AF79: TRUE | AG79: TRUE | AH79: FALSE | AI79: TRUE | AJ79: TRUE | AK79: TRUE | AL79: TRUE | AM79: TRUE | AN79: TRUE | AO79: TRUE | AP79: TRUE | AQ79: FALSE | AR79: TRUE | AS79: FALSE | AT79: FALSE | AU79: TRUE | AV79: FALSE | AW79: TRUE | AX79: TRUE | AY79: TRUE | AZ79: FALSE | BA79: TRUE
A80: 75 | B80: FALSE | D80: TRUE | E80: TRUE | F80: TRUE | G80: TRUE | H80: TRUE | I80: TRUE | J80: FALSE | K80: TRUE | L80: FALSE | M80: TRUE | N80: FALSE | O80: TRUE | P80: TRUE | Q80: TRUE | R80: TRUE | S80: TRUE | T80: FALSE | U80: TRUE | V80: TRUE | W80: TRUE | X80: FALSE | Y80: TRUE | Z80: FALSE | AA80: TRUE | AB80: TRUE | AC80: TRUE | AD80: FALSE | AE80: TRUE | AF80: FALSE | AG80: TRUE | AH80: TRUE | AI80: TRUE | AJ80: TRUE | AK80: FALSE | AL80: TRUE | AM80: TRUE | AN80: FALSE | AO80: FALSE | AP80: TRUE | AQ80: TRUE | AR80: TRUE | AS80: FALSE | AT80: TRUE | AU80: TRUE | AV80: FALSE | AW80: FALSE | AX80: TRUE | AY80: TRUE | AZ80: TRUE | BA80: TRUE
A81: 76 | B81: FALSE | D81: TRUE | E81: TRUE | F81: TRUE | G81: FALSE | H81: TRUE | I81: TRUE | J81: FALSE | K81: TRUE | L81: FALSE | M81: TRUE | N81: TRUE | O81: TRUE | P81: FALSE | Q81: TRUE | R81: TRUE | S81: TRUE | T81: TRUE | U81: TRUE | V81: FALSE | W81: FALSE | X81: FALSE | Y81: TRUE | Z81: TRUE | AA81: FALSE | AB81: TRUE | AC81: FALSE | AD81: TRUE | AE81: TRUE | AF81: TRUE | AG81: TRUE | AH81: TRUE | AI81: FALSE | AJ81: FALSE | AK81: TRUE | AL81: TRUE | AM81: FALSE | AN81: TRUE | AO81: TRUE | AP81: TRUE | AQ81: FALSE | AR81: TRUE | AS81: FALSE | AT81: FALSE | AU81: TRUE | AV81: TRUE | AW81: FALSE | AX81: TRUE | AY81: TRUE | AZ81: FALSE | BA81: FALSE
A82: 77 | B82: TRUE | D82: TRUE | E82: FALSE | F82: TRUE | G82: TRUE | H82: FALSE | I82: FALSE | J82: FALSE | K82: TRUE | L82: TRUE | M82: FALSE | N82: TRUE | O82: TRUE | P82: FALSE | Q82: TRUE | R82: TRUE | S82: FALSE | T82: TRUE | U82: FALSE | V82: FALSE | W82: TRUE | X82: TRUE | Y82: FALSE | Z82: TRUE | AA82: FALSE | AB82: FALSE | AC82: TRUE | AD82: FALSE | AE82: TRUE | AF82: TRUE | AG82: FALSE | AH82: TRUE | AI82: TRUE | AJ82: FALSE | AK82: TRUE | AL82: TRUE | AM82: TRUE | AN82: TRUE | AO82: TRUE | AP82: TRUE | AQ82: TRUE | AR82: TRUE | AS82: FALSE | AT82: FALSE | AU82: FALSE | AV82: TRUE | AW82: TRUE | AX82: FALSE | AY82: TRUE | AZ82: TRUE | BA82: TRUE
A83: 78 | B83: TRUE | D83: FALSE | E83: TRUE | F83: TRUE | G83: TRUE | H83: FALSE | I83: TRUE | J83: TRUE | K83: TRUE | L83: TRUE | M83: TRUE | N83: TRUE | O83: FALSE | P83: FALSE | Q83: TRUE | R83: TRUE | S83: TRUE | T83: FALSE | U83: TRUE | V83: FALSE | W83: FALSE | X83: FALSE | Y83: TRUE | Z83: TRUE | AA83: TRUE | AB83: TRUE | AC83: TRUE | AD83: FALSE | AE83: TRUE | AF83: TRUE | AG83: TRUE | AH83: TRUE | AI83: FALSE | AJ83: FALSE | AK83: FALSE | AL83: TRUE | AM83: TRUE | AN83: TRUE | AO83: FALSE | AP83: TRUE | AQ83: TRUE | AR83: TRUE | AS83: TRUE | AT83: FALSE | AU83: TRUE | AV83: FALSE | AW83: FALSE | AX83: TRUE | AY83: TRUE | AZ83: TRUE | BA83: TRUE
A84: 79 | B84: TRUE | D84: TRUE | E84: TRUE | F84: TRUE | G84: TRUE | H84: TRUE | I84: TRUE | J84: TRUE | K84: TRUE | L84: TRUE | M84: FALSE | N84: TRUE | O84: TRUE | P84: FALSE | Q84: TRUE | R84: TRUE | S84: TRUE | T84: TRUE | U84: FALSE | V84: TRUE | W84: TRUE | X84: TRUE | Y84: FALSE | Z84: TRUE | AA84: TRUE | AB84: TRUE | AC84: TRUE | AD84: TRUE | AE84: FALSE | AF84: TRUE | AG84: FALSE | AH84: TRUE | AI84: TRUE | AJ84: FALSE | AK84: TRUE | AL84: FALSE | AM84: FALSE | AN84: TRUE | AO84: TRUE | AP84: TRUE | AQ84: TRUE | AR84: TRUE | AS84: TRUE | AT84: FALSE | AU84: TRUE | AV84: FALSE | AW84: FALSE | AX84: TRUE | AY84: FALSE | AZ84: TRUE | BA84: TRUE
A85: 80 | B85: TRUE | D85: FALSE | E85: TRUE | F85: TRUE | G85: FALSE | H85: TRUE | I85: TRUE | J85: FALSE | K85: TRUE | L85: TRUE | M85: FALSE | N85: FALSE | O85: TRUE | P85: TRUE | Q85: TRUE | R85: TRUE | S85: FALSE | T85: TRUE | U85: FALSE | V85: TRUE | W85: FALSE | X85: TRUE | Y85: TRUE | Z85: TRUE | AA85: TRUE | AB85: FALSE | AC85: TRUE | AD85: TRUE | AE85: TRUE | AF85: TRUE | AG85: TRUE | AH85: TRUE | AI85: TRUE | AJ85: FALSE | AK85: TRUE | AL85: FALSE | AM85: TRUE | AN85: TRUE | AO85: TRUE | AP85: TRUE | AQ85: TRUE | AR85: TRUE | AS85: FALSE | AT85: FALSE | AU85: TRUE | AV85: TRUE | AW85: TRUE | AX85: TRUE | AY85: TRUE | AZ85: FALSE | BA85: TRUE
A86: 81 | B86: FALSE | D86: TRUE | E86: FALSE | F86: TRUE | G86: TRUE | H86: FALSE | I86: TRUE | J86: FALSE | K86: FALSE | L86: TRUE | M86: TRUE | N86: TRUE | O86: FALSE | P86: FALSE | Q86: TRUE | R86: FALSE | S86: TRUE | T86: TRUE | U86: TRUE | V86: FALSE | W86: TRUE | X86: TRUE | Y86: TRUE | Z86: TRUE | AA86: TRUE | AB86: TRUE | AC86: TRUE | AD86: FALSE | AE86: TRUE | AF86: FALSE | AG86: TRUE | AH86: TRUE | AI86: TRUE | AJ86: TRUE | AK86: TRUE | AL86: TRUE | AM86: TRUE | AN86: TRUE | AO86: TRUE | AP86: FALSE | AQ86: TRUE | AR86: TRUE | AS86: TRUE | AT86: FALSE | AU86: TRUE | AV86: TRUE | AW86: TRUE | AX86: TRUE | AY86: FALSE | AZ86: TRUE | BA86: TRUE
A87: 82 | B87: TRUE | D87: TRUE | E87: TRUE | F87: TRUE | G87: TRUE | H87: TRUE | I87: FALSE | J87: TRUE | K87: TRUE | L87: TRUE | M87: TRUE | N87: TRUE | O87: TRUE | P87: FALSE | Q87: TRUE | R87: FALSE | S87: TRUE | T87: TRUE | U87: TRUE | V87: TRUE | W87: FALSE | X87: TRUE | Y87: FALSE | Z87: FALSE | AA87: TRUE | AB87: TRUE | AC87: TRUE | AD87: TRUE | AE87: TRUE | AF87: TRUE | AG87: FALSE | AH87: FALSE | AI87: FALSE | AJ87: TRUE | AK87: FALSE | AL87: TRUE | AM87: TRUE | AN87: FALSE | AO87: FALSE | AP87: TRUE | AQ87: FALSE | AR87: FALSE | AS87: TRUE | AT87: TRUE | AU87: FALSE | AV87: TRUE | AW87: FALSE | AX87: TRUE | AY87: TRUE | AZ87: FALSE | BA87: FALSE
A88: 83 | B88: FALSE | D88: TRUE | E88: FALSE | F88: TRUE | G88: FALSE | H88: FALSE | I88: TRUE | J88: FALSE | K88: TRUE | L88: FALSE | M88: TRUE | N88: FALSE | O88: FALSE | P88: TRUE | Q88: FALSE | R88: TRUE | S88: FALSE | T88: TRUE | U88: TRUE | V88: TRUE | W88: TRUE | X88: TRUE | Y88: TRUE | Z88: FALSE | AA88: TRUE | AB88: TRUE | AC88: TRUE | AD88: FALSE | AE88: FALSE | AF88: TRUE | AG88: TRUE | AH88: TRUE | AI88: TRUE | AJ88: FALSE | AK88: TRUE | AL88: TRUE | AM88: FALSE | AN88: TRUE | AO88: TRUE | AP88: FALSE | AQ88: TRUE | AR88: TRUE | AS88: TRUE | AT88: TRUE | AU88: FALSE | AV88: FALSE | AW88: FALSE | AX88: FALSE | AY88: FALSE | AZ88: FALSE | BA88: TRUE
A89: 84 | B89: TRUE | D89: TRUE | E89: TRUE | F89: TRUE | G89: TRUE | H89: FALSE | I89: FALSE | J89: TRUE | K89: TRUE | L89: FALSE | M89: FALSE | N89: TRUE | O89: TRUE | P89: TRUE | Q89: TRUE | R89: FALSE | S89: TRUE | T89: TRUE | U89: TRUE | V89: TRUE | W89: TRUE | X89: TRUE | Y89: FALSE | Z89: TRUE | AA89: TRUE | AB89: FALSE | AC89: TRUE | AD89: TRUE | AE89: TRUE | AF89: TRUE | AG89: TRUE | AH89: TRUE | AI89: TRUE | AJ89: TRUE | AK89: TRUE | AL89: TRUE | AM89: TRUE | AN89: TRUE | AO89: TRUE | AP89: FALSE | AQ89: TRUE | AR89: FALSE | AS89: TRUE | AT89: FALSE | AU89: FALSE | AV89: TRUE | AW89: FALSE | AX89: TRUE | AY89: TRUE | AZ89: TRUE | BA89: TRUE
A90: 85 | B90: TRUE | D90: TRUE | E90: TRUE | F90: TRUE | G90: TRUE | H90: TRUE | I90: TRUE | J90: TRUE | K90: FALSE | L90: TRUE | M90: TRUE | N90: TRUE | O90: TRUE | P90: FALSE | Q90: TRUE | R90: FALSE | S90: FALSE | T90: TRUE | U90: FALSE | V90: TRUE | W90: TRUE | X90: FALSE | Y90: TRUE | Z90: FALSE | AA90: TRUE | AB90: TRUE | AC90: FALSE | AD90: FALSE | AE90: FALSE | AF90: FALSE | AG90: TRUE | AH90: TRUE | AI90: TRUE | AJ90: FALSE | AK90: TRUE | AL90: FALSE | AM90: TRUE | AN90: TRUE | AO90: TRUE | AP90: TRUE | AQ90: TRUE | AR90: FALSE | AS90: FALSE | AT90: TRUE | AU90: FALSE | AV90: TRUE | AW90: TRUE | AX90: TRUE | AY90: FALSE | AZ90: TRUE | BA90: TRUE
A91: 86 | B91: TRUE | D91: FALSE | E91: FALSE | F91: FALSE | G91: TRUE | H91: TRUE | I91: TRUE | J91: TRUE | K91: TRUE | L91: FALSE | M91: TRUE | N91: FALSE | O91: TRUE | P91: TRUE | Q91: FALSE | R91: TRUE | S91: TRUE | T91: TRUE | U91: TRUE | V91: TRUE | W91: FALSE | X91: TRUE | Y91: TRUE | Z91: TRUE | AA91: FALSE | AB91: TRUE | AC91: TRUE | AD91: FALSE | AE91: TRUE | AF91: TRUE | AG91: FALSE | AH91: TRUE | AI91: TRUE | AJ91: TRUE | AK91: TRUE | AL91: FALSE | AM91: FALSE | AN91: TRUE | AO91: FALSE | AP91: TRUE | AQ91: FALSE | AR91: TRUE | AS91: TRUE | AT91: TRUE | AU91: FALSE | AV91: TRUE | AW91: TRUE | AX91: TRUE | AY91: TRUE | AZ91: TRUE | BA91: FALSE
A92: 87 | B92: TRUE | D92: TRUE | E92: FALSE | F92: FALSE | G92: TRUE | H92: TRUE | I92: TRUE | J92: TRUE | K92: TRUE | L92: TRUE | M92: TRUE | N92: TRUE | O92: TRUE | P92: FALSE | Q92: TRUE | R92: TRUE | S92: TRUE | T92: TRUE | U92: TRUE | V92: TRUE | W92: TRUE | X92: FALSE | Y92: TRUE | Z92: FALSE | AA92: TRUE | AB92: TRUE | AC92: TRUE | AD92: FALSE | AE92: FALSE | AF92: FALSE | AG92: FALSE | AH92: TRUE | AI92: TRUE | AJ92: TRUE | AK92: TRUE | AL92: FALSE | AM92: TRUE | AN92: FALSE | AO92: TRUE | AP92: TRUE | AQ92: TRUE | AR92: FALSE | AS92: TRUE | AT92: TRUE | AU92: TRUE | AV92: TRUE | AW92: FALSE | AX92: FALSE | AY92: TRUE | AZ92: TRUE | BA92: FALSE
A93: 88 | B93: TRUE | D93: TRUE | E93: FALSE | F93: FALSE | G93: FALSE | H93: TRUE | I93: TRUE | J93: TRUE | K93: TRUE | L93: TRUE | M93: TRUE | N93: TRUE | O93: FALSE | P93: TRUE | Q93: TRUE | R93: TRUE | S93: TRUE | T93: TRUE | U93: TRUE | V93: TRUE | W93: FALSE | X93: FALSE | Y93: FALSE | Z93: FALSE | AA93: FALSE | AB93: TRUE | AC93: TRUE | AD93: FALSE | AE93: FALSE | AF93: TRUE | AG93: TRUE | AH93: TRUE | AI93: FALSE | AJ93: TRUE | AK93: TRUE | AL93: TRUE | AM93: TRUE | AN93: TRUE | AO93: TRUE | AP93: TRUE | AQ93: TRUE | AR93: TRUE | AS93: TRUE | AT93: TRUE | AU93: TRUE | AV93: TRUE | AW93: TRUE | AX93: FALSE | AY93: TRUE | AZ93: TRUE | BA93: FALSE
A94: 89 | B94: FALSE | D94: TRUE | E94: TRUE | F94: TRUE | G94: TRUE | H94: TRUE | I94: FALSE | J94: TRUE | K94: TRUE | L94: TRUE | M94: TRUE | N94: TRUE | O94: FALSE | P94: FALSE | Q94: FALSE | R94: FALSE | S94: FALSE | T94: FALSE | U94: TRUE | V94: TRUE | W94: TRUE | X94: FALSE | Y94: FALSE | Z94: TRUE | AA94: TRUE | AB94: FALSE | AC94: FALSE | AD94: TRUE | AE94: TRUE | AF94: TRUE | AG94: TRUE | AH94: TRUE | AI94: TRUE | AJ94: FALSE | AK94: FALSE | AL94: FALSE | AM94: FALSE | AN94: TRUE | AO94: TRUE | AP94: TRUE | AQ94: FALSE | AR94: FALSE | AS94: FALSE | AT94: TRUE | AU94: TRUE | AV94: TRUE | AW94: TRUE | AX94: FALSE | AY94: TRUE | AZ94: TRUE | BA94: TRUE
A95: 90 | B95: TRUE | D95: TRUE | E95: FALSE | F95: TRUE | G95: TRUE | H95: TRUE | I95: FALSE | J95: FALSE | K95: FALSE | L95: FALSE | M95: FALSE | N95: TRUE | O95: FALSE | P95: TRUE | Q95: FALSE | R95: FALSE | S95: TRUE | T95: FALSE | U95: FALSE | V95: TRUE | W95: FALSE | X95: TRUE | Y95: TRUE | Z95: TRUE | AA95: TRUE | AB95: FALSE | AC95: TRUE | AD95: TRUE | AE95: TRUE | AF95: TRUE | AG95: TRUE | AH95: FALSE | AI95: FALSE | AJ95: FALSE | AK95: TRUE | AL95: TRUE | AM95: TRUE | AN95: TRUE | AO95: TRUE | AP95: TRUE | AQ95: FALSE | AR95: FALSE | AS95: FALSE | AT95: TRUE | AU95: TRUE | AV95: TRUE | AW95: TRUE | AX95: TRUE | AY95: FALSE | AZ95: FALSE | BA95: FALSE
A96: 91 | B96: TRUE | D96: TRUE | E96: TRUE | F96: TRUE | G96: TRUE | H96: FALSE | I96: TRUE | J96: FALSE | K96: FALSE | L96: TRUE | M96: TRUE | N96: TRUE | O96: TRUE | P96: TRUE | Q96: FALSE | R96: TRUE | S96: TRUE | T96: FALSE | U96: FALSE | V96: TRUE | W96: TRUE | X96: FALSE | Y96: TRUE | Z96: TRUE | AA96: FALSE | AB96: TRUE | AC96: TRUE | AD96: TRUE | AE96: TRUE | AF96: TRUE | AG96: TRUE | AH96: TRUE | AI96: TRUE | AJ96: FALSE | AK96: TRUE | AL96: FALSE | AM96: TRUE | AN96: TRUE | AO96: FALSE | AP96: TRUE | AQ96: TRUE | AR96: TRUE | AS96: FALSE | AT96: TRUE | AU96: TRUE | AV96: FALSE | AW96: FALSE | AX96: TRUE | AY96: FALSE | AZ96: FALSE | BA96: TRUE
A97: 92 | B97: TRUE | D97: TRUE | E97: TRUE | F97: TRUE | G97: TRUE | H97: FALSE | I97: TRUE | J97: FALSE | K97: TRUE | L97: TRUE | M97: TRUE | N97: FALSE | O97: FALSE | P97: TRUE | Q97: TRUE | R97: TRUE | S97: FALSE | T97: TRUE | U97: FALSE | V97: TRUE | W97: TRUE | X97: FALSE | Y97: FALSE | Z97: TRUE | AA97: TRUE | AB97: TRUE | AC97: TRUE | AD97: TRUE | AE97: FALSE | AF97: TRUE | AG97: FALSE | AH97: TRUE | AI97: FALSE | AJ97: TRUE | AK97: FALSE | AL97: FALSE | AM97: TRUE | AN97: FALSE | AO97: TRUE | AP97: TRUE | AQ97: TRUE | AR97: TRUE | AS97: TRUE | AT97: FALSE | AU97: TRUE | AV97: TRUE | AW97: FALSE | AX97: TRUE | AY97: TRUE | AZ97: FALSE | BA97: TRUE
A98: 93 | B98: FALSE | D98: TRUE | E98: TRUE | F98: TRUE | G98: FALSE | H98: FALSE | I98: TRUE | J98: TRUE | K98: FALSE | L98: TRUE | M98: TRUE | N98: TRUE | O98: FALSE | P98: TRUE | Q98: TRUE | R98: FALSE | S98: TRUE | T98: FALSE | U98: TRUE | V98: FALSE | W98: FALSE | X98: TRUE | Y98: TRUE | Z98: TRUE | AA98: FALSE | AB98: FALSE | AC98: FALSE | AD98: TRUE | AE98: TRUE | AF98: FALSE | AG98: TRUE | AH98: TRUE | AI98: FALSE | AJ98: FALSE | AK98: TRUE | AL98: TRUE | AM98: TRUE | AN98: TRUE | AO98: FALSE | AP98: FALSE | AQ98: FALSE | AR98: TRUE | AS98: TRUE | AT98: FALSE | AU98: TRUE | AV98: TRUE | AW98: FALSE | AX98: TRUE | AY98: TRUE | AZ98: TRUE | BA98: TRUE
A99: 94 | B99: FALSE | D99: TRUE | E99: TRUE | F99: TRUE | G99: TRUE | H99: TRUE | I99: TRUE | J99: TRUE | K99: TRUE | L99: TRUE | M99: TRUE | N99: TRUE | O99: TRUE | P99: TRUE | Q99: TRUE | R99: TRUE | S99: TRUE | T99: FALSE | U99: TRUE | V99: TRUE | W99: TRUE | X99: TRUE | Y99: TRUE | Z99: FALSE | AA99: TRUE | AB99: FALSE | AC99: TRUE | AD99: TRUE | AE99: TRUE | AF99: TRUE | AG99: TRUE | AH99: TRUE | AI99: TRUE | AJ99: TRUE | AK99: FALSE | AL99: TRUE | AM99: TRUE | AN99: FALSE | AO99: TRUE | AP99: TRUE | AQ99: FALSE | AR99: FALSE | AS99: TRUE | AT99: TRUE | AU99: TRUE | AV99: TRUE | AW99: TRUE | AX99: TRUE | AY99: FALSE | AZ99: FALSE | BA99: TRUE
A100: 95 | B100: TRUE | D100: TRUE | E100: TRUE | F100: TRUE | G100: TRUE | H100: FALSE | I100: TRUE | J100: FALSE | K100: TRUE | L100: TRUE | M100: TRUE | N100: TRUE | O100: FALSE | P100: TRUE | Q100: TRUE | R100: FALSE | S100: TRUE | T100: FALSE | U100: TRUE | V100: FALSE | W100: FALSE | X100: TRUE | Y100: FALSE | Z100: TRUE | AA100: TRUE | AB100: FALSE | AC100: TRUE | AD100: TRUE | AE100: TRUE | AF100: TRUE | AG100: FALSE | AH100: FALSE | AI100: TRUE | AJ100: FALSE | AK100: TRUE | AL100: FALSE | AM100: TRUE | AN100: TRUE | AO100: FALSE | AP100: TRUE | AQ100: TRUE | AR100: TRUE | AS100: FALSE | AT100: TRUE | AU100: TRUE | AV100: TRUE | AW100: FALSE | AX100: FALSE | AY100: TRUE | AZ100: TRUE | BA100: TRUE
A101: 96 | B101: TRUE | D101: TRUE | E101: FALSE | F101: TRUE | G101: TRUE | H101: TRUE | I101: TRUE | J101: FALSE | K101: TRUE | L101: TRUE | M101: TRUE | N101: FALSE | O101: TRUE | P101: TRUE | Q101: TRUE | R101: TRUE | S101: TRUE | T101: TRUE | U101: TRUE | V101: TRUE | W101: TRUE | X101: TRUE | Y101: FALSE | Z101: FALSE | AA101: FALSE | AB101: TRUE | AC101: FALSE | AD101: TRUE | AE101: TRUE | AF101: TRUE | AG101: TRUE | AH101: FALSE | AI101: FALSE | AJ101: TRUE | AK101: TRUE | AL101: FALSE | AM101: TRUE | AN101: TRUE | AO101: TRUE | AP101: TRUE | AQ101: FALSE | AR101: FALSE | AS101: FALSE | AT101: TRUE | AU101: FALSE | AV101: TRUE | AW101: FALSE | AX101: FALSE | AY101: TRUE | AZ101: TRUE | BA101: TRUE
A102: 97 | B102: TRUE | D102: TRUE | E102: TRUE | F102: TRUE | G102: TRUE | H102: FALSE | I102: FALSE | J102: TRUE | K102: FALSE | L102: TRUE | M102: TRUE | N102: FALSE | O102: FALSE | P102: TRUE | Q102: FALSE | R102: TRUE | S102: TRUE | T102: TRUE | U102: FALSE | V102: TRUE | W102: TRUE | X102: FALSE | Y102: TRUE | Z102: FALSE | AA102: TRUE | AB102: TRUE | AC102: TRUE | AD102: TRUE | AE102: FALSE | AF102: TRUE | AG102: FALSE | AH102: TRUE | AI102: TRUE | AJ102: TRUE | AK102: TRUE | AL102: TRUE | AM102: TRUE | AN102: TRUE | AO102: TRUE | AP102: FALSE | AQ102: TRUE | AR102: TRUE | AS102: TRUE | AT102: TRUE | AU102: FALSE | AV102: TRUE | AW102: TRUE | AX102: TRUE | AY102: TRUE | AZ102: FALSE | BA102: TRUE
A103: 98 | B103: FALSE | D103: TRUE | E103: TRUE | F103: TRUE | G103: FALSE | H103: FALSE | I103: TRUE | J103: TRUE | K103: TRUE | L103: TRUE | M103: TRUE | N103: TRUE | O103: TRUE | P103: FALSE | Q103: FALSE | R103: TRUE | S103: TRUE | T103: FALSE | U103: TRUE | V103: TRUE | W103: TRUE | X103: TRUE | Y103: TRUE | Z103: TRUE | AA103: FALSE | AB103: TRUE | AC103: TRUE | AD103: FALSE | AE103: TRUE | AF103: TRUE | AG103: TRUE | AH103: TRUE | AI103: TRUE | AJ103: TRUE | AK103: FALSE | AL103: TRUE | AM103: FALSE | AN103: TRUE | AO103: TRUE | AP103: TRUE | AQ103: TRUE | AR103: TRUE | AS103: TRUE | AT103: FALSE | AU103: FALSE | AV103: FALSE | AW103: TRUE | AX103: TRUE | AY103: FALSE | AZ103: TRUE | BA103: TRUE
A104: 99 | B104: TRUE | D104: FALSE | E104: TRUE | F104: FALSE | G104: TRUE | H104: TRUE | I104: FALSE | J104: TRUE | K104: TRUE | L104: TRUE | M104: TRUE | N104: FALSE | O104: TRUE | P104: TRUE | Q104: TRUE | R104: TRUE | S104: FALSE | T104: TRUE | U104: FALSE | V104: TRUE | W104: FALSE | X104: TRUE | Y104: TRUE | Z104: TRUE | AA104: TRUE | AB104: TRUE | AC104: TRUE | AD104: TRUE | AE104: TRUE | AF104: FALSE | AG104: TRUE | AH104: TRUE | AI104: TRUE | AJ104: TRUE | AK104: FALSE | AL104: FALSE | AM104: TRUE | AN104: TRUE | AO104: FALSE | AP104: FALSE | AQ104: TRUE | AR104: FALSE | AS104: TRUE | AT104: FALSE | AU104: FALSE | AV104: TRUE | AW104: TRUE | AX104: TRUE | AY104: FALSE | AZ104: TRUE | BA104: FALSE
A105: 100 | B105: TRUE | D105: TRUE | E105: TRUE | F105: FALSE | G105: TRUE | H105: FALSE | I105: FALSE | J105: TRUE | K105: TRUE | L105: FALSE | M105: TRUE | N105: TRUE | O105: FALSE | P105: TRUE | Q105: TRUE | R105: FALSE | S105: FALSE | T105: TRUE | U105: TRUE | V105: TRUE | W105: TRUE | X105: TRUE | Y105: TRUE | Z105: FALSE | AA105: TRUE | AB105: TRUE | AC105: TRUE | AD105: TRUE | AE105: TRUE | AF105: TRUE | AG105: FALSE | AH105: TRUE | AI105: TRUE | AJ105: TRUE | AK105: TRUE | AL105: FALSE | AM105: TRUE | AN105: TRUE | AO105: TRUE | AP105: FALSE | AQ105: TRUE | AR105: FALSE | AS105: TRUE | AT105: TRUE | AU105: TRUE | AV105: TRUE | AW105: TRUE | AX105: TRUE | AY105: TRUE | AZ105: FALSE | BA105: FALSE
A106: 101 | B106: TRUE | D106: FALSE | E106: TRUE | F106: TRUE | G106: FALSE | H106: TRUE | I106: TRUE | J106: FALSE | K106: FALSE | L106: TRUE | M106: FALSE | N106: TRUE | O106: FALSE | P106: FALSE | Q106: FALSE | R106: TRUE | S106: TRUE | T106: TRUE | U106: FALSE | V106: TRUE | W106: TRUE | X106: TRUE | Y106: TRUE | Z106: TRUE | AA106: TRUE | AB106: FALSE | AC106: TRUE | AD106: TRUE | AE106: FALSE | AF106: TRUE | AG106: FALSE | AH106: FALSE | AI106: TRUE | AJ106: TRUE | AK106: FALSE | AL106: TRUE | AM106: FALSE | AN106: TRUE | AO106: FALSE | AP106: TRUE | AQ106: FALSE | AR106: TRUE | AS106: TRUE | AT106: TRUE | AU106: TRUE | AV106: TRUE | AW106: FALSE | AX106: TRUE | AY106: TRUE | AZ106: TRUE | BA106: TRUE
A107: 102 | B107: TRUE | D107: TRUE | E107: FALSE | F107: TRUE | G107: TRUE | H107: FALSE | I107: FALSE | J107: TRUE | K107: TRUE | L107: TRUE | M107: FALSE | N107: FALSE | O107: TRUE | P107: TRUE | Q107: TRUE | R107: TRUE | S107: FALSE | T107: TRUE | U107: TRUE | V107: TRUE | W107: TRUE | X107: TRUE | Y107: TRUE | Z107: FALSE | AA107: TRUE | AB107: TRUE | AC107: FALSE | AD107: FALSE | AE107: TRUE | AF107: TRUE | AG107: FALSE | AH107: TRUE | AI107: TRUE | AJ107: FALSE | AK107: TRUE | AL107: TRUE | AM107: FALSE | AN107: TRUE | AO107: TRUE | AP107: FALSE | AQ107: FALSE | AR107: FALSE | AS107: FALSE | AT107: FALSE | AU107: TRUE | AV107: TRUE | AW107: TRUE | AX107: FALSE | AY107: FALSE | AZ107: TRUE | BA107: TRUE
A108: 103 | B108: TRUE | D108: TRUE | E108: TRUE | F108: TRUE | G108: TRUE | H108: FALSE | I108: TRUE | J108: TRUE | K108: TRUE | L108: TRUE | M108: FALSE | N108: TRUE | O108: FALSE | P108: TRUE | Q108: TRUE | R108: TRUE | S108: TRUE | T108: TRUE | U108: TRUE | V108: TRUE | W108: TRUE | X108: TRUE | Y108: TRUE | Z108: FALSE | AA108: TRUE | AB108: TRUE | AC108: TRUE | AD108: FALSE | AE108: TRUE | AF108: FALSE | AG108: FALSE | AH108: FALSE | AI108: FALSE | AJ108: TRUE | AK108: TRUE | AL108: TRUE | AM108: FALSE | AN108: TRUE | AO108: TRUE | AP108: TRUE | AQ108: FALSE | AR108: TRUE | AS108: TRUE | AT108: TRUE | AU108: TRUE | AV108: TRUE | AW108: TRUE | AX108: TRUE | AY108: TRUE | AZ108: TRUE | BA108: TRUE
A109: 104 | B109: TRUE | D109: TRUE | E109: TRUE | F109: FALSE | G109: TRUE | H109: TRUE | I109: TRUE | J109: TRUE | K109: TRUE | L109: TRUE | M109: FALSE | N109: TRUE | O109: FALSE | P109: TRUE | Q109: FALSE | R109: FALSE | S109: FALSE | T109: TRUE | U109: TRUE | V109: TRUE | W109: TRUE | X109: FALSE | Y109: TRUE | Z109: TRUE | AA109: TRUE | AB109: TRUE | AC109: TRUE | AD109: TRUE | AE109: FALSE | AF109: TRUE | AG109: TRUE | AH109: TRUE | AI109: TRUE | AJ109: FALSE | AK109: FALSE | AL109: FALSE | AM109: TRUE | AN109: FALSE | AO109: TRUE | AP109: TRUE | AQ109: TRUE | AR109: TRUE | AS109: TRUE | AT109: TRUE | AU109: FALSE | AV109: TRUE | AW109: TRUE | AX109: FALSE | AY109: TRUE | AZ109: TRUE | BA109: TRUE
A110: 105 | B110: FALSE | D110: TRUE | E110: FALSE | F110: TRUE | G110: TRUE | H110: FALSE | I110: TRUE | J110: TRUE | K110: TRUE | L110: TRUE | M110: FALSE | N110: FALSE | O110: TRUE | P110: TRUE | Q110: FALSE | R110: TRUE | S110: FALSE | T110: TRUE | U110: FALSE | V110: TRUE | W110: TRUE | X110: TRUE | Y110: FALSE | Z110: FALSE | AA110: FALSE | AB110: TRUE | AC110: TRUE | AD110: TRUE | AE110: TRUE | AF110: TRUE | AG110: FALSE | AH110: TRUE | AI110: FALSE | AJ110: TRUE | AK110: FALSE | AL110: FALSE | AM110: TRUE | AN110: TRUE | AO110: TRUE | AP110: FALSE | AQ110: FALSE | AR110: TRUE | AS110: TRUE | AT110: FALSE | AU110: TRUE | AV110: TRUE | AW110: FALSE | AX110: TRUE | AY110: TRUE | AZ110: TRUE | BA110: FALSE
A111: 106 | B111: FALSE | D111: TRUE | E111: TRUE | F111: TRUE | G111: TRUE | H111: FALSE | I111: FALSE | J111: TRUE | K111: TRUE | L111: TRUE | M111: TRUE | N111: TRUE | O111: TRUE | P111: TRUE | Q111: FALSE | R111: FALSE | S111: FALSE | T111: FALSE | U111: TRUE | V111: FALSE | W111: FALSE | X111: FALSE | Y111: TRUE | Z111: TRUE | AA111: TRUE | AB111: FALSE | AC111: FALSE | AD111: TRUE | AE111: FALSE | AF111: FALSE | AG111: TRUE | AH111: TRUE | AI111: FALSE | AJ111: FALSE | AK111: TRUE | AL111: FALSE | AM111: TRUE | AN111: TRUE | AO111: TRUE | AP111: TRUE | AQ111: FALSE | AR111: TRUE | AS111: TRUE | AT111: FALSE | AU111: FALSE | AV111: TRUE | AW111: TRUE | AX111: TRUE | AY111: TRUE | AZ111: TRUE | BA111: FALSE
A112: 107 | B112: TRUE | D112: TRUE | E112: FALSE | F112: TRUE | G112: FALSE | H112: TRUE | I112: TRUE | J112: FALSE | K112: TRUE | L112: TRUE | M112: TRUE | N112: FALSE | O112: TRUE | P112: TRUE | Q112: TRUE | R112: FALSE | S112: FALSE | T112: TRUE | U112: TRUE | V112: TRUE | W112: TRUE | X112: FALSE | Y112: TRUE | Z112: FALSE | AA112: TRUE | AB112: TRUE | AC112: TRUE | AD112: FALSE | AE112: FALSE | AF112: FALSE | AG112: TRUE | AH112: TRUE | AI112: TRUE | AJ112: FALSE | AK112: TRUE | AL112: TRUE | AM112: TRUE | AN112: FALSE | AO112: TRUE | AP112: FALSE | AQ112: TRUE | AR112: TRUE | AS112: TRUE | AT112: FALSE | AU112: TRUE | AV112: FALSE | AW112: FALSE | AX112: FALSE | AY112: FALSE | AZ112: TRUE | BA112: TRUE
A113: 108 | B113: TRUE | D113: FALSE | E113: TRUE | F113: TRUE | G113: FALSE | H113: FALSE | I113: TRUE | J113: TRUE | K113: FALSE | L113: TRUE | M113: TRUE | N113: TRUE | O113: TRUE | P113: FALSE | Q113: FALSE | R113: TRUE | S113: FALSE | T113: TRUE | U113: FALSE | V113: TRUE | W113: FALSE | X113: TRUE | Y113: FALSE | Z113: FALSE | AA113: TRUE | AB113: FALSE | AC113: TRUE | AD113: FALSE | AE113: TRUE | AF113: TRUE | AG113: TRUE | AH113: FALSE | AI113: FALSE | AJ113: TRUE | AK113: FALSE | AL113: FALSE | AM113: FALSE | AN113: FALSE | AO113: TRUE | AP113: TRUE | AQ113: TRUE | AR113: TRUE | AS113: TRUE | AT113: TRUE | AU113: TRUE | AV113: TRUE | AW113: TRUE | AX113: TRUE | AY113: TRUE | AZ113: TRUE | BA113: TRUE
A114: 109 | B114: TRUE | D114: TRUE | E114: FALSE | F114: TRUE | G114: FALSE | H114: TRUE | I114: TRUE | J114: TRUE | K114: TRUE | L114: TRUE | M114: TRUE | N114: FALSE | O114: TRUE | P114: TRUE | Q114: FALSE | R114: TRUE | S114: TRUE | T114: TRUE | U114: FALSE | V114: FALSE | W114: TRUE | X114: TRUE | Y114: TRUE | Z114: TRUE | AA114: TRUE | AB114: FALSE | AC114: FALSE | AD114: TRUE | AE114: FALSE | AF114: FALSE | AG114: TRUE | AH114: TRUE | AI114: TRUE | AJ114: TRUE | AK114: TRUE | AL114: FALSE | AM114: FALSE | AN114: TRUE | AO114: TRUE | AP114: FALSE | AQ114: TRUE | AR114: TRUE | AS114: TRUE | AT114: TRUE | AU114: FALSE | AV114: FALSE | AW114: FALSE | AX114: TRUE | AY114: TRUE | AZ114: TRUE | BA114: FALSE
A115: 110 | B115: FALSE | D115: TRUE | E115: TRUE | F115: FALSE | G115: TRUE | H115: TRUE | I115: FALSE | J115: TRUE | K115: FALSE | L115: TRUE | M115: TRUE | N115: TRUE | O115: TRUE | P115: FALSE | Q115: TRUE | R115: TRUE | S115: FALSE | T115: FALSE | U115: TRUE | V115: TRUE | W115: TRUE | X115: FALSE | Y115: TRUE | Z115: TRUE | AA115: TRUE | AB115: FALSE | AC115: FALSE | AD115: FALSE | AE115: FALSE | AF115: TRUE | AG115: TRUE | AH115: FALSE | AI115: TRUE | AJ115: TRUE | AK115: FALSE | AL115: FALSE | AM115: FALSE | AN115: TRUE | AO115: FALSE | AP115: TRUE | AQ115: FALSE | AR115: TRUE | AS115: TRUE | AT115: TRUE | AU115: FALSE | AV115: TRUE | AW115: FALSE | AX115: TRUE | AY115: TRUE | AZ115: TRUE | BA115: TRUE
A116: 111 | B116: TRUE | D116: TRUE | E116: TRUE | F116: TRUE | G116: FALSE | H116: TRUE | I116: FALSE | J116: TRUE | K116: FALSE | L116: TRUE | M116: TRUE | N116: TRUE | O116: TRUE | P116: TRUE | Q116: TRUE | R116: FALSE | S116: FALSE | T116: TRUE | U116: TRUE | V116: FALSE | W116: TRUE | X116: TRUE | Y116: FALSE | Z116: TRUE | AA116: TRUE | AB116: TRUE | AC116: TRUE | AD116: FALSE | AE116: TRUE | AF116: TRUE | AG116: TRUE | AH116: FALSE | AI116: FALSE | AJ116: TRUE | AK116: TRUE | AL116: TRUE | AM116: TRUE | AN116: TRUE | AO116: TRUE | AP116: TRUE | AQ116: FALSE | AR116: TRUE | AS116: TRUE | AT116: TRUE | AU116: FALSE | AV116: FALSE | AW116: TRUE | AX116: TRUE | AY116: TRUE | AZ116: TRUE | BA116: TRUE
A117: 112 | B117: FALSE | D117: TRUE | E117: TRUE | F117: TRUE | G117: TRUE | H117: TRUE | I117: FALSE | J117: TRUE | K117: FALSE | L117: TRUE | M117: TRUE | N117: TRUE | O117: FALSE | P117: TRUE | Q117: TRUE | R117: TRUE | S117: TRUE | T117: FALSE | U117: TRUE | V117: FALSE | W117: TRUE | X117: FALSE | Y117: FALSE | Z117: FALSE | AA117: TRUE | AB117: TRUE | AC117: TRUE | AD117: TRUE | AE117: FALSE | AF117: TRUE | AG117: TRUE | AH117: TRUE | AI117: TRUE | AJ117: FALSE | AK117: TRUE | AL117: FALSE | AM117: TRUE | AN117: TRUE | AO117: FALSE | AP117: TRUE | AQ117: TRUE | AR117: FALSE | AS117: TRUE | AT117: TRUE | AU117: TRUE | AV117: TRUE | AW117: TRUE | AX117: FALSE | AY117: FALSE | AZ117: TRUE | BA117: TRUE
A118: 113 | B118: TRUE | D118: FALSE | E118: FALSE | F118: TRUE | G118: TRUE | H118: TRUE | I118: TRUE | J118: TRUE | K118: FALSE | L118: TRUE | M118: FALSE | N118: TRUE | O118: FALSE | P118: FALSE | Q118: FALSE | R118: TRUE | S118: TRUE | T118: TRUE | U118: FALSE | V118: TRUE | W118: TRUE | X118: FALSE | Y118: TRUE | Z118: FALSE | AA118: TRUE | AB118: TRUE | AC118: FALSE | AD118: TRUE | AE118: FALSE | AF118: TRUE | AG118: TRUE | AH118: TRUE | AI118: FALSE | AJ118: TRUE | AK118: TRUE | AL118: TRUE | AM118: TRUE | AN118: FALSE | AO118: FALSE | AP118: TRUE | AQ118: TRUE | AR118: TRUE | AS118: TRUE | AT118: TRUE | AU118: TRUE | AV118: FALSE | AW118: FALSE | AX118: FALSE | AY118: TRUE | AZ118: FALSE | BA118: FALSE
A119: 114 | B119: TRUE | D119: FALSE | E119: FALSE | F119: TRUE | G119: FALSE | H119: TRUE | I119: FALSE | J119: FALSE | K119: FALSE | L119: TRUE | M119: TRUE | N119: TRUE | O119: TRUE | P119: TRUE | Q119: FALSE | R119: TRUE | S119: TRUE | T119: FALSE | U119: FALSE | V119: FALSE | W119: TRUE | X119: TRUE | Y119: FALSE | Z119: FALSE | AA119: TRUE | AB119: TRUE | AC119: TRUE | AD119: FALSE | AE119: TRUE | AF119: TRUE | AG119: FALSE | AH119: TRUE | AI119: FALSE | AJ119: FALSE | AK119: TRUE | AL119: TRUE | AM119: TRUE | AN119: TRUE | AO119: TRUE | AP119: TRUE | AQ119: FALSE | AR119: FALSE | AS119: FALSE | AT119: TRUE | AU119: TRUE | AV119: TRUE | AW119: TRUE | AX119: FALSE | AY119: TRUE | AZ119: TRUE | BA119: TRUE
A120: 115 | B120: FALSE | D120: FALSE | E120: TRUE | F120: TRUE | G120: TRUE | H120: TRUE | I120: FALSE | J120: TRUE | K120: FALSE | L120: TRUE | M120: TRUE | N120: TRUE | O120: TRUE | P120: FALSE | Q120: TRUE | R120: TRUE | S120: TRUE | T120: FALSE | U120: TRUE | V120: TRUE | W120: FALSE | X120: TRUE | Y120: TRUE | Z120: TRUE | AA120: TRUE | AB120: TRUE | AC120: TRUE | AD120: FALSE | AE120: TRUE | AF120: FALSE | AG120: TRUE | AH120: TRUE | AI120: TRUE | AJ120: FALSE | AK120: TRUE | AL120: TRUE | AM120: TRUE | AN120: TRUE | AO120: TRUE | AP120: TRUE | AQ120: FALSE | AR120: TRUE | AS120: FALSE | AT120: TRUE | AU120: TRUE | AV120: FALSE | AW120: TRUE | AX120: TRUE | AY120: FALSE | AZ120: FALSE | BA120: FALSE
A121: 116 | B121: FALSE | D121: TRUE | E121: TRUE | F121: FALSE | G121: TRUE | H121: TRUE | I121: TRUE | J121: FALSE | K121: FALSE | L121: FALSE | M121: TRUE | N121: TRUE | O121: TRUE | P121: FALSE | Q121: TRUE | R121: FALSE | S121: TRUE | T121: FALSE | U121: FALSE | V121: FALSE | W121: TRUE | X121: TRUE | Y121: FALSE | Z121: FALSE | AA121: TRUE | AB121: TRUE | AC121: TRUE | AD121: FALSE | AE121: TRUE | AF121: FALSE | AG121: TRUE | AH121: TRUE | AI121: TRUE | AJ121: TRUE | AK121: TRUE | AL121: FALSE | AM121: FALSE | AN121: TRUE | AO121: TRUE | AP121: FALSE | AQ121: TRUE | AR121: FALSE | AS121: FALSE | AT121: FALSE | AU121: TRUE | AV121: TRUE | AW121: TRUE | AX121: FALSE | AY121: FALSE | AZ121: FALSE | BA121: FALSE
A122: 117 | B122: FALSE | D122: TRUE | E122: TRUE | F122: TRUE | G122: FALSE | H122: TRUE | I122: FALSE | J122: FALSE | K122: TRUE | L122: TRUE | M122: FALSE | N122: TRUE | O122: TRUE | P122: FALSE | Q122: TRUE | R122: TRUE | S122: TRUE | T122: TRUE | U122: TRUE | V122: FALSE | W122: FALSE | X122: TRUE | Y122: TRUE | Z122: FALSE | AA122: FALSE | AB122: TRUE | AC122: TRUE | AD122: FALSE | AE122: TRUE | AF122: FALSE | AG122: TRUE | AH122: TRUE | AI122: FALSE | AJ122: TRUE | AK122: FALSE | AL122: TRUE | AM122: TRUE | AN122: FALSE | AO122: TRUE | AP122: TRUE | AQ122: TRUE | AR122: FALSE | AS122: TRUE | AT122: FALSE | AU122: FALSE | AV122: TRUE | AW122: TRUE | AX122: TRUE | AY122: TRUE | AZ122: FALSE | BA122: TRUE
A123: 118 | B123: FALSE | D123: TRUE | E123: FALSE | F123: TRUE | G123: TRUE | H123: FALSE | I123: FALSE | J123: TRUE | K123: TRUE | L123: TRUE | M123: TRUE | N123: TRUE | O123: TRUE | P123: TRUE | Q123: TRUE | R123: TRUE | S123: TRUE | T123: FALSE | U123: TRUE | V123: FALSE | W123: TRUE | X123: TRUE | Y123: TRUE | Z123: TRUE | AA123: TRUE | AB123: FALSE | AC123: FALSE | AD123: FALSE | AE123: FALSE | AF123: TRUE | AG123: TRUE | AH123: FALSE | AI123: TRUE | AJ123: TRUE | AK123: TRUE | AL123: TRUE | AM123: TRUE | AN123: TRUE | AO123: FALSE | AP123: TRUE | AQ123: TRUE | AR123: FALSE | AS123: TRUE | AT123: TRUE | AU123: TRUE | AV123: TRUE | AW123: TRUE | AX123: FALSE | AY123: TRUE | AZ123: TRUE | BA123: FALSE
A124: 119 | B124: TRUE | D124: FALSE | E124: TRUE | F124: FALSE | G124: FALSE | H124: FALSE | I124: TRUE | J124: FALSE | K124: FALSE | L124: TRUE | M124: TRUE | N124: TRUE | O124: TRUE | P124: TRUE | Q124: TRUE | R124: TRUE | S124: FALSE | T124: TRUE | U124: TRUE | V124: FALSE | W124: FALSE | X124: FALSE | Y124: TRUE | Z124: TRUE | AA124: TRUE | AB124: TRUE | AC124: FALSE | AD124: TRUE | AE124: FALSE | AF124: TRUE | AG124: TRUE | AH124: TRUE | AI124: TRUE | AJ124: TRUE | AK124: FALSE | AL124: FALSE | AM124: FALSE | AN124: TRUE | AO124: TRUE | AP124: TRUE | AQ124: TRUE | AR124: TRUE | AS124: TRUE | AT124: TRUE | AU124: FALSE | AV124: TRUE | AW124: FALSE | AX124: FALSE | AY124: FALSE | AZ124: TRUE | BA124: FALSE
A125: 120 | B125: TRUE | D125: FALSE | E125: TRUE | F125: FALSE | G125: TRUE | H125: TRUE | I125: TRUE | J125: TRUE | K125: TRUE | L125: TRUE | M125: FALSE | N125: TRUE | O125: TRUE | P125: TRUE | Q125: FALSE | R125: FALSE | S125: FALSE | T125: FALSE | U125: TRUE | V125: TRUE | W125: FALSE | X125: FALSE | Y125: TRUE | Z125: TRUE | AA125: TRUE | AB125: FALSE | AC125: TRUE | AD125: TRUE | AE125: TRUE | AF125: TRUE | AG125: FALSE | AH125: FALSE | AI125: FALSE | AJ125: FALSE | AK125: TRUE | AL125: FALSE | AM125: FALSE | AN125: TRUE | AO125: TRUE | AP125: TRUE | AQ125: FALSE | AR125: TRUE | AS125: TRUE | AT125: FALSE | AU125: FALSE | AV125: TRUE | AW125: TRUE | AX125: FALSE | AY125: TRUE | AZ125: TRUE | BA125: TRUE
A126: 121 | B126: TRUE | D126: TRUE | E126: FALSE | F126: TRUE | G126: FALSE | H126: TRUE | I126: FALSE | J126: FALSE | K126: TRUE | L126: FALSE | M126: TRUE | N126: FALSE | O126: TRUE | P126: FALSE | Q126: TRUE | R126: TRUE | S126: TRUE | T126: TRUE | U126: TRUE | V126: TRUE | W126: TRUE | X126: TRUE | Y126: TRUE | Z126: TRUE | AA126: TRUE | AB126: TRUE | AC126: FALSE | AD126: TRUE | AE126: TRUE | AF126: TRUE | AG126: TRUE | AH126: TRUE | AI126: TRUE | AJ126: FALSE | AK126: TRUE | AL126: FALSE | AM126: TRUE | AN126: TRUE | AO126: FALSE | AP126: FALSE | AQ126: TRUE | AR126: TRUE | AS126: FALSE | AT126: TRUE | AU126: TRUE | AV126: FALSE | AW126: TRUE | AX126: FALSE | AY126: TRUE | AZ126: TRUE | BA126: TRUE
A127: 122 | B127: TRUE | D127: TRUE | E127: FALSE | F127: TRUE | G127: TRUE | H127: TRUE | I127: FALSE | J127: FALSE | K127: FALSE | L127: TRUE | M127: FALSE | N127: TRUE | O127: FALSE | P127: TRUE | Q127: TRUE | R127: TRUE | S127: TRUE | T127: TRUE | U127: FALSE | V127: TRUE | W127: FALSE | X127: TRUE | Y127: FALSE | Z127: FALSE | AA127: TRUE | AB127: FALSE | AC127: TRUE | AD127: FALSE | AE127: TRUE | AF127: TRUE | AG127: TRUE | AH127: FALSE | AI127: TRUE | AJ127: FALSE | AK127: TRUE | AL127: TRUE | AM127: FALSE | AN127: TRUE | AO127: FALSE | AP127: FALSE | AQ127: FALSE | AR127: TRUE | AS127: TRUE | AT127: FALSE | AU127: TRUE | AV127: TRUE | AW127: TRUE | AX127: TRUE | AY127: TRUE | AZ127: TRUE | BA127: FALSE
A128: 123 | B128: TRUE | D128: TRUE | E128: TRUE | F128: FALSE | G128: TRUE | H128: FALSE | I128: TRUE | J128: FALSE | K128: TRUE | L128: TRUE | M128: FALSE | N128: TRUE | O128: TRUE | P128: TRUE | Q128: TRUE | R128: TRUE | S128: TRUE | T128: TRUE | U128: TRUE | V128: TRUE | W128: FALSE | X128: FALSE | Y128: TRUE | Z128: FALSE | AA128: TRUE | AB128: TRUE | AC128: TRUE | AD128: TRUE | AE128: FALSE | AF128: FALSE | AG128: FALSE | AH128: TRUE | AI128: TRUE | AJ128: TRUE | AK128: TRUE | AL128: TRUE | AM128: FALSE | AN128: FALSE | AO128: TRUE | AP128: TRUE | AQ128: TRUE | AR128: FALSE | AS128: TRUE | AT128: TRUE | AU128: TRUE | AV128: TRUE | AW128: TRUE | AX128: FALSE | AY128: FALSE | AZ128: TRUE | BA128: TRUE
A129: 124 | B129: TRUE | D129: TRUE | E129: FALSE | F129: FALSE | G129: FALSE | H129: FALSE | I129: FALSE | J129: TRUE | K129: FALSE | L129: FALSE | M129: TRUE | N129: FALSE | O129: TRUE | P129: FALSE | Q129: TRUE | R129: FALSE | S129: FALSE | T129: FALSE | U129: FALSE | V129: FALSE | W129: TRUE | X129: FALSE | Y129: TRUE | Z129: TRUE | AA129: TRUE | AB129: FALSE | AC129: TRUE | AD129: FALSE | AE129: TRUE | AF129: FALSE | AG129: TRUE | AH129: FALSE | AI129: TRUE | AJ129: TRUE | AK129: TRUE | AL129: FALSE | AM129: FALSE | AN129: FALSE | AO129: FALSE | AP129: TRUE | AQ129: TRUE | AR129: FALSE | AS129: TRUE | AT129: TRUE | AU129: FALSE | AV129: FALSE | AW129: FALSE | AX129: FALSE | AY129: TRUE | AZ129: TRUE | BA129: FALSE
A130: 125 | B130: TRUE | D130: FALSE | E130: TRUE | F130: TRUE | G130: FALSE | H130: FALSE | I130: TRUE | J130: FALSE | K130: FALSE | L130: FALSE | M130: TRUE | N130: TRUE | O130: TRUE | P130: FALSE | Q130: FALSE | R130: TRUE | S130: FALSE | T130: TRUE | U130: TRUE | V130: FALSE | W130: TRUE | X130: FALSE | Y130: TRUE | Z130: FALSE | AA130: TRUE | AB130: TRUE | AC130: FALSE | AD130: FALSE | AE130: TRUE | AF130: FALSE | AG130: TRUE | AH130: FALSE | AI130: FALSE | AJ130: TRUE | AK130: FALSE | AL130: TRUE | AM130: FALSE | AN130: FALSE | AO130: TRUE | AP130: FALSE | AQ130: TRUE | AR130: TRUE | AS130: TRUE | AT130: TRUE | AU130: FALSE | AV130: TRUE | AW130: TRUE | AX130: TRUE | AY130: FALSE | AZ130: FALSE | BA130: FALSE
A131: 126 | B131: TRUE | D131: FALSE | E131: TRUE | F131: FALSE | G131: TRUE | H131: TRUE | I131: FALSE | J131: TRUE | K131: FALSE | L131: FALSE | M131: TRUE | N131: TRUE | O131: FALSE | P131: FALSE | Q131: TRUE | R131: FALSE | S131: TRUE | T131: FALSE | U131: TRUE | V131: TRUE | W131: TRUE | X131: FALSE | Y131: FALSE | Z131: FALSE | AA131: TRUE | AB131: TRUE | AC131: FALSE | AD131: FALSE | AE131: TRUE | AF131: TRUE | AG131: TRUE | AH131: TRUE | AI131: TRUE | AJ131: FALSE | AK131: FALSE | AL131: FALSE | AM131: TRUE | AN131: TRUE | AO131: TRUE | AP131: TRUE | AQ131: TRUE | AR131: TRUE | AS131: FALSE | AT131: FALSE | AU131: TRUE | AV131: FALSE | AW131: TRUE | AX131: TRUE | AY131: TRUE | AZ131: FALSE | BA131: TRUE
A132: 127 | B132: FALSE | D132: TRUE | E132: FALSE | F132: TRUE | G132: TRUE | H132: TRUE | I132: FALSE | J132: FALSE | K132: FALSE | L132: TRUE | M132: FALSE | N132: FALSE | O132: TRUE | P132: FALSE | Q132: TRUE | R132: TRUE | S132: TRUE | T132: TRUE | U132: FALSE | V132: TRUE | W132: FALSE | X132: FALSE | Y132: TRUE | Z132: FALSE | AA132: TRUE | AB132: TRUE | AC132: FALSE | AD132: TRUE | AE132: TRUE | AF132: FALSE | AG132: TRUE | AH132: TRUE | AI132: TRUE | AJ132: TRUE | AK132: FALSE | AL132: TRUE | AM132: TRUE | AN132: FALSE | AO132: FALSE | AP132: TRUE | AQ132: TRUE | AR132: TRUE | AS132: TRUE | AT132: TRUE | AU132: FALSE | AV132: FALSE | AW132: TRUE | AX132: FALSE | AY132: TRUE | AZ132: TRUE | BA132: TRUE
A133: 128 | B133: FALSE | D133: FALSE | E133: FALSE | F133: TRUE | G133: TRUE | H133: FALSE | I133: TRUE | J133: FALSE | K133: TRUE | L133: TRUE | M133: TRUE | N133: TRUE | O133: FALSE | P133: TRUE | Q133: FALSE | R133: TRUE | S133: TRUE | T133: TRUE | U133: FALSE | V133: TRUE | W133: TRUE | X133: TRUE | Y133: TRUE | Z133: FALSE | AA133: TRUE | AB133: TRUE | AC133: FALSE | AD133: TRUE | AE133: FALSE | AF133: FALSE | AG133: TRUE | AH133: TRUE | AI133: FALSE | AJ133: FALSE | AK133: TRUE | AL133: TRUE | AM133: TRUE | AN133: TRUE | AO133: TRUE | AP133: TRUE | AQ133: FALSE | AR133: TRUE | AS133: TRUE | AT133: TRUE | AU133: FALSE | AV133: TRUE | AW133: TRUE | AX133: TRUE | AY133: FALSE | AZ133: TRUE | BA133: TRUE
A134: 129 | B134: TRUE | D134: FALSE | E134: FALSE | F134: TRUE | G134: TRUE | H134: TRUE | I134: TRUE | J134: TRUE | K134: TRUE | L134: TRUE | M134: FALSE | N134: TRUE | O134: FALSE | P134: FALSE | Q134: TRUE | R134: FALSE | S134: TRUE | T134: TRUE | U134: FALSE | V134: TRUE | W134: TRUE | X134: TRUE | Y134: TRUE | Z134: TRUE | AA134: TRUE | AB134: TRUE | AC134: TRUE | AD134: TRUE | AE134: TRUE | AF134: TRUE | AG134: TRUE | AH134: FALSE | AI134: FALSE | AJ134: TRUE | AK134: TRUE | AL134: TRUE | AM134: FALSE | AN134: TRUE | AO134: TRUE | AP134: FALSE | AQ134: TRUE | AR134: FALSE | AS134: FALSE | AT134: TRUE | AU134: TRUE | AV134: TRUE | AW134: TRUE | AX134: TRUE | AY134: TRUE | AZ134: TRUE | BA134: TRUE
A135: 130 | B135: =RAND()<$C$2 -> FALSE | D135: FALSE | E135: FALSE | F135: FALSE | G135: FALSE | H135: TRUE | I135: TRUE | J135: TRUE | K135: FALSE | L135: TRUE | M135: FALSE | N135: TRUE | O135: TRUE | P135: TRUE | Q135: FALSE | R135: TRUE | S135: TRUE | T135: TRUE | U135: FALSE | V135: TRUE | W135: TRUE | X135: TRUE | Y135: TRUE | Z135: FALSE | AA135: TRUE | AB135: TRUE | AC135: FALSE | AD135: TRUE | AE135: FALSE | AF135: TRUE | AG135: TRUE | AH135: FALSE | AI135: TRUE | AJ135: TRUE | AK135: TRUE | AL135: FALSE | AM135: FALSE | AN135: FALSE | AO135: FALSE | AP135: FALSE | AQ135: TRUE | AR135: TRUE | AS135: FALSE | AT135: TRUE | AU135: TRUE | AV135: FALSE | AW135: TRUE | AX135: FALSE | AY135: TRUE | AZ135: FALSE | BA135: FALSE
A136: 131 | B136: FALSE | D136: TRUE | E136: TRUE | F136: TRUE | G136: FALSE | H136: FALSE | I136: TRUE | J136: FALSE | K136: TRUE | L136: TRUE | M136: TRUE | N136: TRUE | O136: TRUE | P136: FALSE | Q136: TRUE | R136: TRUE | S136: TRUE | T136: TRUE | U136: TRUE | V136: TRUE | W136: FALSE | X136: TRUE | Y136: TRUE | Z136: FALSE | AA136: TRUE | AB136: TRUE | AC136: TRUE | AD136: FALSE | AE136: TRUE | AF136: TRUE | AG136: FALSE | AH136: FALSE | AI136: TRUE | AJ136: TRUE | AK136: TRUE | AL136: FALSE | AM136: FALSE | AN136: TRUE | AO136: TRUE | AP136: TRUE | AQ136: FALSE | AR136: FALSE | AS136: TRUE | AT136: FALSE | AU136: TRUE | AV136: TRUE | AW136: TRUE | AX136: TRUE | AY136: TRUE | AZ136: FALSE | BA136: TRUE
A137: 132 | B137: FALSE | D137: TRUE | E137: FALSE | F137: TRUE | G137: TRUE | H137: TRUE | I137: FALSE | J137: TRUE | K137: FALSE | L137: FALSE | M137: TRUE | N137: TRUE | O137: TRUE | P137: TRUE | Q137: TRUE | R137: TRUE | S137: TRUE | T137: TRUE | U137: FALSE | V137: FALSE | W137: TRUE | X137: TRUE | Y137: FALSE | Z137: FALSE | AA137: TRUE | AB137: TRUE | AC137: FALSE | AD137: TRUE | AE137: TRUE | AF137: FALSE | AG137: FALSE | AH137: TRUE | AI137: TRUE | AJ137: TRUE | AK137: FALSE | AL137: TRUE | AM137: TRUE | AN137: TRUE | AO137: TRUE | AP137: TRUE | AQ137: TRUE | AR137: TRUE | AS137: TRUE | AT137: FALSE | AU137: TRUE | AV137: TRUE | AW137: TRUE | AX137: TRUE | AY137: TRUE | AZ137: FALSE | BA137: TRUE
A138: 133 | B138: TRUE | D138: TRUE | E138: TRUE | F138: TRUE | G138: TRUE | H138: FALSE | I138: TRUE | J138: FALSE | K138: TRUE | L138: TRUE | M138: TRUE | N138: TRUE | O138: TRUE | P138: TRUE | Q138: FALSE | R138: FALSE | S138: TRUE | T138: TRUE | U138: TRUE | V138: FALSE | W138: FALSE | X138: TRUE | Y138: TRUE | Z138: TRUE | AA138: TRUE | AB138: FALSE | AC138: FALSE | AD138: TRUE | AE138: TRUE | AF138: TRUE | AG138: TRUE | AH138: TRUE | AI138: FALSE | AJ138: FALSE | AK138: TRUE | AL138: TRUE | AM138: TRUE | AN138: TRUE | AO138: TRUE | AP138: FALSE | AQ138: TRUE | AR138: TRUE | AS138: TRUE | AT138: FALSE | AU138: TRUE | AV138: TRUE | AW138: FALSE | AX138: TRUE | AY138: FALSE | AZ138: TRUE | BA138: TRUE
A139: 134 | B139: TRUE | D139: FALSE | E139: FALSE | F139: TRUE | G139: TRUE | H139: TRUE | I139: TRUE | J139: TRUE | K139: TRUE | L139: TRUE | M139: TRUE | N139: TRUE | O139: FALSE | P139: TRUE | Q139: FALSE | R139: TRUE | S139: TRUE | T139: FALSE | U139: TRUE | V139: TRUE | W139: TRUE | X139: TRUE | Y139: TRUE | Z139: TRUE | AA139: TRUE | AB139: TRUE | AC139: TRUE | AD139: TRUE | AE139: TRUE | AF139: TRUE | AG139: TRUE | AH139: TRUE | AI139: TRUE | AJ139: FALSE | AK139: FALSE | AL139: TRUE | AM139: TRUE | AN139: TRUE | AO139: FALSE | AP139: TRUE | AQ139: TRUE | AR139: TRUE | AS139: TRUE | AT139: FALSE | AU139: FALSE | AV139: TRUE | AW139: TRUE | AX139: FALSE | AY139: FALSE | AZ139: TRUE | BA139: TRUE
A140: 135 | B140: FALSE | D140: TRUE | E140: TRUE | F140: FALSE | G140: TRUE | H140: TRUE | I140: TRUE | J140: FALSE | K140: TRUE | L140: TRUE | M140: FALSE | N140: FALSE | O140: TRUE | P140: TRUE | Q140: TRUE | R140: TRUE | S140: FALSE | T140: FALSE | U140: TRUE | V140: TRUE | W140: TRUE | X140: TRUE | Y140: TRUE | Z140: FALSE | AA140: TRUE | AB140: FALSE | AC140: FALSE | AD140: TRUE | AE140: TRUE | AF140: TRUE | AG140: FALSE | AH140: TRUE | AI140: TRUE | AJ140: FALSE | AK140: TRUE | AL140: TRUE | AM140: TRUE | AN140: TRUE | AO140: FALSE | AP140: TRUE | AQ140: TRUE | AR140: FALSE | AS140: TRUE | AT140: TRUE | AU140: TRUE | AV140: FALSE | AW140: TRUE | AX140: TRUE | AY140: TRUE | AZ140: TRUE | BA140: FALSE
A141: 136 | B141: FALSE | D141: TRUE | E141: FALSE | F141: FALSE | G141: FALSE | H141: TRUE | I141: TRUE | J141: FALSE | K141: TRUE | L141: TRUE | M141: FALSE | N141: TRUE | O141: TRUE | P141: TRUE | Q141: FALSE | R141: TRUE | S141: FALSE | T141: FALSE | U141: FALSE | V141: TRUE | W141: TRUE | X141: TRUE | Y141: TRUE | Z141: TRUE | AA141: TRUE | AB141: TRUE | AC141: TRUE | AD141: FALSE | AE141: TRUE | AF141: TRUE | AG141: TRUE | AH141: FALSE | AI141: FALSE | AJ141: TRUE | AK141: FALSE | AL141: TRUE | AM141: TRUE | AN141: TRUE | AO141: TRUE | AP141: TRUE | AQ141: FALSE | AR141: FALSE | AS141: FALSE | AT141: TRUE | AU141: FALSE | AV141: FALSE | AW141: FALSE | AX141: FALSE | AY141: TRUE | AZ141: TRUE | BA141: TRUE
A142: 137 | B142: TRUE | D142: TRUE | E142: TRUE | F142: TRUE | G142: TRUE | H142: TRUE | I142: TRUE | J142: FALSE | K142: FALSE | L142: FALSE | M142: FALSE | N142: TRUE | O142: FALSE | P142: TRUE | Q142: TRUE | R142: TRUE | S142: TRUE | T142: TRUE | U142: TRUE | V142: TRUE | W142: TRUE | X142: TRUE | Y142: FALSE | Z142: TRUE | AA142: FALSE | AB142: TRUE | AC142: FALSE | AD142: TRUE | AE142: TRUE | AF142: TRUE | AG142: FALSE | AH142: TRUE | AI142: TRUE | AJ142: TRUE | AK142: TRUE | AL142: TRUE | AM142: FALSE | AN142: TRUE | AO142: TRUE | AP142: TRUE | AQ142: TRUE | AR142: TRUE | AS142: TRUE | AT142: FALSE | AU142: TRUE | AV142: TRUE | AW142: TRUE | AX142: FALSE | AY142: FALSE | AZ142: TRUE | BA142: TRUE
A143: 138 | B143: TRUE | D143: FALSE | E143: TRUE | F143: FALSE | G143: TRUE | H143: TRUE | I143: TRUE | J143: TRUE | K143: FALSE | L143: TRUE | M143: TRUE | N143: TRUE | O143: FALSE | P143: TRUE | Q143: TRUE | R143: TRUE | S143: FALSE | T143: FALSE | U143: TRUE | V143: TRUE | W143: FALSE | X143: FALSE | Y143: TRUE | Z143: TRUE | AA143: TRUE | AB143: FALSE | AC143: TRUE | AD143: FALSE | AE143: TRUE | AF143: TRUE | AG143: FALSE | AH143: FALSE | AI143: TRUE | AJ143: TRUE | AK143: FALSE | AL143: TRUE | AM143: FALSE | AN143: TRUE | AO143: TRUE | AP143: FALSE | AQ143: TRUE | AR143: FALSE | AS143: TRUE | AT143: TRUE | AU143: FALSE | AV143: TRUE | AW143: TRUE | AX143: TRUE | AY143: TRUE | AZ143: FALSE | BA143: TRUE
A144: 139 | B144: TRUE | D144: FALSE | E144: TRUE | F144: TRUE | G144: TRUE | H144: TRUE | I144: FALSE | J144: TRUE | K144: FALSE | L144: TRUE | M144: FALSE | N144: TRUE | O144: TRUE | P144: TRUE | Q144: FALSE | R144: TRUE | S144: TRUE | T144: FALSE | U144: FALSE | V144: FALSE | W144: TRUE | X144: FALSE | Y144: TRUE | Z144: TRUE | AA144: TRUE | AB144: TRUE | AC144: TRUE | AD144: FALSE | AE144: TRUE | AF144: TRUE | AG144: TRUE | AH144: FALSE | AI144: TRUE | AJ144: FALSE | AK144: TRUE | AL144: TRUE | AM144: FALSE | AN144: FALSE | AO144: TRUE | AP144: TRUE | AQ144: FALSE | AR144: TRUE | AS144: TRUE | AT144: TRUE | AU144: TRUE | AV144: TRUE | AW144: TRUE | AX144: FALSE | AY144: TRUE | AZ144: TRUE | BA144: TRUE
A145: 140 | B145: FALSE | D145: TRUE | E145: TRUE | F145: TRUE | G145: TRUE | H145: TRUE | I145: TRUE | J145: TRUE | K145: TRUE | L145: TRUE | M145: TRUE | N145: TRUE | O145: TRUE | P145: TRUE | Q145: TRUE | R145: FALSE | S145: TRUE | T145: TRUE | U145: TRUE | V145: TRUE | W145: TRUE | X145: TRUE | Y145: TRUE | Z145: TRUE | AA145: FALSE | AB145: TRUE | AC145: TRUE | AD145: TRUE | AE145: FALSE | AF145: FALSE | AG145: TRUE | AH145: FALSE | AI145: TRUE | AJ145: TRUE | AK145: FALSE | AL145: TRUE | AM145: FALSE | AN145: TRUE | AO145: TRUE | AP145: FALSE | AQ145: FALSE | AR145: TRUE | AS145: FALSE | AT145: TRUE | AU145: FALSE | AV145: TRUE | AW145: FALSE | AX145: TRUE | AY145: TRUE | AZ145: TRUE | BA145: TRUE
A146: 141 | B146: TRUE | D146: TRUE | E146: TRUE | F146: FALSE | G146: TRUE | H146: TRUE | I146: TRUE | J146: FALSE | K146: FALSE | L146: TRUE | M146: TRUE | N146: FALSE | O146: TRUE | P146: TRUE | Q146: FALSE | R146: TRUE | S146: TRUE | T146: TRUE | U146: TRUE | V146: FALSE | W146: TRUE | X146: FALSE | Y146: FALSE | Z146: TRUE | AA146: TRUE | AB146: FALSE | AC146: FALSE | AD146: TRUE | AE146: FALSE | AF146: TRUE | AG146: FALSE | AH146: TRUE | AI146: FALSE | AJ146: FALSE | AK146: FALSE | AL146: TRUE | AM146: FALSE | AN146: TRUE | AO146: TRUE | AP146: TRUE | AQ146: FALSE | AR146: TRUE | AS146: TRUE | AT146: TRUE | AU146: FALSE | AV146: TRUE | AW146: FALSE | AX146: TRUE | AY146: TRUE | AZ146: FALSE | BA146: FALSE
A147: 142 | B147: TRUE | D147: TRUE | E147: TRUE | F147: TRUE | G147: TRUE | H147: TRUE | I147: TRUE | J147: FALSE | K147: FALSE | L147: FALSE | M147: FALSE | N147: TRUE | O147: TRUE | P147: TRUE | Q147: FALSE | R147: TRUE | S147: TRUE | T147: TRUE | U147: FALSE | V147: TRUE | W147: FALSE | X147: TRUE | Y147: TRUE | Z147: TRUE | AA147: TRUE | AB147: TRUE | AC147: TRUE | AD147: TRUE | AE147: TRUE | AF147: TRUE | AG147: TRUE | AH147: TRUE | AI147: FALSE | AJ147: TRUE | AK147: TRUE | AL147: FALSE | AM147: TRUE | AN147: FALSE | AO147: FALSE | AP147: TRUE | AQ147: TRUE | AR147: TRUE | AS147: FALSE | AT147: FALSE | AU147: TRUE | AV147: FALSE | AW147: TRUE | AX147: TRUE | AY147: TRUE | AZ147: TRUE | BA147: FALSE
A148: 143 | B148: TRUE | D148: FALSE | E148: FALSE | F148: TRUE | G148: TRUE | H148: TRUE | I148: TRUE | J148: FALSE | K148: TRUE | L148: TRUE | M148: TRUE | N148: FALSE | O148: FALSE | P148: TRUE | Q148: TRUE | R148: TRUE | S148: TRUE | T148: TRUE | U148: FALSE | V148: TRUE | W148: TRUE | X148: FALSE | Y148: TRUE | Z148: TRUE | AA148: FALSE | AB148: TRUE | AC148: TRUE | AD148: FALSE | AE148: TRUE | AF148: TRUE | AG148: FALSE | AH148: FALSE | AI148: TRUE | AJ148: TRUE | AK148: TRUE | AL148: TRUE | AM148: FALSE | AN148: TRUE | AO148: FALSE | AP148: FALSE | AQ148: FALSE | AR148: FALSE | AS148: TRUE | AT148: TRUE | AU148: FALSE | AV148: FALSE | AW148: TRUE | AX148: FALSE | AY148: TRUE | AZ148: TRUE | BA148: TRUE
A149: 144 | B149: TRUE | D149: FALSE | E149: TRUE | F149: TRUE | G149: TRUE | H149: TRUE | I149: FALSE | J149: TRUE | K149: TRUE | L149: FALSE | M149: FALSE | N149: TRUE | O149: TRUE | P149: TRUE | Q149: TRUE | R149: TRUE | S149: TRUE | T149: TRUE | U149: FALSE | V149: TRUE | W149: TRUE | X149: TRUE | Y149: FALSE | Z149: TRUE | AA149: FALSE | AB149: TRUE | AC149: FALSE | AD149: TRUE | AE149: TRUE | AF149: TRUE | AG149: FALSE | AH149: TRUE | AI149: TRUE | AJ149: TRUE | AK149: FALSE | AL149: FALSE | AM149: TRUE | AN149: FALSE | AO149: TRUE | AP149: TRUE | AQ149: TRUE | AR149: TRUE | AS149: TRUE | AT149: TRUE | AU149: FALSE | AV149: TRUE | AW149: FALSE | AX149: TRUE | AY149: FALSE | AZ149: TRUE | BA149: TRUE
A150: 145 | B150: TRUE | D150: TRUE | E150: TRUE | F150: TRUE | G150: TRUE | H150: TRUE | I150: FALSE | J150: TRUE | K150: TRUE | L150: FALSE | M150: TRUE | N150: TRUE | O150: TRUE | P150: FALSE | Q150: TRUE | R150: TRUE | S150: FALSE | T150: FALSE | U150: TRUE | V150: FALSE | W150: TRUE | X150: FALSE | Y150: TRUE | Z150: TRUE | AA150: FALSE | AB150: TRUE | AC150: TRUE | AD150: FALSE | AE150: FALSE | AF150: FALSE | AG150: TRUE | AH150: FALSE | AI150: FALSE | AJ150: TRUE | AK150: FALSE | AL150: FALSE | AM150: TRUE | AN150: TRUE | AO150: FALSE | AP150: FALSE | AQ150: TRUE | AR150: TRUE | AS150: FALSE | AT150: TRUE | AU150: TRUE | AV150: FALSE | AW150: FALSE | AX150: TRUE | AY150: TRUE | AZ150: FALSE | BA150: FALSE
A151: 146 | B151: FALSE | D151: TRUE | E151: FALSE | F151: FALSE | G151: TRUE | H151: FALSE | I151: FALSE | J151: TRUE | K151: TRUE | L151: TRUE | M151: FALSE | N151: FALSE | O151: TRUE | P151: TRUE | Q151: FALSE | R151: TRUE | S151: FALSE | T151: TRUE | U151: FALSE | V151: TRUE | W151: FALSE | X151: TRUE | Y151: TRUE | Z151: TRUE | AA151: TRUE | AB151: TRUE | AC151: TRUE | AD151: TRUE | AE151: TRUE | AF151: FALSE | AG151: TRUE | AH151: TRUE | AI151: FALSE | AJ151: TRUE | AK151: TRUE | AL151: FALSE | AM151: FALSE | AN151: TRUE | AO151: FALSE | AP151: TRUE | AQ151: TRUE | AR151: TRUE | AS151: TRUE | AT151: TRUE | AU151: FALSE | AV151: TRUE | AW151: TRUE | AX151: FALSE | AY151: TRUE | AZ151: TRUE | BA151: TRUE
A152: 147 | B152: TRUE | D152: FALSE | E152: TRUE | F152: TRUE | G152: TRUE | H152: FALSE | I152: TRUE | J152: TRUE | K152: TRUE | L152: TRUE | M152: FALSE | N152: TRUE | O152: TRUE | P152: FALSE | Q152: FALSE | R152: TRUE | S152: FALSE | T152: TRUE | U152: TRUE | V152: TRUE | W152: TRUE | X152: FALSE | Y152: TRUE | Z152: TRUE | AA152: TRUE | AB152: TRUE | AC152: TRUE | AD152: TRUE | AE152: TRUE | AF152: FALSE | AG152: TRUE | AH152: TRUE | AI152: FALSE | AJ152: TRUE | AK152: TRUE | AL152: TRUE | AM152: TRUE | AN152: FALSE | AO152: FALSE | AP152: TRUE | AQ152: TRUE | AR152: TRUE | AS152: FALSE | AT152: TRUE | AU152: TRUE | AV152: TRUE | AW152: TRUE | AX152: FALSE | AY152: FALSE | AZ152: FALSE | BA152: TRUE
A153: 148 | B153: TRUE | D153: TRUE | E153: FALSE | F153: FALSE | G153: TRUE | H153: FALSE | I153: TRUE | J153: TRUE | K153: FALSE | L153: TRUE | M153: FALSE | N153: TRUE | O153: FALSE | P153: FALSE | Q153: TRUE | R153: TRUE | S153: TRUE | T153: TRUE | U153: TRUE | V153: FALSE | W153: TRUE | X153: FALSE | Y153: FALSE | Z153: TRUE | AA153: TRUE | AB153: TRUE | AC153: TRUE | AD153: TRUE | AE153: FALSE | AF153: TRUE | AG153: TRUE | AH153: TRUE | AI153: FALSE | AJ153: TRUE | AK153: TRUE | AL153: TRUE | AM153: TRUE | AN153: FALSE | AO153: FALSE | AP153: TRUE | AQ153: TRUE | AR153: TRUE | AS153: TRUE | AT153: TRUE | AU153: TRUE | AV153: TRUE | AW153: TRUE | AX153: FALSE | AY153: FALSE | AZ153: TRUE | BA153: TRUE
A154: 149 | B154: FALSE | D154: FALSE | E154: TRUE | F154: TRUE | G154: FALSE | H154: FALSE | I154: TRUE | J154: TRUE | K154: TRUE | L154: TRUE | M154: TRUE | N154: TRUE | O154: FALSE | P154: FALSE | Q154: TRUE | R154: TRUE | S154: TRUE | T154: TRUE | U154: FALSE | V154: TRUE | W154: FALSE | X154: TRUE | Y154: TRUE | Z154: TRUE | AA154: FALSE | AB154: TRUE | AC154: TRUE | AD154: TRUE | AE154: FALSE | AF154: FALSE | AG154: TRUE | AH154: TRUE | AI154: TRUE | AJ154: FALSE | AK154: FALSE | AL154: TRUE | AM154: TRUE | AN154: TRUE | AO154: FALSE | AP154: TRUE | AQ154: TRUE | AR154: TRUE | AS154: TRUE | AT154: FALSE | AU154: FALSE | AV154: TRUE | AW154: FALSE | AX154: FALSE | AY154: TRUE | AZ154: TRUE | BA154: FALSE
A155: 150 | B155: TRUE | D155: FALSE | E155: TRUE | F155: FALSE | G155: TRUE | H155: TRUE | I155: FALSE | J155: TRUE | K155: FALSE | L155: FALSE | M155: TRUE | N155: FALSE | O155: TRUE | P155: TRUE | Q155: TRUE | R155: TRUE | S155: TRUE | T155: TRUE | U155: TRUE | V155: FALSE | W155: TRUE | X155: FALSE | Y155: TRUE | Z155: TRUE | AA155: FALSE | AB155: FALSE | AC155: TRUE | AD155: TRUE | AE155: TRUE | AF155: TRUE | AG155: TRUE | AH155: TRUE | AI155: FALSE | AJ155: TRUE | AK155: TRUE | AL155: TRUE | AM155: FALSE | AN155: FALSE | AO155: TRUE | AP155: FALSE | AQ155: FALSE | AR155: FALSE | AS155: FALSE | AT155: TRUE | AU155: TRUE | AV155: FALSE | AW155: TRUE | AX155: TRUE | AY155: FALSE | AZ155: TRUE | BA155: FALSE
A156: 151 | B156: TRUE | D156: TRUE | E156: TRUE | F156: FALSE | G156: FALSE | H156: TRUE | I156: TRUE | J156: FALSE | K156: TRUE | L156: TRUE | M156: FALSE | N156: FALSE | O156: TRUE | P156: TRUE | Q156: TRUE | R156: TRUE | S156: TRUE | T156: FALSE | U156: TRUE | V156: FALSE | W156: TRUE | X156: TRUE | Y156: TRUE | Z156: TRUE | AA156: TRUE | AB156: TRUE | AC156: FALSE | AD156: TRUE | AE156: TRUE | AF156: TRUE | AG156: TRUE | AH156: TRUE | AI156: FALSE | AJ156: FALSE | AK156: TRUE | AL156: TRUE | AM156: TRUE | AN156: TRUE | AO156: TRUE | AP156: FALSE | AQ156: FALSE | AR156: FALSE | AS156: TRUE | AT156: TRUE | AU156: TRUE | AV156: TRUE | AW156: TRUE | AX156: FALSE | AY156: TRUE | AZ156: TRUE | BA156: TRUE
A157: 152 | B157: TRUE | D157: TRUE | E157: FALSE | F157: TRUE | G157: FALSE | H157: FALSE | I157: FALSE | J157: TRUE | K157: TRUE | L157: FALSE | M157: FALSE | N157: TRUE | O157: TRUE | P157: TRUE | Q157: TRUE | R157: FALSE | S157: FALSE | T157: TRUE | U157: FALSE | V157: TRUE | W157: TRUE | X157: TRUE | Y157: TRUE | Z157: TRUE | AA157: FALSE | AB157: TRUE | AC157: TRUE | AD157: FALSE | AE157: TRUE | AF157: TRUE | AG157: TRUE | AH157: FALSE | AI157: TRUE | AJ157: FALSE | AK157: TRUE | AL157: TRUE | AM157: TRUE | AN157: TRUE | AO157: FALSE | AP157: TRUE | AQ157: TRUE | AR157: FALSE | AS157: TRUE | AT157: FALSE | AU157: TRUE | AV157: FALSE | AW157: TRUE | AX157: TRUE | AY157: TRUE | AZ157: TRUE | BA157: TRUE
A158: 153 | B158: TRUE | D158: TRUE | E158: TRUE | F158: TRUE | G158: FALSE | H158: TRUE | I158: TRUE | J158: TRUE | K158: TRUE | L158: TRUE | M158: TRUE | N158: TRUE | O158: FALSE | P158: TRUE | Q158: FALSE | R158: TRUE | S158: TRUE | T158: TRUE | U158: FALSE | V158: TRUE | W158: FALSE | X158: FALSE | Y158: TRUE | Z158: TRUE | AA158: FALSE | AB158: TRUE | AC158: TRUE | AD158: FALSE | AE158: FALSE | AF158: FALSE | AG158: FALSE | AH158: TRUE | AI158: TRUE | AJ158: FALSE | AK158: TRUE | AL158: TRUE | AM158: TRUE | AN158: FALSE | AO158: FALSE | AP158: TRUE | AQ158: TRUE | AR158: TRUE | AS158: FALSE | AT158: TRUE | AU158: TRUE | AV158: TRUE | AW158: FALSE | AX158: TRUE | AY158: TRUE | AZ158: TRUE | BA158: TRUE
A159: 154 | B159: FALSE | D159: TRUE | E159: TRUE | F159: FALSE | G159: TRUE | H159: TRUE | I159: FALSE | J159: TRUE | K159: TRUE | L159: FALSE | M159: TRUE | N159: TRUE | O159: TRUE | P159: TRUE | Q159: TRUE | R159: TRUE | S159: TRUE | T159: FALSE | U159: FALSE | V159: FALSE | W159: TRUE | X159: FALSE | Y159: FALSE | Z159: TRUE | AA159: FALSE | AB159: TRUE | AC159: TRUE | AD159: TRUE | AE159: TRUE | AF159: TRUE | AG159: TRUE | AH159: FALSE | AI159: TRUE | AJ159: FALSE | AK159: TRUE | AL159: TRUE | AM159: FALSE | AN159: TRUE | AO159: TRUE | AP159: TRUE | AQ159: TRUE | AR159: TRUE | AS159: TRUE | AT159: FALSE | AU159: TRUE | AV159: TRUE | AW159: TRUE | AX159: TRUE | AY159: FALSE | AZ159: TRUE | BA159: TRUE
A160: 155 | B160: TRUE | D160: TRUE | E160: TRUE | F160: TRUE | G160: TRUE | H160: FALSE | I160: TRUE | J160: FALSE | K160: FALSE | L160: TRUE | M160: FALSE | N160: TRUE | O160: TRUE | P160: TRUE | Q160: TRUE | R160: TRUE | S160: TRUE | T160: TRUE | U160: FALSE | V160: TRUE | W160: TRUE | X160: TRUE | Y160: FALSE | Z160: FALSE | AA160: TRUE | AB160: TRUE | AC160: TRUE | AD160: FALSE | AE160: FALSE | AF160: TRUE | AG160: TRUE | AH160: TRUE | AI160: TRUE | AJ160: TRUE | AK160: FALSE | AL160: TRUE | AM160: TRUE | AN160: TRUE | AO160: TRUE | AP160: FALSE | AQ160: TRUE | AR160: FALSE | AS160: FALSE | AT160: TRUE | AU160: TRUE | AV160: TRUE | AW160: TRUE | AX160: TRUE | AY160: TRUE | AZ160: FALSE | BA160: FALSE
A161: 156 | B161: TRUE | D161: TRUE | E161: FALSE | F161: TRUE | G161: FALSE | H161: TRUE | I161: TRUE | J161: TRUE | K161: TRUE | L161: FALSE | M161: TRUE | N161: TRUE | O161: FALSE | P161: TRUE | Q161: TRUE | R161: TRUE | S161: TRUE | T161: TRUE | U161: TRUE | V161: TRUE | W161: TRUE | X161: TRUE | Y161: FALSE | Z161: TRUE | AA161: TRUE | AB161: TRUE | AC161: TRUE | AD161: FALSE | AE161: TRUE | AF161: TRUE | AG161: TRUE | AH161: FALSE | AI161: FALSE | AJ161: TRUE | AK161: FALSE | AL161: TRUE | AM161: TRUE | AN161: TRUE | AO161: TRUE | AP161: TRUE | AQ161: TRUE | AR161: FALSE | AS161: TRUE | AT161: TRUE | AU161: TRUE | AV161: TRUE | AW161: TRUE | AX161: TRUE | AY161: TRUE | AZ161: TRUE | BA161: FALSE
A162: 157 | B162: FALSE | D162: TRUE | E162: FALSE | F162: TRUE | G162: FALSE | H162: TRUE | I162: TRUE | J162: TRUE | K162: TRUE | L162: TRUE | M162: TRUE | N162: TRUE | O162: TRUE | P162: FALSE | Q162: TRUE | R162: TRUE | S162: FALSE | T162: FALSE | U162: TRUE | V162: TRUE | W162: TRUE | X162: FALSE | Y162: FALSE | Z162: TRUE | AA162: FALSE | AB162: TRUE | AC162: TRUE | AD162: TRUE | AE162: TRUE | AF162: FALSE | AG162: TRUE | AH162: FALSE | AI162: TRUE | AJ162: TRUE | AK162: TRUE | AL162: TRUE | AM162: FALSE | AN162: TRUE | AO162: FALSE | AP162: TRUE | AQ162: FALSE | AR162: TRUE | AS162: FALSE | AT162: FALSE | AU162: TRUE | AV162: FALSE | AW162: FALSE | AX162: TRUE | AY162: TRUE | AZ162: TRUE | BA162: TRUE
A163: 158 | B163: FALSE | D163: TRUE | E163: FALSE | F163: FALSE | G163: TRUE | H163: TRUE | I163: FALSE | J163: FALSE | K163: FALSE | L163: FALSE | M163: TRUE | N163: TRUE | O163: TRUE | P163: TRUE | Q163: TRUE | R163: FALSE | S163: TRUE | T163: FALSE | U163: TRUE | V163: TRUE | W163: TRUE | X163: FALSE | Y163: TRUE | Z163: FALSE | AA163: TRUE | AB163: TRUE | AC163: FALSE | AD163: TRUE | AE163: TRUE | AF163: FALSE | AG163: TRUE | AH163: TRUE | AI163: TRUE | AJ163: TRUE | AK163: TRUE | AL163: FALSE | AM163: TRUE | AN163: FALSE | AO163: TRUE | AP163: FALSE | AQ163: TRUE | AR163: TRUE | AS163: TRUE | AT163: FALSE | AU163: FALSE | AV163: TRUE | AW163: TRUE | AX163: FALSE | AY163: TRUE | AZ163: TRUE | BA163: FALSE
A164: 159 | B164: TRUE | D164: TRUE | E164: TRUE | F164: TRUE | G164: TRUE | H164: FALSE | I164: TRUE | J164: FALSE | K164: TRUE | L164: FALSE | M164: FALSE | N164: TRUE | O164: TRUE | P164: TRUE | Q164: FALSE | R164: FALSE | S164: TRUE | T164: TRUE | U164: FALSE | V164: FALSE | W164: TRUE | X164: TRUE | Y164: TRUE | Z164: TRUE | AA164: TRUE | AB164: TRUE | AC164: FALSE | AD164: TRUE | AE164: TRUE | AF164: TRUE | AG164: TRUE | AH164: TRUE | AI164: TRUE | AJ164: TRUE | AK164: FALSE | AL164: TRUE | AM164: TRUE | AN164: TRUE | AO164: TRUE | AP164: FALSE | AQ164: TRUE | AR164: FALSE | AS164: TRUE | AT164: FALSE | AU164: TRUE | AV164: TRUE | AW164: FALSE | AX164: FALSE | AY164: TRUE | AZ164: TRUE | BA164: TRUE
A165: 160 | B165: TRUE | D165: FALSE | E165: TRUE | F165: FALSE | G165: TRUE | H165: FALSE | I165: FALSE | J165: FALSE | K165: FALSE | L165: TRUE | M165: TRUE | N165: FALSE | O165: FALSE | P165: TRUE | Q165: FALSE | R165: FALSE | S165: FALSE | T165: TRUE | U165: FALSE | V165: TRUE | W165: FALSE | X165: TRUE | Y165: FALSE | Z165: TRUE | AA165: TRUE | AB165: FALSE | AC165: TRUE | AD165: FALSE | AE165: TRUE | AF165: FALSE | AG165: TRUE | AH165: TRUE | AI165: TRUE | AJ165: FALSE | AK165: TRUE | AL165: TRUE | AM165: TRUE | AN165: FALSE | AO165: TRUE | AP165: TRUE | AQ165: TRUE | AR165: FALSE | AS165: TRUE | AT165: FALSE | AU165: TRUE | AV165: TRUE | AW165: TRUE | AX165: TRUE | AY165: FALSE | AZ165: TRUE | BA165: FALSE
A166: 161 | B166: TRUE | D166: FALSE | E166: FALSE | F166: TRUE | G166: TRUE | H166: FALSE | I166: FALSE | J166: TRUE | K166: FALSE | L166: FALSE | M166: TRUE | N166: TRUE | O166: FALSE | P166: TRUE | Q166: TRUE | R166: TRUE | S166: TRUE | T166: TRUE | U166: TRUE | V166: FALSE | W166: TRUE | X166: TRUE | Y166: TRUE | Z166: TRUE | AA166: TRUE | AB166: TRUE | AC166: TRUE | AD166: TRUE | AE166: TRUE | AF166: FALSE | AG166: TRUE | AH166: FALSE | AI166: TRUE | AJ166: FALSE | AK166: TRUE | AL166: TRUE | AM166: FALSE | AN166: TRUE | AO166: TRUE | AP166: TRUE | AQ166: TRUE | AR166: TRUE | AS166: TRUE | AT166: TRUE | AU166: TRUE | AV166: FALSE | AW166: FALSE | AX166: TRUE | AY166: FALSE | AZ166: TRUE | BA166: TRUE
A167: 162 | B167: TRUE | D167: FALSE | E167: TRUE | F167: FALSE | G167: TRUE | H167: FALSE | I167: FALSE | J167: TRUE | K167: TRUE | L167: FALSE | M167: TRUE | N167: FALSE | O167: FALSE | P167: FALSE | Q167: TRUE | R167: FALSE | S167: FALSE | T167: TRUE | U167: TRUE | V167: TRUE | W167: TRUE | X167: TRUE | Y167: TRUE | Z167: TRUE | AA167: TRUE | AB167: FALSE | AC167: TRUE | AD167: FALSE | AE167: FALSE | AF167: TRUE | AG167: FALSE | AH167: TRUE | AI167: TRUE | AJ167: FALSE | AK167: FALSE | AL167: FALSE | AM167: TRUE | AN167: FALSE | AO167: TRUE | AP167: TRUE | AQ167: TRUE | AR167: FALSE | AS167: FALSE | AT167: TRUE | AU167: TRUE | AV167: FALSE | AW167: TRUE | AX167: TRUE | AY167: FALSE | AZ167: TRUE | BA167: FALSE
A168: 163 | B168: TRUE | D168: TRUE | E168: TRUE | F168: FALSE | G168: TRUE | H168: TRUE | I168: TRUE | J168: TRUE | K168: FALSE | L168: TRUE | M168: TRUE | N168: FALSE | O168: TRUE | P168: FALSE | Q168: TRUE | R168: FALSE | S168: FALSE | T168: FALSE | U168: TRUE | V168: TRUE | W168: TRUE | X168: FALSE | Y168: TRUE | Z168: TRUE | AA168: FALSE | AB168: FALSE | AC168: TRUE | AD168: TRUE | AE168: FALSE | AF168: TRUE | AG168: TRUE | AH168: TRUE | AI168: TRUE | AJ168: TRUE | AK168: TRUE | AL168: FALSE | AM168: TRUE | AN168: TRUE | AO168: FALSE | AP168: FALSE | AQ168: TRUE | AR168: FALSE | AS168: FALSE | AT168: TRUE | AU168: TRUE | AV168: TRUE | AW168: TRUE | AX168: TRUE | AY168: TRUE | AZ168: FALSE | BA168: TRUE
A169: 164 | B169: TRUE | D169: TRUE | E169: TRUE | F169: FALSE | G169: TRUE | H169: FALSE | I169: TRUE | J169: TRUE | K169: TRUE | L169: TRUE | M169: TRUE | N169: TRUE | O169: TRUE | P169: FALSE | Q169: FALSE | R169: TRUE | S169: TRUE | T169: TRUE | U169: TRUE | V169: TRUE | W169: FALSE | X169: TRUE | Y169: TRUE | Z169: FALSE | AA169: TRUE | AB169: FALSE | AC169: FALSE | AD169: FALSE | AE169: TRUE | AF169: TRUE | AG169: FALSE | AH169: TRUE | AI169: TRUE | AJ169: TRUE | AK169: TRUE | AL169: FALSE | AM169: TRUE | AN169: FALSE | AO169: TRUE | AP169: TRUE | AQ169: TRUE | AR169: FALSE | AS169: TRUE | AT169: FALSE | AU169: TRUE | AV169: TRUE | AW169: FALSE | AX169: TRUE | AY169: FALSE | AZ169: FALSE | BA169: FALSE
A170: 165 | B170: TRUE | D170: TRUE | E170: TRUE | F170: TRUE | G170: FALSE | H170: FALSE | I170: FALSE | J170: FALSE | K170: TRUE | L170: FALSE | M170: FALSE | N170: TRUE | O170: TRUE | P170: TRUE | Q170: FALSE | R170: TRUE | S170: TRUE | T170: TRUE | U170: TRUE | V170: FALSE | W170: FALSE | X170: FALSE | Y170: TRUE | Z170: TRUE | AA170: TRUE | AB170: TRUE | AC170: TRUE | AD170: TRUE | AE170: TRUE | AF170: TRUE | AG170: TRUE | AH170: TRUE | AI170: FALSE | AJ170: TRUE | AK170: TRUE | AL170: TRUE | AM170: TRUE | AN170: TRUE | AO170: TRUE | AP170: TRUE | AQ170: FALSE | AR170: FALSE | AS170: TRUE | AT170: TRUE | AU170: TRUE | AV170: TRUE | AW170: FALSE | AX170: TRUE | AY170: FALSE | AZ170: FALSE | BA170: TRUE
A171: 166 | B171: TRUE | D171: TRUE | E171: TRUE | F171: TRUE | G171: FALSE | H171: TRUE | I171: FALSE | J171: TRUE | K171: FALSE | L171: FALSE | M171: FALSE | N171: TRUE | O171: TRUE | P171: TRUE | Q171: FALSE | R171: TRUE | S171: TRUE | T171: FALSE | U171: TRUE | V171: FALSE | W171: FALSE | X171: FALSE | Y171: TRUE | Z171: TRUE | AA171: TRUE | AB171: FALSE | AC171: TRUE | AD171: FALSE | AE171: TRUE | AF171: TRUE | AG171: TRUE | AH171: TRUE | AI171: FALSE | AJ171: TRUE | AK171: FALSE | AL171: TRUE | AM171: TRUE | AN171: FALSE | AO171: TRUE | AP171: TRUE | AQ171: TRUE | AR171: TRUE | AS171: TRUE | AT171: FALSE | AU171: TRUE | AV171: TRUE | AW171: TRUE | AX171: TRUE | AY171: FALSE | AZ171: TRUE | BA171: TRUE
A172: 167 | B172: FALSE | D172: TRUE | E172: TRUE | F172: FALSE | G172: TRUE | H172: TRUE | I172: TRUE | J172: TRUE | K172: TRUE | L172: FALSE | M172: TRUE | N172: TRUE | O172: TRUE | P172: FALSE | Q172: TRUE | R172: FALSE | S172: TRUE | T172: TRUE | U172: FALSE | V172: TRUE | W172: TRUE | X172: TRUE | Y172: TRUE | Z172: TRUE | AA172: TRUE | AB172: FALSE | AC172: TRUE | AD172: FALSE | AE172: TRUE | AF172: TRUE | AG172: TRUE | AH172: FALSE | AI172: TRUE | AJ172: TRUE | AK172: TRUE | AL172: FALSE | AM172: TRUE | AN172: FALSE | AO172: FALSE | AP172: FALSE | AQ172: FALSE | AR172: FALSE | AS172: TRUE | AT172: TRUE | AU172: TRUE | AV172: TRUE | AW172: FALSE | AX172: TRUE | AY172: TRUE | AZ172: TRUE | BA172: TRUE
A173: 168 | B173: TRUE | D173: FALSE | E173: FALSE | F173: TRUE | G173: TRUE | H173: TRUE | I173: FALSE | J173: TRUE | K173: FALSE | L173: TRUE | M173: TRUE | N173: FALSE | O173: FALSE | P173: FALSE | Q173: TRUE | R173: TRUE | S173: TRUE | T173: FALSE | U173: TRUE | V173: TRUE | W173: TRUE | X173: TRUE | Y173: TRUE | Z173: TRUE | AA173: TRUE | AB173: FALSE | AC173: FALSE | AD173: TRUE | AE173: TRUE | AF173: TRUE | AG173: FALSE | AH173: FALSE | AI173: FALSE | AJ173: TRUE | AK173: FALSE | AL173: FALSE | AM173: TRUE | AN173: TRUE | AO173: TRUE | AP173: TRUE | AQ173: TRUE | AR173: FALSE | AS173: FALSE | AT173: TRUE | AU173: TRUE | AV173: TRUE | AW173: TRUE | AX173: FALSE | AY173: FALSE | AZ173: TRUE | BA173: TRUE
A174: 169 | B174: TRUE | D174: FALSE | E174: TRUE | F174: TRUE | G174: FALSE | H174: TRUE | I174: TRUE | J174: TRUE | K174: TRUE | L174: TRUE | M174: FALSE | N174: TRUE | O174: TRUE | P174: TRUE | Q174: FALSE | R174: TRUE | S174: FALSE | T174: FALSE | U174: TRUE | V174: TRUE | W174: TRUE | X174: TRUE | Y174: TRUE | Z174: TRUE | AA174: TRUE | AB174: TRUE | AC174: TRUE | AD174: TRUE | AE174: FALSE | AF174: TRUE | AG174: TRUE | AH174: TRUE | AI174: TRUE | AJ174: TRUE | AK174: TRUE | AL174: TRUE | AM174: TRUE | AN174: FALSE | AO174: TRUE | AP174: TRUE | AQ174: TRUE | AR174: TRUE | AS174: FALSE | AT174: TRUE | AU174: FALSE | AV174: TRUE | AW174: TRUE | AX174: FALSE | AY174: TRUE | AZ174: TRUE | BA174: TRUE
A175: 170 | B175: TRUE | D175: FALSE | E175: TRUE | F175: TRUE | G175: TRUE | H175: TRUE | I175: TRUE | J175: TRUE | K175: TRUE | L175: TRUE | M175: FALSE | N175: FALSE | O175: TRUE | P175: TRUE | Q175: FALSE | R175: FALSE | S175: TRUE | T175: FALSE | U175: TRUE | V175: TRUE | W175: TRUE | X175: TRUE | Y175: FALSE | Z175: FALSE | AA175: FALSE | AB175: TRUE | AC175: TRUE | AD175: FALSE | AE175: TRUE | AF175: TRUE | AG175: FALSE | AH175: FALSE | AI175: FALSE | AJ175: TRUE | AK175: FALSE | AL175: TRUE | AM175: TRUE | AN175: FALSE | AO175: FALSE | AP175: TRUE | AQ175: TRUE | AR175: TRUE | AS175: FALSE | AT175: TRUE | AU175: TRUE | AV175: TRUE | AW175: TRUE | AX175: TRUE | AY175: TRUE | AZ175: TRUE | BA175: FALSE
A176: 171 | B176: TRUE | D176: FALSE | E176: FALSE | F176: TRUE | G176: TRUE | H176: FALSE | I176: TRUE | J176: TRUE | K176: FALSE | L176: TRUE | M176: TRUE | N176: FALSE | O176: FALSE | P176: FALSE | Q176: FALSE | R176: TRUE | S176: TRUE | T176: TRUE | U176: TRUE | V176: TRUE | W176: TRUE | X176: TRUE | Y176: TRUE | Z176: TRUE | AA176: TRUE | AB176: TRUE | AC176: FALSE | AD176: TRUE | AE176: TRUE | AF176: FALSE | AG176: TRUE | AH176: TRUE | AI176: TRUE | AJ176: TRUE | AK176: TRUE | AL176: FALSE | AM176: TRUE | AN176: FALSE | AO176: TRUE | AP176: TRUE | AQ176: TRUE | AR176: TRUE | AS176: TRUE | AT176: TRUE | AU176: TRUE | AV176: FALSE | AW176: FALSE | AX176: TRUE | AY176: TRUE | AZ176: TRUE | BA176: TRUE
A177: 172 | B177: TRUE | D177: FALSE | E177: TRUE | F177: TRUE | G177: TRUE | H177: FALSE | I177: TRUE | J177: FALSE | K177: FALSE | L177: FALSE | M177: TRUE | N177: TRUE | O177: FALSE | P177: TRUE | Q177: TRUE | R177: TRUE | S177: TRUE | T177: TRUE | U177: TRUE | V177: FALSE | W177: FALSE | X177: TRUE | Y177: FALSE | Z177: TRUE | AA177: TRUE | AB177: TRUE | AC177: FALSE | AD177: TRUE | AE177: TRUE | AF177: TRUE | AG177: TRUE | AH177: TRUE | AI177: TRUE | AJ177: TRUE | AK177: FALSE | AL177: TRUE | AM177: TRUE | AN177: TRUE | AO177: TRUE | AP177: TRUE | AQ177: TRUE | AR177: FALSE | AS177: TRUE | AT177: TRUE | AU177: FALSE | AV177: TRUE | AW177: TRUE | AX177: FALSE | AY177: TRUE | AZ177: TRUE | BA177: FALSE
A178: 173 | B178: TRUE | D178: TRUE | E178: FALSE | F178: TRUE | G178: TRUE | H178: TRUE | I178: TRUE | J178: TRUE | K178: TRUE | L178: FALSE | M178: FALSE | N178: TRUE | O178: TRUE | P178: TRUE | Q178: TRUE | R178: FALSE | S178: FALSE | T178: FALSE | U178: FALSE | V178: TRUE | W178: TRUE | X178: FALSE | Y178: TRUE | Z178: TRUE | AA178: FALSE | AB178: TRUE | AC178: TRUE | AD178: TRUE | AE178: TRUE | AF178: TRUE | AG178: TRUE | AH178: TRUE | AI178: TRUE | AJ178: TRUE | AK178: TRUE | AL178: TRUE | AM178: TRUE | AN178: FALSE | AO178: FALSE | AP178: FALSE | AQ178: TRUE | AR178: TRUE | AS178: FALSE | AT178: FALSE | AU178: TRUE | AV178: FALSE | AW178: TRUE | AX178: FALSE | AY178: TRUE | AZ178: TRUE | BA178: TRUE
A179: 174 | B179: TRUE | D179: FALSE | E179: FALSE | F179: TRUE | G179: FALSE | H179: TRUE | I179: TRUE | J179: FALSE | K179: TRUE | L179: TRUE | M179: TRUE | N179: FALSE | O179: FALSE | P179: FALSE | Q179: TRUE | R179: TRUE | S179: FALSE | T179: TRUE | U179: TRUE | V179: TRUE | W179: TRUE | X179: FALSE | Y179: FALSE | Z179: TRUE | AA179: TRUE | AB179: FALSE | AC179: FALSE | AD179: TRUE | AE179: TRUE | AF179: TRUE | AG179: FALSE | AH179: TRUE | AI179: TRUE | AJ179: TRUE | AK179: FALSE | AL179: FALSE | AM179: FALSE | AN179: TRUE | AO179: TRUE | AP179: TRUE | AQ179: TRUE | AR179: FALSE | AS179: TRUE | AT179: TRUE | AU179: TRUE | AV179: FALSE | AW179: TRUE | AX179: TRUE | AY179: FALSE | AZ179: TRUE | BA179: TRUE
A180: 175 | B180: TRUE | D180: FALSE | E180: TRUE | F180: TRUE | G180: FALSE | H180: FALSE | I180: FALSE | J180: TRUE | K180: FALSE | L180: TRUE | M180: TRUE | N180: FALSE | O180: TRUE | P180: TRUE | Q180: TRUE | R180: TRUE | S180: TRUE | T180: TRUE | U180: TRUE | V180: TRUE | W180: FALSE | X180: FALSE | Y180: FALSE | Z180: FALSE | AA180: TRUE | AB180: TRUE | AC180: FALSE | AD180: TRUE | AE180: TRUE | AF180: TRUE | AG180: FALSE | AH180: TRUE | AI180: FALSE | AJ180: TRUE | AK180: TRUE | AL180: TRUE | AM180: TRUE | AN180: TRUE | AO180: TRUE | AP180: TRUE | AQ180: TRUE | AR180: FALSE | AS180: TRUE | AT180: TRUE | AU180: TRUE | AV180: FALSE | AW180: TRUE | AX180: FALSE | AY180: TRUE | AZ180: TRUE | BA180: TRUE
A181: 176 | B181: TRUE | D181: TRUE | E181: TRUE | F181: TRUE | G181: TRUE | H181: FALSE | I181: TRUE | J181: FALSE | K181: TRUE | L181: FALSE | M181: FALSE | N181: TRUE | O181: FALSE | P181: FALSE | Q181: FALSE | R181: TRUE | S181: TRUE | T181: TRUE | U181: TRUE | V181: TRUE | W181: FALSE | X181: TRUE | Y181: TRUE | Z181: FALSE | AA181: TRUE | AB181: TRUE | AC181: FALSE | AD181: FALSE | AE181: TRUE | AF181: TRUE | AG181: FALSE | AH181: FALSE | AI181: FALSE | AJ181: TRUE | AK181: TRUE | AL181: TRUE | AM181: FALSE | AN181: TRUE | AO181: TRUE | AP181: TRUE | AQ181: TRUE | AR181: FALSE | AS181: FALSE | AT181: TRUE | AU181: FALSE | AV181: TRUE | AW181: FALSE | AX181: TRUE | AY181: TRUE | AZ181: TRUE | BA181: TRUE
A182: 177 | B182: FALSE | D182: FALSE | E182: TRUE | F182: TRUE | G182: TRUE | H182: TRUE | I182: TRUE | J182: TRUE | K182: TRUE | L182: TRUE | M182: TRUE | N182: TRUE | O182: FALSE | P182: FALSE | Q182: TRUE | R182: TRUE | S182: FALSE | T182: FALSE | U182: TRUE | V182: FALSE | W182: TRUE | X182: FALSE | Y182: TRUE | Z182: FALSE | AA182: TRUE | AB182: TRUE | AC182: TRUE | AD182: FALSE | AE182: FALSE | AF182: FALSE | AG182: FALSE | AH182: TRUE | AI182: TRUE | AJ182: TRUE | AK182: TRUE | AL182: TRUE | AM182: FALSE | AN182: FALSE | AO182: FALSE | AP182: TRUE | AQ182: TRUE | AR182: TRUE | AS182: FALSE | AT182: FALSE | AU182: TRUE | AV182: TRUE | AW182: TRUE | AX182: TRUE | AY182: FALSE | AZ182: TRUE | BA182: FALSE
A183: 178 | B183: TRUE | D183: TRUE | E183: TRUE | F183: TRUE | G183: TRUE | H183: FALSE | I183: TRUE | J183: FALSE | K183: TRUE | L183: FALSE | M183: FALSE | N183: TRUE | O183: TRUE | P183: TRUE | Q183: TRUE | R183: TRUE | S183: TRUE | T183: TRUE | U183: TRUE | V183: TRUE | W183: TRUE | X183: FALSE | Y183: FALSE | Z183: TRUE | AA183: TRUE | AB183: FALSE | AC183: TRUE | AD183: FALSE | AE183: FALSE | AF183: TRUE | AG183: TRUE | AH183: TRUE | AI183: FALSE | AJ183: FALSE | AK183: FALSE | AL183: TRUE | AM183: TRUE | AN183: TRUE | AO183: TRUE | AP183: TRUE | AQ183: FALSE | AR183: TRUE | AS183: FALSE | AT183: TRUE | AU183: TRUE | AV183: FALSE | AW183: TRUE | AX183: TRUE | AY183: TRUE | AZ183: FALSE | BA183: TRUE
A184: 179 | B184: TRUE | D184: TRUE | E184: FALSE | F184: TRUE | G184: FALSE | H184: FALSE | I184: TRUE | J184: FALSE | K184: FALSE | L184: TRUE | M184: TRUE | N184: FALSE | O184: TRUE | P184: FALSE | Q184: TRUE | R184: TRUE | S184: FALSE | T184: TRUE | U184: TRUE | V184: TRUE | W184: FALSE | X184: TRUE | Y184: TRUE | Z184: TRUE | AA184: TRUE | AB184: TRUE | AC184: TRUE | AD184: TRUE | AE184: TRUE | AF184: TRUE | AG184: TRUE | AH184: TRUE | AI184: FALSE | AJ184: TRUE | AK184: FALSE | AL184: FALSE | AM184: TRUE | AN184: FALSE | AO184: TRUE | AP184: TRUE | AQ184: FALSE | AR184: TRUE | AS184: TRUE | AT184: TRUE | AU184: TRUE | AV184: FALSE | AW184: TRUE | AX184: TRUE | AY184: FALSE | AZ184: TRUE | BA184: FALSE
A185: 180 | B185: TRUE | D185: TRUE | E185: TRUE | F185: TRUE | G185: TRUE | H185: FALSE | I185: TRUE | J185: TRUE | K185: FALSE | L185: TRUE | M185: FALSE | N185: TRUE | O185: FALSE | P185: TRUE | Q185: FALSE | R185: FALSE | S185: FALSE | T185: TRUE | U185: FALSE | V185: FALSE | W185: FALSE | X185: TRUE | Y185: FALSE | Z185: FALSE | AA185: TRUE | AB185: TRUE | AC185: TRUE | AD185: TRUE | AE185: TRUE | AF185: FALSE | AG185: TRUE | AH185: FALSE | AI185: TRUE | AJ185: TRUE | AK185: FALSE | AL185: TRUE | AM185: FALSE | AN185: FALSE | AO185: TRUE | AP185: TRUE | AQ185: FALSE | AR185: FALSE | AS185: FALSE | AT185: TRUE | AU185: TRUE | AV185: FALSE | AW185: TRUE | AX185: TRUE | AY185: TRUE | AZ185: TRUE | BA185: TRUE
A186: 181 | B186: TRUE | D186: FALSE | E186: FALSE | F186: TRUE | G186: TRUE | H186: TRUE | I186: FALSE | J186: TRUE | K186: TRUE | L186: FALSE | M186: FALSE | N186: TRUE | O186: TRUE | P186: TRUE | Q186: FALSE | R186: TRUE | S186: FALSE | T186: TRUE | U186: TRUE | V186: TRUE | W186: TRUE | X186: TRUE | Y186: TRUE | Z186: FALSE | AA186: TRUE | AB186: TRUE | AC186: FALSE | AD186: TRUE | AE186: FALSE | AF186: TRUE | AG186: TRUE | AH186: FALSE | AI186: TRUE | AJ186: FALSE | AK186: TRUE | AL186: FALSE | AM186: TRUE | AN186: TRUE | AO186: TRUE | AP186: FALSE | AQ186: FALSE | AR186: TRUE | AS186: FALSE | AT186: FALSE | AU186: TRUE | AV186: TRUE | AW186: TRUE | AX186: TRUE | AY186: TRUE | AZ186: FALSE | BA186: FALSE
A187: 182 | B187: FALSE | D187: TRUE | E187: TRUE | F187: TRUE | G187: TRUE | H187: FALSE | I187: FALSE | J187: TRUE | K187: FALSE | L187: FALSE | M187: TRUE | N187: TRUE | O187: FALSE | P187: TRUE | Q187: TRUE | R187: TRUE | S187: FALSE | T187: TRUE | U187: TRUE | V187: TRUE | W187: TRUE | X187: TRUE | Y187: TRUE | Z187: TRUE | AA187: TRUE | AB187: FALSE | AC187: TRUE | AD187: TRUE | AE187: TRUE | AF187: FALSE | AG187: FALSE | AH187: TRUE | AI187: TRUE | AJ187: FALSE | AK187: TRUE | AL187: TRUE | AM187: TRUE | AN187: TRUE | AO187: FALSE | AP187: TRUE | AQ187: FALSE | AR187: FALSE | AS187: FALSE | AT187: TRUE | AU187: FALSE | AV187: FALSE | AW187: TRUE | AX187: FALSE | AY187: TRUE | AZ187: TRUE | BA187: TRUE
A188: 183 | B188: TRUE | D188: FALSE | E188: FALSE | F188: TRUE | G188: TRUE | H188: FALSE | I188: FALSE | J188: FALSE | K188: TRUE | L188: FALSE | M188: TRUE | N188: TRUE | O188: FALSE | P188: FALSE | Q188: FALSE | R188: TRUE | S188: FALSE | T188: TRUE | U188: TRUE | V188: TRUE | W188: TRUE | X188: TRUE | Y188: TRUE | Z188: TRUE | AA188: TRUE | AB188: TRUE | AC188: FALSE | AD188: TRUE | AE188: FALSE | AF188: TRUE | AG188: TRUE | AH188: TRUE | AI188: FALSE | AJ188: FALSE | AK188: TRUE | AL188: TRUE | AM188: TRUE | AN188: TRUE | AO188: TRUE | AP188: TRUE | AQ188: TRUE | AR188: TRUE | AS188: TRUE | AT188: TRUE | AU188: TRUE | AV188: TRUE | AW188: TRUE | AX188: TRUE | AY188: FALSE | AZ188: TRUE | BA188: TRUE
A189: 184 | B189: TRUE | D189: TRUE | E189: TRUE | F189: TRUE | G189: TRUE | H189: FALSE | I189: TRUE | J189: FALSE | K189: FALSE | L189: FALSE | M189: TRUE | N189: FALSE | O189: FALSE | P189: TRUE | Q189: TRUE | R189: TRUE | S189: TRUE | T189: TRUE | U189: TRUE | V189: FALSE | W189: TRUE | X189: TRUE | Y189: FALSE | Z189: TRUE | AA189: TRUE | AB189: TRUE | AC189: TRUE | AD189: FALSE | AE189: TRUE | AF189: FALSE | AG189: FALSE | AH189: TRUE | AI189: FALSE | AJ189: TRUE | AK189: TRUE | AL189: TRUE | AM189: TRUE | AN189: TRUE | AO189: TRUE | AP189: TRUE | AQ189: TRUE | AR189: TRUE | AS189: FALSE | AT189: TRUE | AU189: FALSE | AV189: TRUE | AW189: TRUE | AX189: TRUE | AY189: TRUE | AZ189: TRUE | BA189: TRUE
A190: 185 | B190: TRUE | D190: TRUE | E190: TRUE | F190: FALSE | G190: TRUE | H190: TRUE | I190: FALSE | J190: TRUE | K190: TRUE | L190: FALSE | M190: TRUE | N190: TRUE | O190: TRUE | P190: TRUE | Q190: TRUE | R190: FALSE | S190: TRUE | T190: FALSE | U190: TRUE | V190: FALSE | W190: TRUE | X190: TRUE | Y190: FALSE | Z190: TRUE | AA190: FALSE | AB190: TRUE | AC190: FALSE | AD190: FALSE | AE190: TRUE | AF190: TRUE | AG190: TRUE | AH190: TRUE | AI190: TRUE | AJ190: TRUE | AK190: TRUE | AL190: TRUE | AM190: TRUE | AN190: TRUE | AO190: TRUE | AP190: TRUE | AQ190: TRUE | AR190: TRUE | AS190: FALSE | AT190: FALSE | AU190: TRUE | AV190: TRUE | AW190: FALSE | AX190: TRUE | AY190: TRUE | AZ190: FALSE | BA190: TRUE
A191: 186 | B191: FALSE | D191: FALSE | E191: TRUE | F191: TRUE | G191: TRUE | H191: TRUE | I191: FALSE | J191: FALSE | K191: TRUE | L191: TRUE | M191: TRUE | N191: TRUE | O191: TRUE | P191: TRUE | Q191: TRUE | R191: TRUE | S191: TRUE | T191: TRUE | U191: TRUE | V191: TRUE | W191: TRUE | X191: TRUE | Y191: FALSE | Z191: FALSE | AA191: FALSE | AB191: FALSE | AC191: FALSE | AD191: TRUE | AE191: FALSE | AF191: TRUE | AG191: FALSE | AH191: FALSE | AI191: FALSE | AJ191: FALSE | AK191: FALSE | AL191: TRUE | AM191: TRUE | AN191: FALSE | AO191: TRUE | AP191: FALSE | AQ191: TRUE | AR191: FALSE | AS191: FALSE | AT191: TRUE | AU191: TRUE | AV191: TRUE | AW191: FALSE | AX191: TRUE | AY191: FALSE | AZ191: TRUE | BA191: TRUE
A192: 187 | B192: TRUE | D192: TRUE | E192: TRUE | F192: TRUE | G192: TRUE | H192: TRUE | I192: TRUE | J192: TRUE | K192: TRUE | L192: FALSE | M192: TRUE | N192: TRUE | O192: TRUE | P192: TRUE | Q192: TRUE | R192: TRUE | S192: TRUE | T192: TRUE | U192: TRUE | V192: TRUE | W192: FALSE | X192: FALSE | Y192: TRUE | Z192: TRUE | AA192: TRUE | AB192: TRUE | AC192: TRUE | AD192: TRUE | AE192: TRUE | AF192: TRUE | AG192: TRUE | AH192: TRUE | AI192: TRUE | AJ192: TRUE | AK192: TRUE | AL192: TRUE | AM192: FALSE | AN192: FALSE | AO192: TRUE | AP192: FALSE | AQ192: TRUE | AR192: TRUE | AS192: TRUE | AT192: FALSE | AU192: TRUE | AV192: TRUE | AW192: FALSE | AX192: TRUE | AY192: TRUE | AZ192: TRUE | BA192: FALSE
A193: 188 | B193: TRUE | D193: TRUE | E193: TRUE | F193: FALSE | G193: TRUE | H193: FALSE | I193: FALSE | J193: TRUE | K193: TRUE | L193: TRUE | M193: FALSE | N193: FALSE | O193: FALSE | P193: TRUE | Q193: FALSE | R193: TRUE | S193: FALSE | T193: TRUE | U193: TRUE | V193: TRUE | W193: TRUE | X193: FALSE | Y193: FALSE | Z193: FALSE | AA193: TRUE | AB193: TRUE | AC193: FALSE | AD193: TRUE | AE193: TRUE | AF193: TRUE | AG193: FALSE | AH193: TRUE | AI193: FALSE | AJ193: FALSE | AK193: FALSE | AL193: FALSE | AM193: TRUE | AN193: TRUE | AO193: FALSE | AP193: FALSE | AQ193: TRUE | AR193: TRUE | AS193: TRUE | AT193: TRUE | AU193: TRUE | AV193: FALSE | AW193: FALSE | AX193: TRUE | AY193: FALSE | AZ193: TRUE | BA193: TRUE
A194: 189 | B194: TRUE | D194: TRUE | E194: TRUE | F194: TRUE | G194: TRUE | H194: TRUE | I194: TRUE | J194: TRUE | K194: FALSE | L194: TRUE | M194: FALSE | N194: FALSE | O194: TRUE | P194: TRUE | Q194: FALSE | R194: TRUE | S194: FALSE | T194: TRUE | U194: FALSE | V194: TRUE | W194: TRUE | X194: TRUE | Y194: TRUE | Z194: TRUE | AA194: TRUE | AB194: TRUE | AC194: TRUE | AD194: TRUE | AE194: FALSE | AF194: TRUE | AG194: FALSE | AH194: TRUE | AI194: TRUE | AJ194: TRUE | AK194: FALSE | AL194: TRUE | AM194: TRUE | AN194: TRUE | AO194: FALSE | AP194: TRUE | AQ194: FALSE | AR194: TRUE | AS194: TRUE | AT194: TRUE | AU194: TRUE | AV194: FALSE | AW194: FALSE | AX194: FALSE | AY194: TRUE | AZ194: TRUE | BA194: TRUE
A195: 190 | B195: TRUE | D195: FALSE | E195: TRUE | F195: TRUE | G195: TRUE | H195: TRUE | I195: FALSE | J195: FALSE | K195: FALSE | L195: TRUE | M195: TRUE | N195: TRUE | O195: TRUE | P195: FALSE | Q195: TRUE | R195: TRUE | S195: TRUE | T195: TRUE | U195: TRUE | V195: TRUE | W195: TRUE | X195: TRUE | Y195: TRUE | Z195: TRUE | AA195: TRUE | AB195: FALSE | AC195: FALSE | AD195: TRUE | AE195: TRUE | AF195: TRUE | AG195: TRUE | AH195: TRUE | AI195: TRUE | AJ195: FALSE | AK195: TRUE | AL195: TRUE | AM195: TRUE | AN195: TRUE | AO195: TRUE | AP195: FALSE | AQ195: FALSE | AR195: FALSE | AS195: FALSE | AT195: FALSE | AU195: FALSE | AV195: TRUE | AW195: FALSE | AX195: FALSE | AY195: FALSE | AZ195: TRUE | BA195: TRUE
